Purchasing Organisation,Payment Date,Voucher Number (Internal Classification),Payment Number,Supplier name,Service Area,Amount (�),Purpose,Supplier Type (Internal classification),Invoice Type (Internal Classification),Cost Centre No,Directorate
RBC Legal Entity,21/04/2022,4673302,67,ROYLE CARE LTD,ASC Operational Management Team,-4772.5,TPP to Others,Third Party Supplier,CREDIT,5309,JAAA-Directorate of Social Care and Health Services
RBC Legal Entity,21/04/2022,4673303,67,ROYLE CARE LTD,ASC Operational Management Team,-3181.67,TPP to Others,Third Party Supplier,CREDIT,5309,JAAA-Directorate of Social Care and Health Services
RBC Legal Entity,19/04/2022,3941176,226,CJM HARVEY CONSTRUCTION LTD - IN LIQUIDATION,Corporate Maintenance Services,4800,TPP  Contract,SUB-CONTRACTOR,STANDARD,4080,KAAA-Directorate of Economic Growth and Neighbourhood Services
RBC Legal Entity,19/04/2022,3941177,226,CJM HARVEY CONSTRUCTION LTD - IN LIQUIDATION,Corporate Maintenance Services,-4800,TPP  Contract,SUB-CONTRACTOR,CREDIT,4080,KAAA-Directorate of Economic Growth and Neighbourhood Services
RBC Legal Entity,22/04/2022,4666827,227,JUDR. DANIELA JEZOVA,JLT Disbursements,1615.39,Misc. Legal Expenses,INDIVIDUAL,STANDARD,2407,LAAA-Directorate of Resources
RBC Legal Entity,04/04/2022,4656938,275472,G2 RECRUITMENT SOLUTIONS LTD,Building Control,1253.6,Consultancy Fees,SUPPLIER,STANDARD,4701,KAAA-Directorate of Economic Growth and Neighbourhood Services
RBC Legal Entity,04/04/2022,4656942,275472,G2 RECRUITMENT SOLUTIONS LTD,Building Control,1416.9,Consultancy Fees,SUPPLIER,STANDARD,4701,KAAA-Directorate of Economic Growth and Neighbourhood Services
RBC Legal Entity,04/04/2022,4657416,275473,SOUND UK ARTS LTD,HSHAZ programme,712.5,Professional Fees,SUPPLIER,STANDARD,1316,KAAA-Directorate of Economic Growth and Neighbourhood Services
RBC Legal Entity,04/04/2022,4657416,275473,SOUND UK ARTS LTD,HSHAZ programme,3750,Professional Fees,SUPPLIER,STANDARD,1316,KAAA-Directorate of Economic Growth and Neighbourhood Services
RBC Legal Entity,04/04/2022,4657417,275473,SOUND UK ARTS LTD,HSHAZ programme,712.5,Professional Fees,SUPPLIER,STANDARD,1316,KAAA-Directorate of Economic Growth and Neighbourhood Services
RBC Legal Entity,04/04/2022,4657417,275473,SOUND UK ARTS LTD,HSHAZ programme,3750,Professional Fees,SUPPLIER,STANDARD,1316,KAAA-Directorate of Economic Growth and Neighbourhood Services
RBC Legal Entity,04/04/2022,4656922,275474,EAST OF ENGLAND TRADING STANDARDS ASSOCIATION LTD,Consumer Protection,2093,Professional Fees,SUPPLIER,STANDARD,4601,KAAA-Directorate of Economic Growth and Neighbourhood Services
RBC Legal Entity,04/04/2022,4659905,275476,BIOCRAFT LTD,Payroll + Payments A/c,-255.94,System Creditors,SUB-CONTRACTOR,CREDIT,9823,ZZZB-Balance Sheet
RBC Legal Entity,04/04/2022,4659905,275476,BIOCRAFT LTD,Repairs,1279.69,Major Repairs,SUB-CONTRACTOR,STANDARD,5970,HAAA-Housing Revenue Account
RBC Legal Entity,04/04/2022,4659905,275476,BIOCRAFT LTD,Repairs,1279.69,Major Repairs,SUB-CONTRACTOR,STANDARD,5970,HAAA-Housing Revenue Account
RBC Legal Entity,04/04/2022,4661082,275477,ZENCONTROL LIMITED,Corporate FM - Office Buildings,5380,Equipment Purchase & Repair,SUPPLIER,STANDARD,3738,KAAA-Directorate of Economic Growth and Neighbourhood Services
RBC Legal Entity,04/04/2022,4657981,275478,PEGGY ETIEBET,JLT Disbursements,630,Misc. Legal Expenses,SUPPLIER,STANDARD,2407,LAAA-Directorate of Resources
RBC Legal Entity,04/04/2022,4657630,275479,MISS ANNA YARDE,JLT Disbursements,5066.67,Misc. Legal Expenses,SUPPLIER,STANDARD,2407,LAAA-Directorate of Resources
RBC Legal Entity,04/04/2022,4665214,275480,LANGUAGE LINK PLUS,JLT Disbursements,937.37,Misc. Legal Expenses,SUPPLIER,STANDARD,2407,LAAA-Directorate of Resources
RBC Legal Entity,04/04/2022,4657633,275481,MISS CHLOE WILKINS,JLT Disbursements,1560,Misc. Legal Expenses,Third Party Supplier,STANDARD,2407,LAAA-Directorate of Resources
RBC Legal Entity,04/04/2022,4657385,275482,BK SAFETY & WORKWEAR LTD,Highways,1889.22,Protective Clothing,SUPPLIER,STANDARD,4252,KAAA-Directorate of Economic Growth and Neighbourhood Services
RBC Legal Entity,04/04/2022,4657488,275483,PILON LTD,DLO Voids Trades,63696.85,Subcontractors Labour,SUB-CONTRACTOR,STANDARD,4020,KAAA-Directorate of Economic Growth and Neighbourhood Services
RBC Legal Entity,04/04/2022,4657584,275483,PILON LTD,MRA Account,28873.57,Major Voids,SUB-CONTRACTOR,STANDARD,5975,HAAA-Housing Revenue Account
RBC Legal Entity,04/04/2022,4657362,275486,ALIS TEMPLETON,HSHAZ programme,2000,Professional Fees,Third Party Supplier,STANDARD,1316,KAAA-Directorate of Economic Growth and Neighbourhood Services
RBC Legal Entity,04/04/2022,4659366,275487,HAZLEMERE WINDOW COMPANY LTD,Meadway development,28287.28,External Fees  Misc.,SUB-CONTRACTOR,STANDARD,8262,ZZZC-Capital
RBC Legal Entity,04/04/2022,4659366,275487,HAZLEMERE WINDOW COMPANY LTD,Meadway development,35344.27,External Fees  Misc.,SUB-CONTRACTOR,STANDARD,8262,ZZZC-Capital
RBC Legal Entity,04/04/2022,4659368,275487,HAZLEMERE WINDOW COMPANY LTD,Moorlands Primary,23049.13,External Fees  Misc.,SUB-CONTRACTOR,STANDARD,8222,ZZZC-Capital
RBC Legal Entity,04/04/2022,4657578,275491,MTI TECHNOLOGY LTD,IT Management,26681.9,Software Licences,Third Party Supplier,STANDARD,2300,EAAA-Chief Executive
RBC Legal Entity,04/04/2022,4657752,275493,F M CONWAY LTD,Highways,584.96,Materials Direct,SUB-CONTRACTOR,STANDARD,4252,KAAA-Directorate of Economic Growth and Neighbourhood Services
RBC Legal Entity,04/04/2022,4657755,275493,F M CONWAY LTD,Highways,431.33,Materials Direct,SUB-CONTRACTOR,STANDARD,4252,KAAA-Directorate of Economic Growth and Neighbourhood Services
RBC Legal Entity,04/04/2022,4658638,275493,F M CONWAY LTD,Highways,610,Materials Direct,SUB-CONTRACTOR,STANDARD,4252,KAAA-Directorate of Economic Growth and Neighbourhood Services
RBC Legal Entity,04/04/2022,4658668,275493,F M CONWAY LTD,Highways,610,Materials Direct,SUB-CONTRACTOR,STANDARD,4252,KAAA-Directorate of Economic Growth and Neighbourhood Services
RBC Legal Entity,04/04/2022,4658669,275493,F M CONWAY LTD,Highways,670.95,Materials Direct,SUB-CONTRACTOR,STANDARD,4252,KAAA-Directorate of Economic Growth and Neighbourhood Services
RBC Legal Entity,04/04/2022,4658673,275493,F M CONWAY LTD,Highways,488,Materials Direct,SUB-CONTRACTOR,STANDARD,4252,KAAA-Directorate of Economic Growth and Neighbourhood Services
RBC Legal Entity,04/04/2022,4658698,275495,MOORGARTH PROPERTY MANAGEMENT LTD,Parking & Enforcement,18323.5,Rents,SUPPLIER,STANDARD,4725,KAAA-Directorate of Economic Growth and Neighbourhood Services
RBC Legal Entity,04/04/2022,4116849,275497,NEC SOFTWARE SOLUTIONS UK LTD,Members Services,1792,Equipment Purchase & Repair,Third Party Supplier,STANDARD,2500,LAAA-Directorate of Resources
RBC Legal Entity,04/04/2022,4657759,275497,NEC SOFTWARE SOLUTIONS UK LTD,Other HRA Capital,6600,Intangible Assets,Third Party Supplier,STANDARD,8549,ZZZC-Capital
RBC Legal Entity,04/04/2022,4657767,275497,NEC SOFTWARE SOLUTIONS UK LTD,Other HRA Capital,10000,Intangible Assets,Third Party Supplier,STANDARD,8549,ZZZC-Capital
RBC Legal Entity,04/04/2022,4662237,275497,NEC SOFTWARE SOLUTIONS UK LTD,Members Services,-1792,Equipment Purchase & Repair,Third Party Supplier,CREDIT,2500,LAAA-Directorate of Resources
RBC Legal Entity,04/04/2022,4658133,275501,"ASSOCIATION OF DIRECTORS OF ENVIRONMENT, ECONOMY, PLANNING & TRANSPORT",DEGNS Management,645,Subscriptions,Third Party Supplier,STANDARD,1500,KAAA-Directorate of Economic Growth and Neighbourhood Services
RBC Legal Entity,04/04/2022,4657447,275502,ATKINS LIMITED,Corporate Maintenance Services,4076.22,TPP  Contract,SUPPLIER,STANDARD,4080,KAAA-Directorate of Economic Growth and Neighbourhood Services
RBC Legal Entity,04/04/2022,4659359,275506,LINDSAY JOHNSON,JLT Disbursements,466.67,Misc. Legal Expenses,Third Party Supplier,STANDARD,2407,LAAA-Directorate of Resources
RBC Legal Entity,04/04/2022,4657443,275507,BUCKS FIRE SAFETY TRAINING,Corporate Organisational Development,592,Training & Development Costs,Third Party Supplier,STANDARD,3435,LAAA-Directorate of Resources
RBC Legal Entity,04/04/2022,4659453,275512,NHS BERKSHIRE WEST CCG,Better Care Fund,29000,NHS Trusts,GOVERNMENT,STANDARD,5310,JAAA-Directorate of Social Care and Health Services
RBC Legal Entity,04/04/2022,4661132,275514,TULLY FORENSIC PSYCHOLOGY LTD,JLT Disbursements,4930.05,Misc. Legal Expenses,Third Party Supplier,STANDARD,2407,LAAA-Directorate of Resources
RBC Legal Entity,04/04/2022,4657989,275516,STAGE ELECTRICS,Hexagon Operations,944.75,Equipment Purchase & Repair,SUPPLIER,STANDARD,1200,KAAA-Directorate of Economic Growth and Neighbourhood Services
RBC Legal Entity,04/04/2022,4658000,275517,MAVIS AMONOO-ACQUAH,JLT Disbursements,2050,Misc. Legal Expenses,SUPPLIER,STANDARD,2407,LAAA-Directorate of Resources
RBC Legal Entity,04/04/2022,4657470,275518,MALLATITE LTD,Invest to Save Street lighting,1415,Contractors,Third Party Supplier,STANDARD,8882,ZZZC-Capital
RBC Legal Entity,04/04/2022,4664021,275519,IBIS STYLES READING CENTRE,Bed and Breakfast,136.56,Rents,Third Party Supplier,STANDARD,5871,KAAA-Directorate of Economic Growth and Neighbourhood Services
RBC Legal Entity,04/04/2022,4664021,275519,IBIS STYLES READING CENTRE,Bed and Breakfast,460.44,Rents,Third Party Supplier,STANDARD,5871,KAAA-Directorate of Economic Growth and Neighbourhood Services
RBC Legal Entity,04/04/2022,4664021,275519,IBIS STYLES READING CENTRE,Bed and Breakfast,546.37,Rents,Third Party Supplier,STANDARD,5871,KAAA-Directorate of Economic Growth and Neighbourhood Services
RBC Legal Entity,04/04/2022,4664487,275519,IBIS STYLES READING CENTRE,Bed and Breakfast,2534.88,Rents,Third Party Supplier,STANDARD,5871,KAAA-Directorate of Economic Growth and Neighbourhood Services
RBC Legal Entity,04/04/2022,4664487,275519,IBIS STYLES READING CENTRE,Bed and Breakfast,6556.26,Rents,Third Party Supplier,STANDARD,5871,KAAA-Directorate of Economic Growth and Neighbourhood Services
RBC Legal Entity,04/04/2022,4664492,275519,IBIS STYLES READING CENTRE,Single Homelessness Grants,351.2,Preventive+SupportiveServ,Third Party Supplier,STANDARD,5860,KAAA-Directorate of Economic Growth and Neighbourhood Services
RBC Legal Entity,04/04/2022,4664492,275519,IBIS STYLES READING CENTRE,Single Homelessness Grants,1404.9,Preventive+SupportiveServ,Third Party Supplier,STANDARD,5860,KAAA-Directorate of Economic Growth and Neighbourhood Services
RBC Legal Entity,04/04/2022,4664493,275519,IBIS STYLES READING CENTRE,Single Homelessness Grants,1613.68,Preventive+SupportiveServ,Third Party Supplier,STANDARD,5860,KAAA-Directorate of Economic Growth and Neighbourhood Services
RBC Legal Entity,04/04/2022,4664493,275519,IBIS STYLES READING CENTRE,Single Homelessness Grants,6454.61,Preventive+SupportiveServ,Third Party Supplier,STANDARD,5860,KAAA-Directorate of Economic Growth and Neighbourhood Services
RBC Legal Entity,04/04/2022,4664497,275519,IBIS STYLES READING CENTRE,Bed and Breakfast,1193.44,Rents,Third Party Supplier,STANDARD,5871,KAAA-Directorate of Economic Growth and Neighbourhood Services
RBC Legal Entity,04/04/2022,4664497,275519,IBIS STYLES READING CENTRE,Bed and Breakfast,3863.38,Rents,Third Party Supplier,STANDARD,5871,KAAA-Directorate of Economic Growth and Neighbourhood Services
RBC Legal Entity,04/04/2022,4664498,275519,IBIS STYLES READING CENTRE,Bed and Breakfast,896.16,Rents,Third Party Supplier,STANDARD,5871,KAAA-Directorate of Economic Growth and Neighbourhood Services
RBC Legal Entity,04/04/2022,4664498,275519,IBIS STYLES READING CENTRE,Bed and Breakfast,1365.82,Rents,Third Party Supplier,STANDARD,5871,KAAA-Directorate of Economic Growth and Neighbourhood Services
RBC Legal Entity,04/04/2022,4664499,275519,IBIS STYLES READING CENTRE,Bed and Breakfast,273.18,Rents,Third Party Supplier,STANDARD,5871,KAAA-Directorate of Economic Growth and Neighbourhood Services
RBC Legal Entity,04/04/2022,4664499,275519,IBIS STYLES READING CENTRE,Bed and Breakfast,1591.84,Rents,Third Party Supplier,STANDARD,5871,KAAA-Directorate of Economic Growth and Neighbourhood Services
RBC Legal Entity,04/04/2022,4664500,275519,IBIS STYLES READING CENTRE,Bed and Breakfast,748.72,Rents,Third Party Supplier,STANDARD,5871,KAAA-Directorate of Economic Growth and Neighbourhood Services
RBC Legal Entity,04/04/2022,4664500,275519,IBIS STYLES READING CENTRE,Bed and Breakfast,1131.69,Rents,Third Party Supplier,STANDARD,5871,KAAA-Directorate of Economic Growth and Neighbourhood Services
RBC Legal Entity,04/04/2022,4664506,275519,IBIS STYLES READING CENTRE,Bed and Breakfast,429.34,Rents,Third Party Supplier,STANDARD,5871,KAAA-Directorate of Economic Growth and Neighbourhood Services
RBC Legal Entity,04/04/2022,4664506,275519,IBIS STYLES READING CENTRE,Bed and Breakfast,1269.92,Rents,Third Party Supplier,STANDARD,5871,KAAA-Directorate of Economic Growth and Neighbourhood Services
RBC Legal Entity,04/04/2022,4664507,275519,IBIS STYLES READING CENTRE,Bed and Breakfast,273.16,Rents,Third Party Supplier,STANDARD,5871,KAAA-Directorate of Economic Growth and Neighbourhood Services
RBC Legal Entity,04/04/2022,4664507,275519,IBIS STYLES READING CENTRE,Bed and Breakfast,1254.08,Rents,Third Party Supplier,STANDARD,5871,KAAA-Directorate of Economic Growth and Neighbourhood Services
RBC Legal Entity,04/04/2022,4664508,275519,IBIS STYLES READING CENTRE,Bed and Breakfast,1231.04,Rents,Third Party Supplier,STANDARD,5871,KAAA-Directorate of Economic Growth and Neighbourhood Services
RBC Legal Entity,04/04/2022,4664508,275519,IBIS STYLES READING CENTRE,Bed and Breakfast,1717.08,Rents,Third Party Supplier,STANDARD,5871,KAAA-Directorate of Economic Growth and Neighbourhood Services
RBC Legal Entity,04/04/2022,4664530,275519,IBIS STYLES READING CENTRE,Bed and Breakfast,273.1,Rents,Third Party Supplier,STANDARD,5871,KAAA-Directorate of Economic Growth and Neighbourhood Services
RBC Legal Entity,04/04/2022,4664530,275519,IBIS STYLES READING CENTRE,Bed and Breakfast,1200.8,Rents,Third Party Supplier,STANDARD,5871,KAAA-Directorate of Economic Growth and Neighbourhood Services
RBC Legal Entity,04/04/2022,4664540,275519,IBIS STYLES READING CENTRE,Housing GF General Charges,2,Preventive+SupportiveServ,Third Party Supplier,STANDARD,5810,KAAA-Directorate of Economic Growth and Neighbourhood Services
RBC Legal Entity,04/04/2022,4664540,275519,IBIS STYLES READING CENTRE,Housing GF General Charges,208,Preventive+SupportiveServ,Third Party Supplier,STANDARD,5810,KAAA-Directorate of Economic Growth and Neighbourhood Services
RBC Legal Entity,04/04/2022,4664540,275519,IBIS STYLES READING CENTRE,Housing GF General Charges,829.6,Preventive+SupportiveServ,Third Party Supplier,STANDARD,5810,KAAA-Directorate of Economic Growth and Neighbourhood Services
RBC Legal Entity,04/04/2022,4664540,275519,IBIS STYLES READING CENTRE,Housing GF General Charges,2243.81,Preventive+SupportiveServ,Third Party Supplier,STANDARD,5810,KAAA-Directorate of Economic Growth and Neighbourhood Services
RBC Legal Entity,04/04/2022,4660987,275520,BERKSHIRE ROOMS,Bed and Breakfast,665,Rents,Third Party Supplier,STANDARD,5871,KAAA-Directorate of Economic Growth and Neighbourhood Services
RBC Legal Entity,04/04/2022,4660990,275520,BERKSHIRE ROOMS,Bed and Breakfast,665,Rents,Third Party Supplier,STANDARD,5871,KAAA-Directorate of Economic Growth and Neighbourhood Services
RBC Legal Entity,04/04/2022,4660992,275520,BERKSHIRE ROOMS,Bed and Breakfast,168,Rents,Third Party Supplier,STANDARD,5871,KAAA-Directorate of Economic Growth and Neighbourhood Services
RBC Legal Entity,04/04/2022,4660992,275520,BERKSHIRE ROOMS,Bed and Breakfast,672,Rents,Third Party Supplier,STANDARD,5871,KAAA-Directorate of Economic Growth and Neighbourhood Services
RBC Legal Entity,04/04/2022,4661031,275520,BERKSHIRE ROOMS,Bed and Breakfast,1225,Rents,Third Party Supplier,STANDARD,5871,KAAA-Directorate of Economic Growth and Neighbourhood Services
RBC Legal Entity,04/04/2022,4661032,275520,BERKSHIRE ROOMS,Bed and Breakfast,1190,Rents,Third Party Supplier,STANDARD,5871,KAAA-Directorate of Economic Growth and Neighbourhood Services
RBC Legal Entity,04/04/2022,4661034,275520,BERKSHIRE ROOMS,Bed and Breakfast,840,Rents,Third Party Supplier,STANDARD,5871,KAAA-Directorate of Economic Growth and Neighbourhood Services
RBC Legal Entity,04/04/2022,4661035,275520,BERKSHIRE ROOMS,Bed and Breakfast,840,Rents,Third Party Supplier,STANDARD,5871,KAAA-Directorate of Economic Growth and Neighbourhood Services
RBC Legal Entity,04/04/2022,4661048,275520,BERKSHIRE ROOMS,Bed and Breakfast,840,Rents,Third Party Supplier,STANDARD,5871,KAAA-Directorate of Economic Growth and Neighbourhood Services
RBC Legal Entity,04/04/2022,4661049,275520,BERKSHIRE ROOMS,Bed and Breakfast,665,Rents,Third Party Supplier,STANDARD,5871,KAAA-Directorate of Economic Growth and Neighbourhood Services
RBC Legal Entity,04/04/2022,4661050,275520,BERKSHIRE ROOMS,Bed and Breakfast,76,Rents,Third Party Supplier,STANDARD,5871,KAAA-Directorate of Economic Growth and Neighbourhood Services
RBC Legal Entity,04/04/2022,4661050,275520,BERKSHIRE ROOMS,Bed and Breakfast,285,Rents,Third Party Supplier,STANDARD,5871,KAAA-Directorate of Economic Growth and Neighbourhood Services
RBC Legal Entity,04/04/2022,4661050,275520,BERKSHIRE ROOMS,Bed and Breakfast,304,Rents,Third Party Supplier,STANDARD,5871,KAAA-Directorate of Economic Growth and Neighbourhood Services
RBC Legal Entity,04/04/2022,4661051,275520,BERKSHIRE ROOMS,Bed and Breakfast,95,Rents,Third Party Supplier,STANDARD,5871,KAAA-Directorate of Economic Growth and Neighbourhood Services
RBC Legal Entity,04/04/2022,4661051,275520,BERKSHIRE ROOMS,Bed and Breakfast,114,Rents,Third Party Supplier,STANDARD,5871,KAAA-Directorate of Economic Growth and Neighbourhood Services
RBC Legal Entity,04/04/2022,4661051,275520,BERKSHIRE ROOMS,Bed and Breakfast,456,Rents,Third Party Supplier,STANDARD,5871,KAAA-Directorate of Economic Growth and Neighbourhood Services
RBC Legal Entity,04/04/2022,4661052,275520,BERKSHIRE ROOMS,Bed and Breakfast,770,Rents,Third Party Supplier,STANDARD,5871,KAAA-Directorate of Economic Growth and Neighbourhood Services
RBC Legal Entity,04/04/2022,4661053,275520,BERKSHIRE ROOMS,Rowe Court Fire,133.04,Rents,Third Party Supplier,STANDARD,2299,KAAA-Directorate of Economic Growth and Neighbourhood Services
RBC Legal Entity,04/04/2022,4661053,275520,BERKSHIRE ROOMS,Rowe Court Fire,531.96,Rents,Third Party Supplier,STANDARD,2299,KAAA-Directorate of Economic Growth and Neighbourhood Services
RBC Legal Entity,04/04/2022,4661054,275520,BERKSHIRE ROOMS,Rowe Court Fire,133.04,Rents,Third Party Supplier,STANDARD,2299,KAAA-Directorate of Economic Growth and Neighbourhood Services
RBC Legal Entity,04/04/2022,4661054,275520,BERKSHIRE ROOMS,Rowe Court Fire,531.96,Rents,Third Party Supplier,STANDARD,2299,KAAA-Directorate of Economic Growth and Neighbourhood Services
RBC Legal Entity,04/04/2022,4661055,275520,BERKSHIRE ROOMS,Bed and Breakfast,66,Rents,Third Party Supplier,STANDARD,5871,KAAA-Directorate of Economic Growth and Neighbourhood Services
RBC Legal Entity,04/04/2022,4661055,275520,BERKSHIRE ROOMS,Bed and Breakfast,264,Rents,Third Party Supplier,STANDARD,5871,KAAA-Directorate of Economic Growth and Neighbourhood Services
RBC Legal Entity,04/04/2022,4661055,275520,BERKSHIRE ROOMS,Bed and Breakfast,440,Rents,Third Party Supplier,STANDARD,5871,KAAA-Directorate of Economic Growth and Neighbourhood Services
RBC Legal Entity,04/04/2022,4662077,275520,BERKSHIRE ROOMS,Bed and Breakfast,231.04,Rents,Third Party Supplier,STANDARD,5871,KAAA-Directorate of Economic Growth and Neighbourhood Services
RBC Legal Entity,04/04/2022,4662077,275520,BERKSHIRE ROOMS,Bed and Breakfast,923.96,Rents,Third Party Supplier,STANDARD,5871,KAAA-Directorate of Economic Growth and Neighbourhood Services
RBC Legal Entity,04/04/2022,4662078,275520,BERKSHIRE ROOMS,Bed and Breakfast,133.04,Rents,Third Party Supplier,STANDARD,5871,KAAA-Directorate of Economic Growth and Neighbourhood Services
RBC Legal Entity,04/04/2022,4662078,275520,BERKSHIRE ROOMS,Bed and Breakfast,531.96,Rents,Third Party Supplier,STANDARD,5871,KAAA-Directorate of Economic Growth and Neighbourhood Services
RBC Legal Entity,04/04/2022,4662106,275520,BERKSHIRE ROOMS,Bed and Breakfast,196,Rents,Third Party Supplier,STANDARD,5871,KAAA-Directorate of Economic Growth and Neighbourhood Services
RBC Legal Entity,04/04/2022,4662106,275520,BERKSHIRE ROOMS,Bed and Breakfast,784,Rents,Third Party Supplier,STANDARD,5871,KAAA-Directorate of Economic Growth and Neighbourhood Services
RBC Legal Entity,04/04/2022,4662107,275520,BERKSHIRE ROOMS,Bed and Breakfast,182,Rents,Third Party Supplier,STANDARD,5871,KAAA-Directorate of Economic Growth and Neighbourhood Services
RBC Legal Entity,04/04/2022,4662107,275520,BERKSHIRE ROOMS,Bed and Breakfast,728,Rents,Third Party Supplier,STANDARD,5871,KAAA-Directorate of Economic Growth and Neighbourhood Services
RBC Legal Entity,04/04/2022,4662108,275520,BERKSHIRE ROOMS,Bed and Breakfast,182,Rents,Third Party Supplier,STANDARD,5871,KAAA-Directorate of Economic Growth and Neighbourhood Services
RBC Legal Entity,04/04/2022,4662108,275520,BERKSHIRE ROOMS,Bed and Breakfast,728,Rents,Third Party Supplier,STANDARD,5871,KAAA-Directorate of Economic Growth and Neighbourhood Services
RBC Legal Entity,04/04/2022,4662109,275520,BERKSHIRE ROOMS,Bed and Breakfast,182,Rents,Third Party Supplier,STANDARD,5871,KAAA-Directorate of Economic Growth and Neighbourhood Services
RBC Legal Entity,04/04/2022,4662109,275520,BERKSHIRE ROOMS,Bed and Breakfast,728,Rents,Third Party Supplier,STANDARD,5871,KAAA-Directorate of Economic Growth and Neighbourhood Services
RBC Legal Entity,04/04/2022,4662110,275520,BERKSHIRE ROOMS,Bed and Breakfast,168,Rents,Third Party Supplier,STANDARD,5871,KAAA-Directorate of Economic Growth and Neighbourhood Services
RBC Legal Entity,04/04/2022,4662110,275520,BERKSHIRE ROOMS,Bed and Breakfast,672,Rents,Third Party Supplier,STANDARD,5871,KAAA-Directorate of Economic Growth and Neighbourhood Services
RBC Legal Entity,04/04/2022,4662111,275520,BERKSHIRE ROOMS,Bed and Breakfast,168,Rents,Third Party Supplier,STANDARD,5871,KAAA-Directorate of Economic Growth and Neighbourhood Services
RBC Legal Entity,04/04/2022,4662111,275520,BERKSHIRE ROOMS,Bed and Breakfast,672,Rents,Third Party Supplier,STANDARD,5871,KAAA-Directorate of Economic Growth and Neighbourhood Services
RBC Legal Entity,04/04/2022,4662112,275520,BERKSHIRE ROOMS,Bed and Breakfast,154,Rents,Third Party Supplier,STANDARD,5871,KAAA-Directorate of Economic Growth and Neighbourhood Services
RBC Legal Entity,04/04/2022,4662112,275520,BERKSHIRE ROOMS,Bed and Breakfast,616,Rents,Third Party Supplier,STANDARD,5871,KAAA-Directorate of Economic Growth and Neighbourhood Services
RBC Legal Entity,04/04/2022,4662406,275520,BERKSHIRE ROOMS,Bed and Breakfast,720,Rents,Third Party Supplier,STANDARD,5871,KAAA-Directorate of Economic Growth and Neighbourhood Services
RBC Legal Entity,04/04/2022,4662421,275520,BERKSHIRE ROOMS,Bed and Breakfast,600,Rents,Third Party Supplier,STANDARD,5871,KAAA-Directorate of Economic Growth and Neighbourhood Services
RBC Legal Entity,04/04/2022,4663930,275520,BERKSHIRE ROOMS,Bed and Breakfast,600,Rents,Third Party Supplier,STANDARD,5871,KAAA-Directorate of Economic Growth and Neighbourhood Services
RBC Legal Entity,04/04/2022,4663952,275520,BERKSHIRE ROOMS,Bed and Breakfast,-288,Rents,Third Party Supplier,CREDIT,5871,KAAA-Directorate of Economic Growth and Neighbourhood Services
RBC Legal Entity,04/04/2022,4663952,275520,BERKSHIRE ROOMS,Bed and Breakfast,-192,Rents,Third Party Supplier,CREDIT,5871,KAAA-Directorate of Economic Growth and Neighbourhood Services
RBC Legal Entity,04/04/2022,4663952,275520,BERKSHIRE ROOMS,Bed and Breakfast,-72,Rents,Third Party Supplier,CREDIT,5871,KAAA-Directorate of Economic Growth and Neighbourhood Services
RBC Legal Entity,04/04/2022,4663952,275520,BERKSHIRE ROOMS,Bed and Breakfast,-48,Rents,Third Party Supplier,CREDIT,5871,KAAA-Directorate of Economic Growth and Neighbourhood Services
RBC Legal Entity,04/04/2022,4664511,275520,BERKSHIRE ROOMS,Bed and Breakfast,-600,Rents,Third Party Supplier,CREDIT,5871,KAAA-Directorate of Economic Growth and Neighbourhood Services
RBC Legal Entity,04/04/2022,4657602,275521,CLAIRGLOW HEATING LTD,MRA Account,19123.02,Boilers + Heating Systems,SUB-CONTRACTOR,STANDARD,5975,HAAA-Housing Revenue Account
RBC Legal Entity,04/04/2022,4657461,275522,TOGETHER FOR MENTAL WELLBEING SUPPORT SERVICES LTD,ASC Voluntary Grants,40250,GrantsVolunt.Organ.,SUPPLIER,STANDARD,5300,JAAA-Directorate of Social Care and Health Services
RBC Legal Entity,04/04/2022,4664147,275525,SALIS CARE LTD,PS Acquired Community Services,4753.56,Purchased Care,SUPPLIER,STANDARD,5771,JAAA-Directorate of Social Care and Health Services
RBC Legal Entity,04/04/2022,4656990,275526,MISS CLAIRE FOX,JLT Disbursements,710,Misc. Legal Expenses,Third Party Supplier,STANDARD,2407,LAAA-Directorate of Resources
RBC Legal Entity,04/04/2022,4657684,275528,THE MODERN FAMILY LAW COMPANY,JLT Disbursements,1600,Misc. Legal Expenses,Third Party Supplier,STANDARD,2407,LAAA-Directorate of Resources
RBC Legal Entity,04/04/2022,4665291,275528,THE MODERN FAMILY LAW COMPANY,JLT Disbursements,-1450,Misc. Legal Expenses,Third Party Supplier,CREDIT,2407,LAAA-Directorate of Resources
RBC Legal Entity,04/04/2022,4659902,275529,MPS COMPANIES LTD,Drainage,150,Materials Direct,Third Party Supplier,STANDARD,4104,KAAA-Directorate of Economic Growth and Neighbourhood Services
RBC Legal Entity,04/04/2022,4659902,275529,MPS COMPANIES LTD,Drainage,540,Materials Direct,Third Party Supplier,STANDARD,4104,KAAA-Directorate of Economic Growth and Neighbourhood Services
RBC Legal Entity,04/04/2022,4659902,275529,MPS COMPANIES LTD,Drainage,749.99,Materials Direct,Third Party Supplier,STANDARD,4104,KAAA-Directorate of Economic Growth and Neighbourhood Services
RBC Legal Entity,04/04/2022,4662127,275530,GLENMAN CORPORATION LTD,HRA portfolio expansion,134516.21,External Fees  Misc.,SUB-CONTRACTOR,STANDARD,8518,ZZZC-Capital
RBC Legal Entity,04/04/2022,4662527,275531,DR UNA MCDERMOTT,JLT Disbursements,583.2,Misc. Legal Expenses,Third Party Supplier,STANDARD,2407,LAAA-Directorate of Resources
RBC Legal Entity,04/04/2022,4656958,275532,VISITOR INSIGHTS LTD,HSHAZ programme,5000,Professional Fees,Third Party Supplier,STANDARD,1316,KAAA-Directorate of Economic Growth and Neighbourhood Services
RBC Legal Entity,04/04/2022,4662445,275533,BANNER GROUP LTD,Buildings Payroll,1335.79,Stationery  Consumables,Third Party Supplier,STANDARD,3390,KAAA-Directorate of Economic Growth and Neighbourhood Services
RBC Legal Entity,04/04/2022,4658762,275534,STEEL SOCIAL WORK LTD,JLT Disbursements,2636,Misc. Legal Expenses,Third Party Supplier,STANDARD,2407,LAAA-Directorate of Resources
RBC Legal Entity,04/04/2022,4660021,275536,MILESTONE INFRASTRUCTURE LTD,Safer Community Unit,30000,Special Measures Expenses,SUB-CONTRACTOR,STANDARD,5365,KAAA-Directorate of Economic Growth and Neighbourhood Services
RBC Legal Entity,04/04/2022,4657725,275540,GBS CORPORATE TRAINING LTD,Corporate Organisational Development,1200,Training & Development Costs,Third Party Supplier,STANDARD,3435,LAAA-Directorate of Resources
RBC Legal Entity,04/04/2022,4659904,275542,MACRO ART LTD,HRA portfolio expansion,19710,External Fees  Misc.,Third Party Supplier,STANDARD,8518,ZZZC-Capital
RBC Legal Entity,04/04/2022,4660370,275543,REDACTIVE EVENTS LTD,Accountancy,595,Conference Expenses,Third Party Supplier,STANDARD,2200,LAAA-Directorate of Resources
RBC Legal Entity,04/04/2022,4661204,275543,REDACTIVE EVENTS LTD,Accountancy,545,Conference Expenses,Third Party Supplier,STANDARD,2200,LAAA-Directorate of Resources
RBC Legal Entity,04/04/2022,4656991,275544,SUZANNE KELLY,JLT Disbursements,1100,Misc. Legal Expenses,INDIVIDUAL,STANDARD,2407,LAAA-Directorate of Resources
RBC Legal Entity,04/04/2022,4657441,275549,WEST BERKSHIRE COUNCIL,"Sites, Monuments & Records",484,Other Office Expenses,GOVERNMENT,STANDARD,1259,KAAA-Directorate of Economic Growth and Neighbourhood Services
RBC Legal Entity,04/04/2022,4657688,275549,WEST BERKSHIRE COUNCIL,Emergency Planning,3875,Joint Arrangements,GOVERNMENT,STANDARD,2030,LAAA-Directorate of Resources
RBC Legal Entity,04/04/2022,4662210,275551,FELTHAM CONSTRUCTION LTD,HRA portfolio expansion,6310.82,External Fees  Misc.,SUB-CONTRACTOR,STANDARD,8518,ZZZC-Capital
RBC Legal Entity,04/04/2022,4662210,275551,FELTHAM CONSTRUCTION LTD,HRA portfolio expansion,63809.4,External Fees  Misc.,SUB-CONTRACTOR,STANDARD,8518,ZZZC-Capital
RBC Legal Entity,04/04/2022,4657469,275553,M&R SERVICES,Repairs,900,Estate Maintenance,SUB-CONTRACTOR,STANDARD,5970,HAAA-Housing Revenue Account
RBC Legal Entity,04/04/2022,4657834,275556,KEYLINE CIVILS SPECIALIST LTD,Highways,433.92,Materials Direct,Third Party Supplier,STANDARD,4252,KAAA-Directorate of Economic Growth and Neighbourhood Services
RBC Legal Entity,04/04/2022,4657572,275557,SOUTH EAST EMPLOYERS,IT Management,908,Subscriptions,SUPPLIER,STANDARD,2300,EAAA-Chief Executive
RBC Legal Entity,04/04/2022,4663771,275560,WSP UK LTD,HRA portfolio expansion,7500,External Fees  Misc.,SUPPLIER,STANDARD,8518,ZZZC-Capital
RBC Legal Entity,04/04/2022,4663771,275560,WSP UK LTD,HRA portfolio expansion,7500,External Fees  Misc.,SUPPLIER,STANDARD,8518,ZZZC-Capital
RBC Legal Entity,04/04/2022,4657460,275561,CAPITA BUSINESS SERVICES LTD,IT Management,162406.91,Software Support,Third Party Supplier,STANDARD,2300,EAAA-Chief Executive
RBC Legal Entity,04/04/2022,4657785,275561,CAPITA BUSINESS SERVICES LTD,Housing Benefits,18146.66,TPP  Contract,Third Party Supplier,STANDARD,2265,LAAA-Directorate of Resources
RBC Legal Entity,04/04/2022,4657692,275566,TFG GROUP LIMITED,Corporate Maintenance Services,102.83,Leasing Costs,SUPPLIER,STANDARD,4080,KAAA-Directorate of Economic Growth and Neighbourhood Services
RBC Legal Entity,04/04/2022,4657692,275566,TFG GROUP LIMITED,Corporate Maintenance Services,1897.34,TPP  Contract,SUPPLIER,STANDARD,4080,KAAA-Directorate of Economic Growth and Neighbourhood Services
RBC Legal Entity,04/04/2022,4664551,275567,COLEY PARK COMMUNITY ASSOCIATION,Voluntary Sector & Community Grants,2500,GrantsVolunt.Organ.,Third Party Supplier,STANDARD,2041,LAAA-Directorate of Resources
RBC Legal Entity,04/04/2022,4664552,275567,COLEY PARK COMMUNITY ASSOCIATION,Voluntary Sector & Community Grants,2500,GrantsVolunt.Organ.,Third Party Supplier,STANDARD,2041,LAAA-Directorate of Resources
RBC Legal Entity,04/04/2022,4659951,275570,BOWAK LTD,Building Cleaning,1048.66,Materials from Store,Third Party Supplier,STANDARD,4351,KAAA-Directorate of Economic Growth and Neighbourhood Services
RBC Legal Entity,04/04/2022,4659621,275571,TREVAL CLEANING SERVICES,South Street Catering,1827,Office Cleaning,SUPPLIER,STANDARD,1243,KAAA-Directorate of Economic Growth and Neighbourhood Services
RBC Legal Entity,04/04/2022,4657405,275573,AMBLEGLOW,Traffic,820,Traffic Orders,Third Party Supplier,STANDARD,4703,KAAA-Directorate of Economic Growth and Neighbourhood Services
RBC Legal Entity,04/04/2022,4657406,275573,AMBLEGLOW,Traffic,885,Traffic Orders,Third Party Supplier,STANDARD,4703,KAAA-Directorate of Economic Growth and Neighbourhood Services
RBC Legal Entity,04/04/2022,4657407,275573,AMBLEGLOW,Traffic,622,Traffic Orders,Third Party Supplier,STANDARD,4703,KAAA-Directorate of Economic Growth and Neighbourhood Services
RBC Legal Entity,04/04/2022,4657408,275573,AMBLEGLOW,Civil Engineering,622,H.M.Planned,Third Party Supplier,STANDARD,4550,KAAA-Directorate of Economic Growth and Neighbourhood Services
RBC Legal Entity,04/04/2022,4657409,275573,AMBLEGLOW,Traffic,622,Traffic Orders,Third Party Supplier,STANDARD,4703,KAAA-Directorate of Economic Growth and Neighbourhood Services
RBC Legal Entity,04/04/2022,4660444,275575,RADIS COMMUNITY CARE,PS Lifelong Community Services,9419.48,Purchased Care,Third Party Supplier,STANDARD,5781,JAAA-Directorate of Social Care and Health Services
RBC Legal Entity,04/04/2022,4657944,275576,TYCO INTERNATIONAL LTD,LEP Projects,6965.7,Contractors,SUB-CONTRACTOR,STANDARD,8806,ZZZC-Capital
RBC Legal Entity,04/04/2022,4656932,275577,EARTH ANCHORS LTD,Grounds Maintenance,28.2,Materials Direct,Third Party Supplier,STANDARD,1306,KAAA-Directorate of Economic Growth and Neighbourhood Services
RBC Legal Entity,04/04/2022,4656932,275577,EARTH ANCHORS LTD,Grounds Maintenance,49.8,Materials Direct,Third Party Supplier,STANDARD,1306,KAAA-Directorate of Economic Growth and Neighbourhood Services
RBC Legal Entity,04/04/2022,4656932,275577,EARTH ANCHORS LTD,Grounds Maintenance,354,Materials Direct,Third Party Supplier,STANDARD,1306,KAAA-Directorate of Economic Growth and Neighbourhood Services
RBC Legal Entity,04/04/2022,4656932,275577,EARTH ANCHORS LTD,Grounds Maintenance,625,Materials Direct,Third Party Supplier,STANDARD,1306,KAAA-Directorate of Economic Growth and Neighbourhood Services
RBC Legal Entity,04/04/2022,4663949,275578,ROWVALE HOTELS LTD T/A BOW GUEST HOUSE,Housing GF General Charges,623,Preventive+SupportiveServ,Third Party Supplier,STANDARD,5810,KAAA-Directorate of Economic Growth and Neighbourhood Services
RBC Legal Entity,04/04/2022,4663971,275578,ROWVALE HOTELS LTD T/A BOW GUEST HOUSE,Single Homelessness Grants,595,Preventive+SupportiveServ,Third Party Supplier,STANDARD,5860,KAAA-Directorate of Economic Growth and Neighbourhood Services
RBC Legal Entity,04/04/2022,4663986,275578,ROWVALE HOTELS LTD T/A BOW GUEST HOUSE,Single Homelessness Grants,525,Preventive+SupportiveServ,Third Party Supplier,STANDARD,5860,KAAA-Directorate of Economic Growth and Neighbourhood Services
RBC Legal Entity,04/04/2022,4663987,275578,ROWVALE HOTELS LTD T/A BOW GUEST HOUSE,Single Homelessness Grants,525,Preventive+SupportiveServ,Third Party Supplier,STANDARD,5860,KAAA-Directorate of Economic Growth and Neighbourhood Services
RBC Legal Entity,04/04/2022,4664380,275578,ROWVALE HOTELS LTD T/A BOW GUEST HOUSE,Bed and Breakfast,595,Rents,Third Party Supplier,STANDARD,5871,KAAA-Directorate of Economic Growth and Neighbourhood Services
RBC Legal Entity,04/04/2022,4664381,275578,ROWVALE HOTELS LTD T/A BOW GUEST HOUSE,Bed and Breakfast,553,Rents,Third Party Supplier,STANDARD,5871,KAAA-Directorate of Economic Growth and Neighbourhood Services
RBC Legal Entity,04/04/2022,4664383,275578,ROWVALE HOTELS LTD T/A BOW GUEST HOUSE,Bed and Breakfast,525,Rents,Third Party Supplier,STANDARD,5871,KAAA-Directorate of Economic Growth and Neighbourhood Services
RBC Legal Entity,04/04/2022,4664384,275578,ROWVALE HOTELS LTD T/A BOW GUEST HOUSE,Bed and Breakfast,525,Rents,Third Party Supplier,STANDARD,5871,KAAA-Directorate of Economic Growth and Neighbourhood Services
RBC Legal Entity,04/04/2022,4662118,275579,THAMES WATER UTILITIES LTD,Temporary Accommodation HRA,6390.93,Water and Sewerage,SUB-CONTRACTOR,STANDARD,5930,HAAA-Housing Revenue Account
RBC Legal Entity,04/04/2022,4657431,275582,WOKINGHAM BOROUGH COUNCIL,Traffic,8626.95,Leasing Costs,Third Party Supplier,STANDARD,4703,KAAA-Directorate of Economic Growth and Neighbourhood Services
RBC Legal Entity,04/04/2022,4657471,275582,WOKINGHAM BOROUGH COUNCIL,Traffic,8626.95,Leasing Costs,Third Party Supplier,STANDARD,4703,KAAA-Directorate of Economic Growth and Neighbourhood Services
RBC Legal Entity,04/04/2022,4657487,275582,WOKINGHAM BOROUGH COUNCIL,Traffic,-8626.95,Leasing Costs,Third Party Supplier,CREDIT,4703,KAAA-Directorate of Economic Growth and Neighbourhood Services
RBC Legal Entity,04/04/2022,4659880,275584,VERMATECH PEST CONTROL,Repairs,720,Estate Maintenance,Third Party Supplier,STANDARD,5970,HAAA-Housing Revenue Account
RBC Legal Entity,04/04/2022,4659897,275584,VERMATECH PEST CONTROL,Repairs,480,Estate Maintenance,Third Party Supplier,STANDARD,5970,HAAA-Housing Revenue Account
RBC Legal Entity,04/04/2022,4664433,275586,READING HOTEL,Bed and Breakfast,490,Rents,SUPPLIER,STANDARD,5871,KAAA-Directorate of Economic Growth and Neighbourhood Services
RBC Legal Entity,04/04/2022,4664433,275586,READING HOTEL,Bed and Breakfast,3465,Rents,SUPPLIER,STANDARD,5871,KAAA-Directorate of Economic Growth and Neighbourhood Services
RBC Legal Entity,04/04/2022,4659854,275588,EVERYCARE READING,Charles Clore Court,1358.46,Agency Staff,SUPPLIER,STANDARD,5157,JAAA-Directorate of Social Care and Health Services
RBC Legal Entity,04/04/2022,4657979,275589,MISS SARA GRANSHAW,JLT Disbursements,950,Misc. Legal Expenses,SUPPLIER,STANDARD,2407,LAAA-Directorate of Resources
RBC Legal Entity,04/04/2022,4657984,275591,MR STEPHEN CRISPIN,JLT Disbursements,550,Misc. Legal Expenses,SUPPLIER,STANDARD,2407,LAAA-Directorate of Resources
RBC Legal Entity,04/04/2022,4657999,275591,MR STEPHEN CRISPIN,JLT Disbursements,600,Misc. Legal Expenses,SUPPLIER,STANDARD,2407,LAAA-Directorate of Resources
RBC Legal Entity,04/04/2022,4658185,275591,MR STEPHEN CRISPIN,JLT Disbursements,600,Misc. Legal Expenses,SUPPLIER,STANDARD,2407,LAAA-Directorate of Resources
RBC Legal Entity,04/04/2022,4658800,275591,MR STEPHEN CRISPIN,JLT Disbursements,550,Misc. Legal Expenses,SUPPLIER,STANDARD,2407,LAAA-Directorate of Resources
RBC Legal Entity,04/04/2022,4664546,275592,ALLIANCE FOR COHESION & RACIAL EQUALITY,Voluntary Sector & Community Grants,10000,GrantsVolunt.Organ.,SUPPLIER,STANDARD,2041,LAAA-Directorate of Resources
RBC Legal Entity,04/04/2022,4657680,275594,NEIL CURTIS FUNERAL CONTRACTOR,Grounds Maintenance,855,TPP to Others,SUPPLIER,STANDARD,1306,KAAA-Directorate of Economic Growth and Neighbourhood Services
RBC Legal Entity,04/04/2022,4658092,275595,REED,BFFC Agency Staff (Rechargeable),4.05,Agency Staff,Third Party Supplier,STANDARD,2008,LAAA-Directorate of Resources
RBC Legal Entity,04/04/2022,4658092,275595,REED,Mental Health Team,4.5,Agency Staff,Third Party Supplier,STANDARD,5253,JAAA-Directorate of Social Care and Health Services
RBC Legal Entity,04/04/2022,4658092,275595,REED,ASC Short Term Team,6.3,Agency Staff,Third Party Supplier,STANDARD,5722,JAAA-Directorate of Social Care and Health Services
RBC Legal Entity,04/04/2022,4658092,275595,REED,BFFC Agency Staff (Rechargeable),7.97,Agency Staff,Third Party Supplier,STANDARD,2008,LAAA-Directorate of Resources
RBC Legal Entity,04/04/2022,4658092,275595,REED,ASC Short Term Team,8.1,Agency Staff,Third Party Supplier,STANDARD,5722,JAAA-Directorate of Social Care and Health Services
RBC Legal Entity,04/04/2022,4658092,275595,REED,Commissioning Team,9.9,Agency Staff,Third Party Supplier,STANDARD,3452,JAAA-Directorate of Social Care and Health Services
RBC Legal Entity,04/04/2022,4658092,275595,REED,ASC Short Term Team,10.8,Agency Staff,Third Party Supplier,STANDARD,5722,JAAA-Directorate of Social Care and Health Services
RBC Legal Entity,04/04/2022,4658092,275595,REED,BFFC Agency Staff (Rechargeable),13.5,Agency Staff,Third Party Supplier,STANDARD,2008,LAAA-Directorate of Resources
RBC Legal Entity,04/04/2022,4658092,275595,REED,Transformation,14.4,Agency Staff,Third Party Supplier,STANDARD,5289,JAAA-Directorate of Social Care and Health Services
RBC Legal Entity,04/04/2022,4658092,275595,REED,BFFC Agency Staff (Rechargeable),14.4,Agency Staff,Third Party Supplier,STANDARD,2008,LAAA-Directorate of Resources
RBC Legal Entity,04/04/2022,4658092,275595,REED,BFFC Agency Staff (Rechargeable),16,Agency Staff,Third Party Supplier,STANDARD,2008,LAAA-Directorate of Resources
RBC Legal Entity,04/04/2022,4658092,275595,REED,ASC Short Term Team,17.1,Agency Staff,Third Party Supplier,STANDARD,5722,JAAA-Directorate of Social Care and Health Services
RBC Legal Entity,04/04/2022,4658092,275595,REED,ASC Short Term Team,19.35,Agency Staff,Third Party Supplier,STANDARD,5722,JAAA-Directorate of Social Care and Health Services
RBC Legal Entity,04/04/2022,4658092,275595,REED,BFFC Agency Staff (Rechargeable),20.83,Agency Staff,Third Party Supplier,STANDARD,2008,LAAA-Directorate of Resources
RBC Legal Entity,04/04/2022,4658092,275595,REED,Mental Health Team,22.5,Agency Staff,Third Party Supplier,STANDARD,5253,JAAA-Directorate of Social Care and Health Services
RBC Legal Entity,04/04/2022,4658092,275595,REED,ASC Short Term Team,24.3,Agency Staff,Third Party Supplier,STANDARD,5722,JAAA-Directorate of Social Care and Health Services
RBC Legal Entity,04/04/2022,4658092,275595,REED,ASC Short Term Team,35.63,Agency Staff,Third Party Supplier,STANDARD,5722,JAAA-Directorate of Social Care and Health Services
RBC Legal Entity,04/04/2022,4658092,275595,REED,Civil Engineering,54,Agency Staff,Third Party Supplier,STANDARD,4550,KAAA-Directorate of Economic Growth and Neighbourhood Services
RBC Legal Entity,04/04/2022,4658092,275595,REED,ASC Short Term Team,69.88,Agency Staff,Third Party Supplier,STANDARD,5722,JAAA-Directorate of Social Care and Health Services
RBC Legal Entity,04/04/2022,4658092,275595,REED,Mental Health Team,80.1,Agency Staff,Third Party Supplier,STANDARD,5253,JAAA-Directorate of Social Care and Health Services
RBC Legal Entity,04/04/2022,4658092,275595,REED,BFFC Agency Staff (Rechargeable),92.7,Agency Staff,Third Party Supplier,STANDARD,2008,LAAA-Directorate of Resources
RBC Legal Entity,04/04/2022,4658092,275595,REED,ASC Locality Team,99.45,Agency Staff,Third Party Supplier,STANDARD,5721,JAAA-Directorate of Social Care and Health Services
RBC Legal Entity,04/04/2022,4658092,275595,REED,BFFC Agency Staff (Rechargeable),100.35,Agency Staff,Third Party Supplier,STANDARD,2008,LAAA-Directorate of Resources
RBC Legal Entity,04/04/2022,4658092,275595,REED,BFFC Agency Staff (Rechargeable),105.75,Agency Staff,Third Party Supplier,STANDARD,2008,LAAA-Directorate of Resources
RBC Legal Entity,04/04/2022,4658092,275595,REED,ASC Short Term Team,108,Agency Staff,Third Party Supplier,STANDARD,5722,JAAA-Directorate of Social Care and Health Services
RBC Legal Entity,04/04/2022,4658092,275595,REED,Lateral Flow Testing,151.66,Agency Staff,Third Party Supplier,STANDARD,2701,LAAA-Directorate of Resources
RBC Legal Entity,04/04/2022,4658092,275595,REED,BFFC Agency Staff (Rechargeable),164.25,Agency Staff,Third Party Supplier,STANDARD,2008,LAAA-Directorate of Resources
RBC Legal Entity,04/04/2022,4658092,275595,REED,ASC Locality Team,174.6,Agency Staff,Third Party Supplier,STANDARD,5721,JAAA-Directorate of Social Care and Health Services
RBC Legal Entity,04/04/2022,4658092,275595,REED,BFFC Agency Staff (Rechargeable),191.63,Agency Staff,Third Party Supplier,STANDARD,2008,LAAA-Directorate of Resources
RBC Legal Entity,04/04/2022,4658092,275595,REED,BFFC Agency Staff (Rechargeable),219,Agency Staff,Third Party Supplier,STANDARD,2008,LAAA-Directorate of Resources
RBC Legal Entity,04/04/2022,4658092,275595,REED,BFFC Agency Staff (Rechargeable),219,Agency Staff,Third Party Supplier,STANDARD,2008,LAAA-Directorate of Resources
RBC Legal Entity,04/04/2022,4658092,275595,REED,BFFC Agency Staff (Rechargeable),219,Agency Staff,Third Party Supplier,STANDARD,2008,LAAA-Directorate of Resources
RBC Legal Entity,04/04/2022,4658092,275595,REED,BFFC Agency Staff (Rechargeable),219,Agency Staff,Third Party Supplier,STANDARD,2008,LAAA-Directorate of Resources
RBC Legal Entity,04/04/2022,4658092,275595,REED,BFFC Agency Staff (Rechargeable),219,Agency Staff,Third Party Supplier,STANDARD,2008,LAAA-Directorate of Resources
RBC Legal Entity,04/04/2022,4658092,275595,REED,BFFC Agency Staff (Rechargeable),219,Agency Staff,Third Party Supplier,STANDARD,2008,LAAA-Directorate of Resources
RBC Legal Entity,04/04/2022,4658092,275595,REED,Lord Lieutenant,223.29,Agency Staff,Third Party Supplier,STANDARD,2510,EAAA-Chief Executive
RBC Legal Entity,04/04/2022,4658092,275595,REED,BFFC Agency Staff (Rechargeable),246.38,Agency Staff,Third Party Supplier,STANDARD,2008,LAAA-Directorate of Resources
RBC Legal Entity,04/04/2022,4658092,275595,REED,Customer Services - Reception,249.73,Agency Staff,Third Party Supplier,STANDARD,2595,LAAA-Directorate of Resources
RBC Legal Entity,04/04/2022,4658092,275595,REED,BFFC Agency Staff (Rechargeable),273.75,Agency Staff,Third Party Supplier,STANDARD,2008,LAAA-Directorate of Resources
RBC Legal Entity,04/04/2022,4658092,275595,REED,BFFC Agency Staff (Rechargeable),273.75,Agency Staff,Third Party Supplier,STANDARD,2008,LAAA-Directorate of Resources
RBC Legal Entity,04/04/2022,4658092,275595,REED,BFFC Agency Staff (Rechargeable),273.75,Agency Staff,Third Party Supplier,STANDARD,2008,LAAA-Directorate of Resources
RBC Legal Entity,04/04/2022,4658092,275595,REED,BFFC Agency Staff (Rechargeable),273.75,Agency Staff,Third Party Supplier,STANDARD,2008,LAAA-Directorate of Resources
RBC Legal Entity,04/04/2022,4658092,275595,REED,BFFC Agency Staff (Rechargeable),273.75,Agency Staff,Third Party Supplier,STANDARD,2008,LAAA-Directorate of Resources
RBC Legal Entity,04/04/2022,4658092,275595,REED,BFFC Agency Staff (Rechargeable),273.75,Agency Staff,Third Party Supplier,STANDARD,2008,LAAA-Directorate of Resources
RBC Legal Entity,04/04/2022,4658092,275595,REED,BFFC Agency Staff (Rechargeable),273.75,Agency Staff,Third Party Supplier,STANDARD,2008,LAAA-Directorate of Resources
RBC Legal Entity,04/04/2022,4658092,275595,REED,BFFC Agency Staff (Rechargeable),273.75,Agency Staff,Third Party Supplier,STANDARD,2008,LAAA-Directorate of Resources
RBC Legal Entity,04/04/2022,4658092,275595,REED,BFFC Agency Staff (Rechargeable),273.75,Agency Staff,Third Party Supplier,STANDARD,2008,LAAA-Directorate of Resources
RBC Legal Entity,04/04/2022,4658092,275595,REED,BFFC Agency Staff (Rechargeable),273.75,Agency Staff,Third Party Supplier,STANDARD,2008,LAAA-Directorate of Resources
RBC Legal Entity,04/04/2022,4658092,275595,REED,BFFC Agency Staff (Rechargeable),273.75,Agency Staff,Third Party Supplier,STANDARD,2008,LAAA-Directorate of Resources
RBC Legal Entity,04/04/2022,4658092,275595,REED,BFFC Agency Staff (Rechargeable),273.75,Agency Staff,Third Party Supplier,STANDARD,2008,LAAA-Directorate of Resources
RBC Legal Entity,04/04/2022,4658092,275595,REED,BFFC Agency Staff (Rechargeable),273.75,Agency Staff,Third Party Supplier,STANDARD,2008,LAAA-Directorate of Resources
RBC Legal Entity,04/04/2022,4658092,275595,REED,BFFC Agency Staff (Rechargeable),273.75,Agency Staff,Third Party Supplier,STANDARD,2008,LAAA-Directorate of Resources
RBC Legal Entity,04/04/2022,4658092,275595,REED,Head of Housing,329.28,Agency Staff,Third Party Supplier,STANDARD,5910,HAAA-Housing Revenue Account
RBC Legal Entity,04/04/2022,4658092,275595,REED,Head of Housing,411.6,Agency Staff,Third Party Supplier,STANDARD,5910,HAAA-Housing Revenue Account
RBC Legal Entity,04/04/2022,4658092,275595,REED,Street Cleansing,425.49,Agency Staff,Third Party Supplier,STANDARD,4566,KAAA-Directorate of Economic Growth and Neighbourhood Services
RBC Legal Entity,04/04/2022,4658092,275595,REED,Street Cleansing,473.2,Agency Staff,Third Party Supplier,STANDARD,4566,KAAA-Directorate of Economic Growth and Neighbourhood Services
RBC Legal Entity,04/04/2022,4658092,275595,REED,Accountancy,489.96,Agency Staff,Third Party Supplier,STANDARD,2200,LAAA-Directorate of Resources
RBC Legal Entity,04/04/2022,4658092,275595,REED,Directorate Support,500.29,Agency Staff,Third Party Supplier,STANDARD,2036,LAAA-Directorate of Resources
RBC Legal Entity,04/04/2022,4658092,275595,REED,Housing Management,510.29,Agency Staff,Third Party Supplier,STANDARD,5920,HAAA-Housing Revenue Account
RBC Legal Entity,04/04/2022,4658092,275595,REED,Street Cleansing,525.2,Agency Staff,Third Party Supplier,STANDARD,4566,KAAA-Directorate of Economic Growth and Neighbourhood Services
RBC Legal Entity,04/04/2022,4658092,275595,REED,ASC Short Term Team,525.44,Agency Staff,Third Party Supplier,STANDARD,5722,JAAA-Directorate of Social Care and Health Services
RBC Legal Entity,04/04/2022,4658092,275595,REED,Procurement Services,557.39,Agency Staff,Third Party Supplier,STANDARD,2402,LAAA-Directorate of Resources
RBC Legal Entity,04/04/2022,4658092,275595,REED,Customer Services - Reception,562.21,Agency Staff,Third Party Supplier,STANDARD,2595,LAAA-Directorate of Resources
RBC Legal Entity,04/04/2022,4658092,275595,REED,Street Cleansing,563.29,Agency Staff,Third Party Supplier,STANDARD,4566,KAAA-Directorate of Economic Growth and Neighbourhood Services
RBC Legal Entity,04/04/2022,4658092,275595,REED,Customer Services - Reception,570.37,Agency Staff,Third Party Supplier,STANDARD,2595,LAAA-Directorate of Resources
RBC Legal Entity,04/04/2022,4658092,275595,REED,Refuse Collection,576.28,Agency Staff,Third Party Supplier,STANDARD,4561,KAAA-Directorate of Economic Growth and Neighbourhood Services
RBC Legal Entity,04/04/2022,4658092,275595,REED,Refuse Collection,592.3,Agency Staff,Third Party Supplier,STANDARD,4561,KAAA-Directorate of Economic Growth and Neighbourhood Services
RBC Legal Entity,04/04/2022,4658092,275595,REED,Refuse Collection,600.31,Agency Staff,Third Party Supplier,STANDARD,4561,KAAA-Directorate of Economic Growth and Neighbourhood Services
RBC Legal Entity,04/04/2022,4658092,275595,REED,Lateral Flow Testing,606.66,Agency Staff,Third Party Supplier,STANDARD,2701,LAAA-Directorate of Resources
RBC Legal Entity,04/04/2022,4658092,275595,REED,Head of Housing,617.4,Agency Staff,Third Party Supplier,STANDARD,5910,HAAA-Housing Revenue Account
RBC Legal Entity,04/04/2022,4658092,275595,REED,Buildings Payroll,626.11,Agency Staff,Third Party Supplier,STANDARD,3390,KAAA-Directorate of Economic Growth and Neighbourhood Services
RBC Legal Entity,04/04/2022,4658092,275595,REED,Exchequer Services,631.25,Agency Staff,Third Party Supplier,STANDARD,2210,LAAA-Directorate of Resources
RBC Legal Entity,04/04/2022,4658092,275595,REED,Head of Housing,658.56,Agency Staff,Third Party Supplier,STANDARD,5910,HAAA-Housing Revenue Account
RBC Legal Entity,04/04/2022,4658092,275595,REED,Street Cleansing,675.72,Agency Staff,Third Party Supplier,STANDARD,4566,KAAA-Directorate of Economic Growth and Neighbourhood Services
RBC Legal Entity,04/04/2022,4658092,275595,REED,Transformation,681.1,Agency Staff,Third Party Supplier,STANDARD,5289,JAAA-Directorate of Social Care and Health Services
RBC Legal Entity,04/04/2022,4658092,275595,REED,Parking & Enforcement,682.8,Agency Staff,Third Party Supplier,STANDARD,4725,KAAA-Directorate of Economic Growth and Neighbourhood Services
RBC Legal Entity,04/04/2022,4658092,275595,REED,Refuse Collection,692.35,Agency Staff,Third Party Supplier,STANDARD,4561,KAAA-Directorate of Economic Growth and Neighbourhood Services
RBC Legal Entity,04/04/2022,4658092,275595,REED,Street Cleansing,723.02,Agency Staff,Third Party Supplier,STANDARD,4566,KAAA-Directorate of Economic Growth and Neighbourhood Services
RBC Legal Entity,04/04/2022,4658092,275595,REED,Refuse Collection,732.18,Agency Staff,Third Party Supplier,STANDARD,4561,KAAA-Directorate of Economic Growth and Neighbourhood Services
RBC Legal Entity,04/04/2022,4658092,275595,REED,Head of Housing,740.88,Agency Staff,Third Party Supplier,STANDARD,5910,HAAA-Housing Revenue Account
RBC Legal Entity,04/04/2022,4658092,275595,REED,Lateral Flow Testing,758.32,Agency Staff,Third Party Supplier,STANDARD,2701,LAAA-Directorate of Resources
RBC Legal Entity,04/04/2022,4658092,275595,REED,Lateral Flow Testing,758.32,Agency Staff,Third Party Supplier,STANDARD,2701,LAAA-Directorate of Resources
RBC Legal Entity,04/04/2022,4658092,275595,REED,Lateral Flow Testing,758.32,Agency Staff,Third Party Supplier,STANDARD,2701,LAAA-Directorate of Resources
RBC Legal Entity,04/04/2022,4658092,275595,REED,ASC Short Term Team,773,Agency Staff,Third Party Supplier,STANDARD,5722,JAAA-Directorate of Social Care and Health Services
RBC Legal Entity,04/04/2022,4658092,275595,REED,BFFC Agency Staff (Rechargeable),794.95,Agency Staff,Third Party Supplier,STANDARD,2008,LAAA-Directorate of Resources
RBC Legal Entity,04/04/2022,4658092,275595,REED,BFFC Agency Staff (Rechargeable),838,Agency Staff,Third Party Supplier,STANDARD,2008,LAAA-Directorate of Resources
RBC Legal Entity,04/04/2022,4658092,275595,REED,Transformation,854.83,Agency Staff,Third Party Supplier,STANDARD,5289,JAAA-Directorate of Social Care and Health Services
RBC Legal Entity,04/04/2022,4658092,275595,REED,Transformation,861.6,Agency Staff,Third Party Supplier,STANDARD,5289,JAAA-Directorate of Social Care and Health Services
RBC Legal Entity,04/04/2022,4658092,275595,REED,ASC Short Term Team,900,Agency Staff,Third Party Supplier,STANDARD,5722,JAAA-Directorate of Social Care and Health Services
RBC Legal Entity,04/04/2022,4658092,275595,REED,ASC Short Term Team,900,Agency Staff,Third Party Supplier,STANDARD,5722,JAAA-Directorate of Social Care and Health Services
RBC Legal Entity,04/04/2022,4658092,275595,REED,BFFC Agency Staff (Rechargeable),987.75,Agency Staff,Third Party Supplier,STANDARD,2008,LAAA-Directorate of Resources
RBC Legal Entity,04/04/2022,4658092,275595,REED,Directorate Support,999.55,Agency Staff,Third Party Supplier,STANDARD,2036,LAAA-Directorate of Resources
RBC Legal Entity,04/04/2022,4658092,275595,REED,Joint Legal Team,1032.3,Agency Staff,Third Party Supplier,STANDARD,2405,LAAA-Directorate of Resources
RBC Legal Entity,04/04/2022,4658092,275595,REED,Mental Health Team,1042.25,Agency Staff,Third Party Supplier,STANDARD,5253,JAAA-Directorate of Social Care and Health Services
RBC Legal Entity,04/04/2022,4658092,275595,REED,Joint Legal Team,1136.2,Agency Staff,Third Party Supplier,STANDARD,2405,LAAA-Directorate of Resources
RBC Legal Entity,04/04/2022,4658092,275595,REED,BFFC Agency Staff (Rechargeable),1162.4,Agency Staff,Third Party Supplier,STANDARD,2008,LAAA-Directorate of Resources
RBC Legal Entity,04/04/2022,4658092,275595,REED,Joint Legal Team,1192.49,Agency Staff,Third Party Supplier,STANDARD,2405,LAAA-Directorate of Resources
RBC Legal Entity,04/04/2022,4658092,275595,REED,Legal Services,1218.39,Agency Staff,Third Party Supplier,STANDARD,2400,LAAA-Directorate of Resources
RBC Legal Entity,04/04/2022,4658092,275595,REED,Special Parking Area,1245.32,Agency Staff,Third Party Supplier,STANDARD,4724,KAAA-Directorate of Economic Growth and Neighbourhood Services
RBC Legal Entity,04/04/2022,4658092,275595,REED,BFFC Agency Staff (Rechargeable),1257,Agency Staff,Third Party Supplier,STANDARD,2008,LAAA-Directorate of Resources
RBC Legal Entity,04/04/2022,4658092,275595,REED,Registration,1281,Agency Staff,Third Party Supplier,STANDARD,4604,LAAA-Directorate of Resources
RBC Legal Entity,04/04/2022,4658092,275595,REED,Accountancy,1324.8,Agency Staff,Third Party Supplier,STANDARD,2200,LAAA-Directorate of Resources
RBC Legal Entity,04/04/2022,4658092,275595,REED,Safeguarding Adults,1328.3,Agency Staff,Third Party Supplier,STANDARD,5158,JAAA-Directorate of Social Care and Health Services
RBC Legal Entity,04/04/2022,4658092,275595,REED,ASC Locality Team,1328.3,Agency Staff,Third Party Supplier,STANDARD,5721,JAAA-Directorate of Social Care and Health Services
RBC Legal Entity,04/04/2022,4658092,275595,REED,ASC Locality Team,1328.3,Agency Staff,Third Party Supplier,STANDARD,5721,JAAA-Directorate of Social Care and Health Services
RBC Legal Entity,04/04/2022,4658092,275595,REED,BFFC Agency Staff (Rechargeable),1338.36,Agency Staff,Third Party Supplier,STANDARD,2008,LAAA-Directorate of Resources
RBC Legal Entity,04/04/2022,4658092,275595,REED,BFFC Agency Staff (Rechargeable),1338.36,Agency Staff,Third Party Supplier,STANDARD,2008,LAAA-Directorate of Resources
RBC Legal Entity,04/04/2022,4658092,275595,REED,Lateral Flow Testing,1341.16,Agency Staff,Third Party Supplier,STANDARD,2701,LAAA-Directorate of Resources
RBC Legal Entity,04/04/2022,4658092,275595,REED,Joint Legal Team,1345.05,Agency Staff,Third Party Supplier,STANDARD,2405,LAAA-Directorate of Resources
RBC Legal Entity,04/04/2022,4658092,275595,REED,Legal Services,1360.8,Agency Staff,Third Party Supplier,STANDARD,2400,LAAA-Directorate of Resources
RBC Legal Entity,04/04/2022,4658092,275595,REED,ASC Short Term Team,1402.3,Agency Staff,Third Party Supplier,STANDARD,5722,JAAA-Directorate of Social Care and Health Services
RBC Legal Entity,04/04/2022,4658092,275595,REED,ASC Short Term Team,1402.3,Agency Staff,Third Party Supplier,STANDARD,5722,JAAA-Directorate of Social Care and Health Services
RBC Legal Entity,04/04/2022,4658092,275595,REED,ASC Short Term Team,1402.3,Agency Staff,Third Party Supplier,STANDARD,5722,JAAA-Directorate of Social Care and Health Services
RBC Legal Entity,04/04/2022,4658092,275595,REED,Accountancy,1402.4,Agency Staff,Third Party Supplier,STANDARD,2200,LAAA-Directorate of Resources
RBC Legal Entity,04/04/2022,4658092,275595,REED,Food and Safety,1409.85,Agency Staff,Third Party Supplier,STANDARD,4614,KAAA-Directorate of Economic Growth and Neighbourhood Services
RBC Legal Entity,04/04/2022,4658092,275595,REED,ASC Short Term Team,1430.05,Agency Staff,Third Party Supplier,STANDARD,5722,JAAA-Directorate of Social Care and Health Services
RBC Legal Entity,04/04/2022,4658092,275595,REED,Mental Health Team,1439.3,Agency Staff,Third Party Supplier,STANDARD,5253,JAAA-Directorate of Social Care and Health Services
RBC Legal Entity,04/04/2022,4658092,275595,REED,ASC Short Term Team,1439.3,Agency Staff,Third Party Supplier,STANDARD,5722,JAAA-Directorate of Social Care and Health Services
RBC Legal Entity,04/04/2022,4658092,275595,REED,ASC Locality Team,1439.3,Agency Staff,Third Party Supplier,STANDARD,5721,JAAA-Directorate of Social Care and Health Services
RBC Legal Entity,04/04/2022,4658092,275595,REED,Mental Health Team,1448.55,Agency Staff,Third Party Supplier,STANDARD,5253,JAAA-Directorate of Social Care and Health Services
RBC Legal Entity,04/04/2022,4658092,275595,REED,Transformation,1458.75,Agency Staff,Third Party Supplier,STANDARD,5289,JAAA-Directorate of Social Care and Health Services
RBC Legal Entity,04/04/2022,4658092,275595,REED,ASC Short Term Team,1458.75,Agency Staff,Third Party Supplier,STANDARD,5722,JAAA-Directorate of Social Care and Health Services
RBC Legal Entity,04/04/2022,4658092,275595,REED,ASC Locality Team,1466.99,Agency Staff,Third Party Supplier,STANDARD,5721,JAAA-Directorate of Social Care and Health Services
RBC Legal Entity,04/04/2022,4658092,275595,REED,ASC Short Term Team,1476.3,Agency Staff,Third Party Supplier,STANDARD,5722,JAAA-Directorate of Social Care and Health Services
RBC Legal Entity,04/04/2022,4658092,275595,REED,ASC Locality Team,1508.4,Agency Staff,Third Party Supplier,STANDARD,5721,JAAA-Directorate of Social Care and Health Services
RBC Legal Entity,04/04/2022,4658092,275595,REED,ASC Short Term Team,1550.3,Agency Staff,Third Party Supplier,STANDARD,5722,JAAA-Directorate of Social Care and Health Services
RBC Legal Entity,04/04/2022,4658092,275595,REED,BFFC Agency Staff (Rechargeable),1550.3,Agency Staff,Third Party Supplier,STANDARD,2008,LAAA-Directorate of Resources
RBC Legal Entity,04/04/2022,4658092,275595,REED,Joint Legal Team,1560.55,Agency Staff,Third Party Supplier,STANDARD,2405,LAAA-Directorate of Resources
RBC Legal Entity,04/04/2022,4658092,275595,REED,ASC Locality Team,1580.4,Agency Staff,Third Party Supplier,STANDARD,5721,JAAA-Directorate of Social Care and Health Services
RBC Legal Entity,04/04/2022,4658092,275595,REED,ASC Locality Team,1581.73,Agency Staff,Third Party Supplier,STANDARD,5721,JAAA-Directorate of Social Care and Health Services
RBC Legal Entity,04/04/2022,4658092,275595,REED,ASC Short Term Team,1624.3,Agency Staff,Third Party Supplier,STANDARD,5722,JAAA-Directorate of Social Care and Health Services
RBC Legal Entity,04/04/2022,4658092,275595,REED,ASC Short Term Team,1624.3,Agency Staff,Third Party Supplier,STANDARD,5722,JAAA-Directorate of Social Care and Health Services
RBC Legal Entity,04/04/2022,4658092,275595,REED,ASC Short Term Team,1624.3,Agency Staff,Third Party Supplier,STANDARD,5722,JAAA-Directorate of Social Care and Health Services
RBC Legal Entity,04/04/2022,4658092,275595,REED,BFFC Agency Staff (Rechargeable),1624.3,Agency Staff,Third Party Supplier,STANDARD,2008,LAAA-Directorate of Resources
RBC Legal Entity,04/04/2022,4658092,275595,REED,BFFC Agency Staff (Rechargeable),1672.9,Agency Staff,Third Party Supplier,STANDARD,2008,LAAA-Directorate of Resources
RBC Legal Entity,04/04/2022,4658092,275595,REED,Civil Engineering,1681.15,Agency Staff,Third Party Supplier,STANDARD,4550,KAAA-Directorate of Economic Growth and Neighbourhood Services
RBC Legal Entity,04/04/2022,4658092,275595,REED,ASC Short Term Team,1695.51,Agency Staff,Third Party Supplier,STANDARD,5722,JAAA-Directorate of Social Care and Health Services
RBC Legal Entity,04/04/2022,4658092,275595,REED,ASC Senior Management Team,1755.6,Agency Staff,Third Party Supplier,STANDARD,5700,JAAA-Directorate of Social Care and Health Services
RBC Legal Entity,04/04/2022,4658092,275595,REED,ASC Short Term Team,1792.32,Agency Staff,Third Party Supplier,STANDARD,5722,JAAA-Directorate of Social Care and Health Services
RBC Legal Entity,04/04/2022,4658092,275595,REED,Legal Services,1800,Agency Staff,Third Party Supplier,STANDARD,2400,LAAA-Directorate of Resources
RBC Legal Entity,04/04/2022,4658092,275595,REED,BFFC Agency Staff (Rechargeable),1809.3,Agency Staff,Third Party Supplier,STANDARD,2008,LAAA-Directorate of Resources
RBC Legal Entity,04/04/2022,4658092,275595,REED,BFFC Agency Staff (Rechargeable),1809.3,Agency Staff,Third Party Supplier,STANDARD,2008,LAAA-Directorate of Resources
RBC Legal Entity,04/04/2022,4658092,275595,REED,BFFC Agency Staff (Rechargeable),1809.3,Agency Staff,Third Party Supplier,STANDARD,2008,LAAA-Directorate of Resources
RBC Legal Entity,04/04/2022,4658092,275595,REED,BFFC Agency Staff (Rechargeable),1809.3,Agency Staff,Third Party Supplier,STANDARD,2008,LAAA-Directorate of Resources
RBC Legal Entity,04/04/2022,4658092,275595,REED,BFFC Agency Staff (Rechargeable),1809.3,Agency Staff,Third Party Supplier,STANDARD,2008,LAAA-Directorate of Resources
RBC Legal Entity,04/04/2022,4658092,275595,REED,BFFC Agency Staff (Rechargeable),1809.3,Agency Staff,Third Party Supplier,STANDARD,2008,LAAA-Directorate of Resources
RBC Legal Entity,04/04/2022,4658092,275595,REED,BFFC Agency Staff (Rechargeable),1809.3,Agency Staff,Third Party Supplier,STANDARD,2008,LAAA-Directorate of Resources
RBC Legal Entity,04/04/2022,4658092,275595,REED,BFFC Agency Staff (Rechargeable),1809.3,Agency Staff,Third Party Supplier,STANDARD,2008,LAAA-Directorate of Resources
RBC Legal Entity,04/04/2022,4658092,275595,REED,BFFC Agency Staff (Rechargeable),1809.3,Agency Staff,Third Party Supplier,STANDARD,2008,LAAA-Directorate of Resources
RBC Legal Entity,04/04/2022,4658092,275595,REED,BFFC Agency Staff (Rechargeable),1809.3,Agency Staff,Third Party Supplier,STANDARD,2008,LAAA-Directorate of Resources
RBC Legal Entity,04/04/2022,4658092,275595,REED,BFFC Agency Staff (Rechargeable),1809.3,Agency Staff,Third Party Supplier,STANDARD,2008,LAAA-Directorate of Resources
RBC Legal Entity,04/04/2022,4658092,275595,REED,BFFC Agency Staff (Rechargeable),1809.3,Agency Staff,Third Party Supplier,STANDARD,2008,LAAA-Directorate of Resources
RBC Legal Entity,04/04/2022,4658092,275595,REED,BFFC Agency Staff (Rechargeable),1809.3,Agency Staff,Third Party Supplier,STANDARD,2008,LAAA-Directorate of Resources
RBC Legal Entity,04/04/2022,4658092,275595,REED,BFFC Agency Staff (Rechargeable),1809.3,Agency Staff,Third Party Supplier,STANDARD,2008,LAAA-Directorate of Resources
RBC Legal Entity,04/04/2022,4658092,275595,REED,BFFC Agency Staff (Rechargeable),1809.3,Agency Staff,Third Party Supplier,STANDARD,2008,LAAA-Directorate of Resources
RBC Legal Entity,04/04/2022,4658092,275595,REED,BFFC Agency Staff (Rechargeable),1809.3,Agency Staff,Third Party Supplier,STANDARD,2008,LAAA-Directorate of Resources
RBC Legal Entity,04/04/2022,4658092,275595,REED,BFFC Agency Staff (Rechargeable),1809.3,Agency Staff,Third Party Supplier,STANDARD,2008,LAAA-Directorate of Resources
RBC Legal Entity,04/04/2022,4658092,275595,REED,BFFC Agency Staff (Rechargeable),1809.3,Agency Staff,Third Party Supplier,STANDARD,2008,LAAA-Directorate of Resources
RBC Legal Entity,04/04/2022,4658092,275595,REED,BFFC Agency Staff (Rechargeable),1809.3,Agency Staff,Third Party Supplier,STANDARD,2008,LAAA-Directorate of Resources
RBC Legal Entity,04/04/2022,4658092,275595,REED,BFFC Agency Staff (Rechargeable),1809.3,Agency Staff,Third Party Supplier,STANDARD,2008,LAAA-Directorate of Resources
RBC Legal Entity,04/04/2022,4658092,275595,REED,BFFC Agency Staff (Rechargeable),1809.3,Agency Staff,Third Party Supplier,STANDARD,2008,LAAA-Directorate of Resources
RBC Legal Entity,04/04/2022,4658092,275595,REED,BFFC Agency Staff (Rechargeable),1809.3,Agency Staff,Third Party Supplier,STANDARD,2008,LAAA-Directorate of Resources
RBC Legal Entity,04/04/2022,4658092,275595,REED,BFFC Agency Staff (Rechargeable),1818.55,Agency Staff,Third Party Supplier,STANDARD,2008,LAAA-Directorate of Resources
RBC Legal Entity,04/04/2022,4658092,275595,REED,BFFC Agency Staff (Rechargeable),1818.55,Agency Staff,Third Party Supplier,STANDARD,2008,LAAA-Directorate of Resources
RBC Legal Entity,04/04/2022,4658092,275595,REED,BFFC Agency Staff (Rechargeable),1818.55,Agency Staff,Third Party Supplier,STANDARD,2008,LAAA-Directorate of Resources
RBC Legal Entity,04/04/2022,4658092,275595,REED,Joint Legal Team,1846.3,Agency Staff,Third Party Supplier,STANDARD,2405,LAAA-Directorate of Resources
RBC Legal Entity,04/04/2022,4658092,275595,REED,ASC Short Term Team,1911.74,Agency Staff,Third Party Supplier,STANDARD,5722,JAAA-Directorate of Social Care and Health Services
RBC Legal Entity,04/04/2022,4658092,275595,REED,ASC Short Term Team,1911.74,Agency Staff,Third Party Supplier,STANDARD,5722,JAAA-Directorate of Social Care and Health Services
RBC Legal Entity,04/04/2022,4658092,275595,REED,ASC Short Term Team,1959.51,Agency Staff,Third Party Supplier,STANDARD,5722,JAAA-Directorate of Social Care and Health Services
RBC Legal Entity,04/04/2022,4658092,275595,REED,Test and Trace,1982.8,Agency Staff,Third Party Supplier,STANDARD,2068,JAAA-Directorate of Social Care and Health Services
RBC Legal Entity,04/04/2022,4658092,275595,REED,BFFC Agency Staff (Rechargeable),2055.05,Agency Staff,Third Party Supplier,STANDARD,2008,LAAA-Directorate of Resources
RBC Legal Entity,04/04/2022,4658092,275595,REED,BFFC Agency Staff (Rechargeable),2055.05,Agency Staff,Third Party Supplier,STANDARD,2008,LAAA-Directorate of Resources
RBC Legal Entity,04/04/2022,4658092,275595,REED,IT Management,2176,Agency Staff,Third Party Supplier,STANDARD,2300,EAAA-Chief Executive
RBC Legal Entity,04/04/2022,4658092,275595,REED,Legal Services,2191.74,Agency Staff,Third Party Supplier,STANDARD,2400,LAAA-Directorate of Resources
RBC Legal Entity,04/04/2022,4658092,275595,REED,Joint Legal Team,2196,Agency Staff,Third Party Supplier,STANDARD,2405,LAAA-Directorate of Resources
RBC Legal Entity,04/04/2022,4658092,275595,REED,BFFC Agency Staff (Rechargeable),2276,Agency Staff,Third Party Supplier,STANDARD,2008,LAAA-Directorate of Resources
RBC Legal Entity,04/04/2022,4658092,275595,REED,Accountancy,2344.8,Agency Staff,Third Party Supplier,STANDARD,2200,LAAA-Directorate of Resources
RBC Legal Entity,04/04/2022,4658092,275595,REED,BFFC Agency Staff (Rechargeable),2344.8,Agency Staff,Third Party Supplier,STANDARD,2008,LAAA-Directorate of Resources
RBC Legal Entity,04/04/2022,4658092,275595,REED,Valuation,2351,Agency Staff,Third Party Supplier,STANDARD,2100,KAAA-Directorate of Economic Growth and Neighbourhood Services
RBC Legal Entity,04/04/2022,4658092,275595,REED,IT Management,2426,Agency Staff,Third Party Supplier,STANDARD,2300,EAAA-Chief Executive
RBC Legal Entity,04/04/2022,4658092,275595,REED,IT Management,2478.5,Agency Staff,Third Party Supplier,STANDARD,2300,EAAA-Chief Executive
RBC Legal Entity,04/04/2022,4658092,275595,REED,Legal Services,2607.75,Agency Staff,Third Party Supplier,STANDARD,2400,LAAA-Directorate of Resources
RBC Legal Entity,04/04/2022,4658092,275595,REED,IT Management,2676,Agency Staff,Third Party Supplier,STANDARD,2300,EAAA-Chief Executive
RBC Legal Entity,04/04/2022,4658092,275595,REED,IT Management,2676,Agency Staff,Third Party Supplier,STANDARD,2300,EAAA-Chief Executive
RBC Legal Entity,04/04/2022,4658092,275595,REED,Accountancy,2804.8,Agency Staff,Third Party Supplier,STANDARD,2200,LAAA-Directorate of Resources
RBC Legal Entity,04/04/2022,4658092,275595,REED,ASC Senior Management Team,3196,Agency Staff,Third Party Supplier,STANDARD,5700,JAAA-Directorate of Social Care and Health Services
RBC Legal Entity,04/04/2022,4658092,275595,REED,ASC Senior Management Team,3196,Agency Staff,Third Party Supplier,STANDARD,5700,JAAA-Directorate of Social Care and Health Services
RBC Legal Entity,04/04/2022,4658092,275595,REED,ASC Senior Management Team,3196,Agency Staff,Third Party Supplier,STANDARD,5700,JAAA-Directorate of Social Care and Health Services
RBC Legal Entity,04/04/2022,4658092,275595,REED,Accountancy,3218.5,Agency Staff,Third Party Supplier,STANDARD,2200,LAAA-Directorate of Resources
RBC Legal Entity,04/04/2022,4658092,275595,REED,Coroner,3321,Agency Staff,Third Party Supplier,STANDARD,4605,KAAA-Directorate of Economic Growth and Neighbourhood Services
RBC Legal Entity,04/04/2022,4658092,275595,REED,Coroner,3321,Agency Staff,Third Party Supplier,STANDARD,4605,KAAA-Directorate of Economic Growth and Neighbourhood Services
RBC Legal Entity,04/04/2022,4658092,275595,REED,Accountancy,3406,Agency Staff,Third Party Supplier,STANDARD,2200,LAAA-Directorate of Resources
RBC Legal Entity,04/04/2022,4658092,275595,REED,Accountancy,3406,Agency Staff,Third Party Supplier,STANDARD,2200,LAAA-Directorate of Resources
RBC Legal Entity,04/04/2022,4658092,275595,REED,BFFC Agency Staff (Rechargeable),3446,Agency Staff,Third Party Supplier,STANDARD,2008,LAAA-Directorate of Resources
RBC Legal Entity,04/04/2022,4658092,275595,REED,Accountancy,3506,Agency Staff,Third Party Supplier,STANDARD,2200,LAAA-Directorate of Resources
RBC Legal Entity,04/04/2022,4658092,275595,REED,Accountancy,3506,Agency Staff,Third Party Supplier,STANDARD,2200,LAAA-Directorate of Resources
RBC Legal Entity,04/04/2022,4658092,275595,REED,BFFC Agency Staff (Rechargeable),3544.4,Agency Staff,Third Party Supplier,STANDARD,2008,LAAA-Directorate of Resources
RBC Legal Entity,04/04/2022,4665251,275596,CIVICA UK LTD,Financial Services - Financial Systems Team,582.82,Software Licences,Third Party Supplier,STANDARD,2202,LAAA-Directorate of Resources
RBC Legal Entity,04/04/2022,4662310,275597,WDM LIMITED,Civil Engineering,1000,Software Licences,SUPPLIER,STANDARD,4550,KAAA-Directorate of Economic Growth and Neighbourhood Services
RBC Legal Entity,04/04/2022,4662310,275597,WDM LIMITED,Civil Engineering,3135,Software Licences,SUPPLIER,STANDARD,4550,KAAA-Directorate of Economic Growth and Neighbourhood Services
RBC Legal Entity,04/04/2022,4662310,275597,WDM LIMITED,Civil Engineering,9500,Software Licences,SUPPLIER,STANDARD,4550,KAAA-Directorate of Economic Growth and Neighbourhood Services
RBC Legal Entity,04/04/2022,4662310,275597,WDM LIMITED,Civil Engineering,10850,Software Licences,SUPPLIER,STANDARD,4550,KAAA-Directorate of Economic Growth and Neighbourhood Services
RBC Legal Entity,04/04/2022,4664559,275598,ELECTORAL REFORM SERVICES,Electoral Registration,1777.65,Printing + Duplicating,SUPPLIER,STANDARD,2440,LAAA-Directorate of Resources
RBC Legal Entity,04/04/2022,4656499,275599,SANDS SECURITY LTD,Hexagon Operations,672,Security Charges,SUPPLIER,STANDARD,1200,KAAA-Directorate of Economic Growth and Neighbourhood Services
RBC Legal Entity,04/04/2022,4657678,275599,SANDS SECURITY LTD,Hexagon Operations,714,Security Charges,SUPPLIER,STANDARD,1200,KAAA-Directorate of Economic Growth and Neighbourhood Services
RBC Legal Entity,04/04/2022,4659748,275599,SANDS SECURITY LTD,Hexagon Operations,1414,Security Charges,SUPPLIER,STANDARD,1200,KAAA-Directorate of Economic Growth and Neighbourhood Services
RBC Legal Entity,04/04/2022,4659606,275600,SOLON SECURITY LTD,Safer Community Unit,810,Special Measures Expenses,Third Party Supplier,STANDARD,5365,KAAA-Directorate of Economic Growth and Neighbourhood Services
RBC Legal Entity,04/04/2022,4659606,275600,SOLON SECURITY LTD,Safer Community Unit,9180,Special Measures Expenses,Third Party Supplier,STANDARD,5365,KAAA-Directorate of Economic Growth and Neighbourhood Services
RBC Legal Entity,04/04/2022,4660121,275602,M & B ELECTRICAL SERVICES,Caretakers Properties,891.25,Building Maintenance,SUB-CONTRACTOR,STANDARD,3700,KAAA-Directorate of Economic Growth and Neighbourhood Services
RBC Legal Entity,04/04/2022,4659389,275603,FLEETWOOD GRAB SERVICES LIMITED,Highways,560,Waste Disposal,Third Party Supplier,STANDARD,4252,KAAA-Directorate of Economic Growth and Neighbourhood Services
RBC Legal Entity,04/04/2022,4659389,275603,FLEETWOOD GRAB SERVICES LIMITED,Highways,560,Waste Disposal,Third Party Supplier,STANDARD,4252,KAAA-Directorate of Economic Growth and Neighbourhood Services
RBC Legal Entity,04/04/2022,4659389,275603,FLEETWOOD GRAB SERVICES LIMITED,Highways,840,Waste Disposal,Third Party Supplier,STANDARD,4252,KAAA-Directorate of Economic Growth and Neighbourhood Services
RBC Legal Entity,04/04/2022,4659389,275603,FLEETWOOD GRAB SERVICES LIMITED,Highways,918,Materials Direct,Third Party Supplier,STANDARD,4252,KAAA-Directorate of Economic Growth and Neighbourhood Services
RBC Legal Entity,04/04/2022,4659389,275603,FLEETWOOD GRAB SERVICES LIMITED,Highways,918,Materials Direct,Third Party Supplier,STANDARD,4252,KAAA-Directorate of Economic Growth and Neighbourhood Services
RBC Legal Entity,04/04/2022,4659389,275603,FLEETWOOD GRAB SERVICES LIMITED,Highways,1999,Materials Direct,Third Party Supplier,STANDARD,4252,KAAA-Directorate of Economic Growth and Neighbourhood Services
RBC Legal Entity,04/04/2022,4658221,275608,ENQUIN ENVIRONMENTAL LTD,Redlands Primary,897.5,External Fees  Misc.,SUPPLIER,STANDARD,8227,ZZZC-Capital
RBC Legal Entity,04/04/2022,4657985,275611,DEBORAH ORR,JLT Disbursements,1125.2,Misc. Legal Expenses,SUPPLIER,STANDARD,2407,LAAA-Directorate of Resources
RBC Legal Entity,04/04/2022,4657009,275612,NSL LIMITED,On Street Pay and Display,354,Equipment Purchase & Repair,Third Party Supplier,STANDARD,4727,KAAA-Directorate of Economic Growth and Neighbourhood Services
RBC Legal Entity,04/04/2022,4657009,275612,NSL LIMITED,On Street Pay and Display,1163,Equipment Purchase & Repair,Third Party Supplier,STANDARD,4727,KAAA-Directorate of Economic Growth and Neighbourhood Services
RBC Legal Entity,04/04/2022,4657009,275612,NSL LIMITED,On Street Pay and Display,1315,Equipment Purchase & Repair,Third Party Supplier,STANDARD,4727,KAAA-Directorate of Economic Growth and Neighbourhood Services
RBC Legal Entity,04/04/2022,4657624,275612,NSL LIMITED,Bus Lane Enforcement,1241.14,Leasing Costs,Third Party Supplier,STANDARD,4722,KAAA-Directorate of Economic Growth and Neighbourhood Services
RBC Legal Entity,04/04/2022,4657624,275612,NSL LIMITED,Special Parking Area,1241.15,Leasing Costs,Third Party Supplier,STANDARD,4724,KAAA-Directorate of Economic Growth and Neighbourhood Services
RBC Legal Entity,04/04/2022,4657624,275612,NSL LIMITED,Residents Parking,1241.15,Leasing Costs,Third Party Supplier,STANDARD,4723,KAAA-Directorate of Economic Growth and Neighbourhood Services
RBC Legal Entity,04/04/2022,4657624,275612,NSL LIMITED,Special Parking Area,2029.44,Leasing Costs,Third Party Supplier,STANDARD,4724,KAAA-Directorate of Economic Growth and Neighbourhood Services
RBC Legal Entity,04/04/2022,4657624,275612,NSL LIMITED,On Street Pay and Display,2898.57,Courier/Cash Collection Serv.,Third Party Supplier,STANDARD,4727,KAAA-Directorate of Economic Growth and Neighbourhood Services
RBC Legal Entity,04/04/2022,4657624,275612,NSL LIMITED,On Street Pay and Display,5121.39,EquiptMaintenanceContract,Third Party Supplier,STANDARD,4727,KAAA-Directorate of Economic Growth and Neighbourhood Services
RBC Legal Entity,04/04/2022,4664347,275614,ALLPAY.NET.LIMITED,Personal Budget Support Team,212.24,Stationery  Consumables,Third Party Supplier,STANDARD,5258,JAAA-Directorate of Social Care and Health Services
RBC Legal Entity,04/04/2022,4664347,275614,ALLPAY.NET.LIMITED,Personal Budget Support Team,761.8,Stationery  Consumables,Third Party Supplier,STANDARD,5258,JAAA-Directorate of Social Care and Health Services
RBC Legal Entity,04/04/2022,4657685,275617,MR EDWARD KIRKWOOD,JLT Disbursements,765,Misc. Legal Expenses,Third Party Supplier,STANDARD,2407,LAAA-Directorate of Resources
RBC Legal Entity,04/04/2022,4658054,275617,MR EDWARD KIRKWOOD,JLT Disbursements,765,Misc. Legal Expenses,Third Party Supplier,STANDARD,2407,LAAA-Directorate of Resources
RBC Legal Entity,04/04/2022,4658013,275618,MIRUS PROJECTS LIMITED,Repairs,1120,Special Adaptions,SUB-CONTRACTOR,STANDARD,5970,HAAA-Housing Revenue Account
RBC Legal Entity,04/04/2022,4658013,275618,MIRUS PROJECTS LIMITED,Repairs,1841,Special Adaptions,SUB-CONTRACTOR,STANDARD,5970,HAAA-Housing Revenue Account
RBC Legal Entity,04/04/2022,4664391,275619,DR PATRICK PURCELL,Safeguarding Adults,534.02,Training & Development Costs,INDIVIDUAL,STANDARD,5158,JAAA-Directorate of Social Care and Health Services
RBC Legal Entity,04/04/2022,4657561,275620,BELL BRUSH CLEANING & JANITORIAL SUPPLIES,Refuse Collection,118,Equipment Purchase & Repair,SUPPLIER,STANDARD,4561,KAAA-Directorate of Economic Growth and Neighbourhood Services
RBC Legal Entity,04/04/2022,4657561,275620,BELL BRUSH CLEANING & JANITORIAL SUPPLIES,Refuse Collection,118,Equipment Purchase & Repair,SUPPLIER,STANDARD,4561,KAAA-Directorate of Economic Growth and Neighbourhood Services
RBC Legal Entity,04/04/2022,4657561,275620,BELL BRUSH CLEANING & JANITORIAL SUPPLIES,Refuse Collection,371.25,Equipment Purchase & Repair,SUPPLIER,STANDARD,4561,KAAA-Directorate of Economic Growth and Neighbourhood Services
RBC Legal Entity,04/04/2022,4660445,275624,CREATIVE SUPPORT LTD,LD Community Services,3210.7,Purchased Care,Third Party Supplier,STANDARD,5741,JAAA-Directorate of Social Care and Health Services
RBC Legal Entity,04/04/2022,4660446,275624,CREATIVE SUPPORT LTD,LD Community Services,3657.55,Purchased Care,Third Party Supplier,STANDARD,5741,JAAA-Directorate of Social Care and Health Services
RBC Legal Entity,04/04/2022,4660821,275624,CREATIVE SUPPORT LTD,LD Community Services,2681.1,Purchased Care,Third Party Supplier,STANDARD,5741,JAAA-Directorate of Social Care and Health Services
RBC Legal Entity,04/04/2022,4660822,275624,CREATIVE SUPPORT LTD,LD Community Services,2681.1,Purchased Care,Third Party Supplier,STANDARD,5741,JAAA-Directorate of Social Care and Health Services
RBC Legal Entity,04/04/2022,4660823,275624,CREATIVE SUPPORT LTD,LD Community Services,3475.5,Purchased Care,Third Party Supplier,STANDARD,5741,JAAA-Directorate of Social Care and Health Services
RBC Legal Entity,04/04/2022,4660825,275624,CREATIVE SUPPORT LTD,LD Community Services,758.5,Purchased Care,Third Party Supplier,STANDARD,5741,JAAA-Directorate of Social Care and Health Services
RBC Legal Entity,04/04/2022,4660826,275624,CREATIVE SUPPORT LTD,PS Acquired Community Services,837.13,Purchased Care,Third Party Supplier,STANDARD,5771,JAAA-Directorate of Social Care and Health Services
RBC Legal Entity,04/04/2022,4660829,275624,CREATIVE SUPPORT LTD,PS Acquired Community Services,647.5,Purchased Care,Third Party Supplier,STANDARD,5771,JAAA-Directorate of Social Care and Health Services
RBC Legal Entity,04/04/2022,4660830,275624,CREATIVE SUPPORT LTD,PS Acquired Community Services,518,Purchased Care,Third Party Supplier,STANDARD,5771,JAAA-Directorate of Social Care and Health Services
RBC Legal Entity,04/04/2022,4660832,275624,CREATIVE SUPPORT LTD,PS Acquired Community Services,1554,Purchased Care,Third Party Supplier,STANDARD,5771,JAAA-Directorate of Social Care and Health Services
RBC Legal Entity,04/04/2022,4660833,275624,CREATIVE SUPPORT LTD,PS Acquired Community Services,721.5,Purchased Care,Third Party Supplier,STANDARD,5771,JAAA-Directorate of Social Care and Health Services
RBC Legal Entity,04/04/2022,4660834,275624,CREATIVE SUPPORT LTD,PS Acquired Community Services,610.5,Purchased Care,Third Party Supplier,STANDARD,5771,JAAA-Directorate of Social Care and Health Services
RBC Legal Entity,04/04/2022,4660836,275624,CREATIVE SUPPORT LTD,Mental Health Community Services,1387.5,Purchased Care,Third Party Supplier,STANDARD,5731,JAAA-Directorate of Social Care and Health Services
RBC Legal Entity,04/04/2022,4660837,275624,CREATIVE SUPPORT LTD,PS Acquired Community Services,647.5,Purchased Care,Third Party Supplier,STANDARD,5771,JAAA-Directorate of Social Care and Health Services
RBC Legal Entity,04/04/2022,4660839,275624,CREATIVE SUPPORT LTD,PS Acquired Community Services,629,Purchased Care,Third Party Supplier,STANDARD,5771,JAAA-Directorate of Social Care and Health Services
RBC Legal Entity,04/04/2022,4660840,275624,CREATIVE SUPPORT LTD,PS Acquired Community Services,2331,Purchased Care,Third Party Supplier,STANDARD,5771,JAAA-Directorate of Social Care and Health Services
RBC Legal Entity,04/04/2022,4660844,275624,CREATIVE SUPPORT LTD,PS Acquired Community Services,1942.5,Purchased Care,Third Party Supplier,STANDARD,5771,JAAA-Directorate of Social Care and Health Services
RBC Legal Entity,04/04/2022,4660846,275624,CREATIVE SUPPORT LTD,PS Acquired Community Services,4662,Purchased Care,Third Party Supplier,STANDARD,5771,JAAA-Directorate of Social Care and Health Services
RBC Legal Entity,04/04/2022,4660847,275624,CREATIVE SUPPORT LTD,PS Acquired Community Services,3108,Purchased Care,Third Party Supplier,STANDARD,5771,JAAA-Directorate of Social Care and Health Services
RBC Legal Entity,04/04/2022,4660848,275624,CREATIVE SUPPORT LTD,PS Acquired Community Services,1036,Purchased Care,Third Party Supplier,STANDARD,5771,JAAA-Directorate of Social Care and Health Services
RBC Legal Entity,04/04/2022,4660849,275624,CREATIVE SUPPORT LTD,PS Acquired Community Services,906.5,Purchased Care,Third Party Supplier,STANDARD,5771,JAAA-Directorate of Social Care and Health Services
RBC Legal Entity,04/04/2022,4660850,275624,CREATIVE SUPPORT LTD,PS Acquired Community Services,1221,Purchased Care,Third Party Supplier,STANDARD,5771,JAAA-Directorate of Social Care and Health Services
RBC Legal Entity,04/04/2022,4660852,275624,CREATIVE SUPPORT LTD,PS Acquired Community Services,832.5,Purchased Care,Third Party Supplier,STANDARD,5771,JAAA-Directorate of Social Care and Health Services
RBC Legal Entity,04/04/2022,4660853,275624,CREATIVE SUPPORT LTD,LD Community Services,573.5,Purchased Care,Third Party Supplier,STANDARD,5741,JAAA-Directorate of Social Care and Health Services
RBC Legal Entity,04/04/2022,4660273,275626,CROWN LODGE GUEST HOUSE,Housing GF General Charges,623,Preventive+SupportiveServ,Third Party Supplier,STANDARD,5810,KAAA-Directorate of Economic Growth and Neighbourhood Services
RBC Legal Entity,04/04/2022,4663819,275626,CROWN LODGE GUEST HOUSE,Single Homelessness Grants,665,Preventive+SupportiveServ,Third Party Supplier,STANDARD,5860,KAAA-Directorate of Economic Growth and Neighbourhood Services
RBC Legal Entity,04/04/2022,4663830,275626,CROWN LODGE GUEST HOUSE,Single Homelessness Grants,525,Preventive+SupportiveServ,Third Party Supplier,STANDARD,5860,KAAA-Directorate of Economic Growth and Neighbourhood Services
RBC Legal Entity,04/04/2022,4664430,275626,CROWN LODGE GUEST HOUSE,Bed and Breakfast,665,Rents,Third Party Supplier,STANDARD,5871,KAAA-Directorate of Economic Growth and Neighbourhood Services
RBC Legal Entity,04/04/2022,4664436,275626,CROWN LODGE GUEST HOUSE,Bed and Breakfast,525,Rents,Third Party Supplier,STANDARD,5871,KAAA-Directorate of Economic Growth and Neighbourhood Services
RBC Legal Entity,04/04/2022,4664438,275626,CROWN LODGE GUEST HOUSE,Bed and Breakfast,623,Rents,Third Party Supplier,STANDARD,5871,KAAA-Directorate of Economic Growth and Neighbourhood Services
RBC Legal Entity,04/04/2022,4664445,275626,CROWN LODGE GUEST HOUSE,Bed and Breakfast,560,Rents,Third Party Supplier,STANDARD,5871,KAAA-Directorate of Economic Growth and Neighbourhood Services
RBC Legal Entity,04/04/2022,4664446,275626,CROWN LODGE GUEST HOUSE,Bed and Breakfast,525,Rents,Third Party Supplier,STANDARD,5871,KAAA-Directorate of Economic Growth and Neighbourhood Services
RBC Legal Entity,04/04/2022,4664450,275626,CROWN LODGE GUEST HOUSE,Bed and Breakfast,525,Rents,Third Party Supplier,STANDARD,5871,KAAA-Directorate of Economic Growth and Neighbourhood Services
RBC Legal Entity,04/04/2022,4664451,275626,CROWN LODGE GUEST HOUSE,Bed and Breakfast,623,Rents,Third Party Supplier,STANDARD,5871,KAAA-Directorate of Economic Growth and Neighbourhood Services
RBC Legal Entity,04/04/2022,4664452,275626,CROWN LODGE GUEST HOUSE,Bed and Breakfast,560,Rents,Third Party Supplier,STANDARD,5871,KAAA-Directorate of Economic Growth and Neighbourhood Services
RBC Legal Entity,04/04/2022,4664453,275626,CROWN LODGE GUEST HOUSE,Bed and Breakfast,623,Rents,Third Party Supplier,STANDARD,5871,KAAA-Directorate of Economic Growth and Neighbourhood Services
RBC Legal Entity,04/04/2022,4660364,275627,HYDRO HEATING SOLUTIONS,MRA Account,57204.05,Feasibility Studies,SUB-CONTRACTOR,STANDARD,5975,HAAA-Housing Revenue Account
RBC Legal Entity,04/04/2022,4659622,275628,MEADEE FLOORING LTD,DLO Voids Trades,180,Subcontractors Labour,SUB-CONTRACTOR,STANDARD,4020,KAAA-Directorate of Economic Growth and Neighbourhood Services
RBC Legal Entity,04/04/2022,4659622,275628,MEADEE FLOORING LTD,DLO Voids Trades,1217.5,Subcontractors Labour,SUB-CONTRACTOR,STANDARD,4020,KAAA-Directorate of Economic Growth and Neighbourhood Services
RBC Legal Entity,04/04/2022,4659623,275628,MEADEE FLOORING LTD,DLO Voids Trades,170,Subcontractors Labour,SUB-CONTRACTOR,STANDARD,4020,KAAA-Directorate of Economic Growth and Neighbourhood Services
RBC Legal Entity,04/04/2022,4659623,275628,MEADEE FLOORING LTD,DLO Voids Trades,968.75,Subcontractors Labour,SUB-CONTRACTOR,STANDARD,4020,KAAA-Directorate of Economic Growth and Neighbourhood Services
RBC Legal Entity,04/04/2022,4659676,275628,MEADEE FLOORING LTD,DLO Voids Trades,140,Subcontractors Labour,SUB-CONTRACTOR,STANDARD,4020,KAAA-Directorate of Economic Growth and Neighbourhood Services
RBC Legal Entity,04/04/2022,4659676,275628,MEADEE FLOORING LTD,DLO Voids Trades,695,Subcontractors Labour,SUB-CONTRACTOR,STANDARD,4020,KAAA-Directorate of Economic Growth and Neighbourhood Services
RBC Legal Entity,04/04/2022,4659677,275628,MEADEE FLOORING LTD,DLO Voids Trades,140,Subcontractors Labour,SUB-CONTRACTOR,STANDARD,4020,KAAA-Directorate of Economic Growth and Neighbourhood Services
RBC Legal Entity,04/04/2022,4659677,275628,MEADEE FLOORING LTD,DLO Voids Trades,695,Subcontractors Labour,SUB-CONTRACTOR,STANDARD,4020,KAAA-Directorate of Economic Growth and Neighbourhood Services
RBC Legal Entity,04/04/2022,4659678,275628,MEADEE FLOORING LTD,DLO Voids Trades,140,Subcontractors Labour,SUB-CONTRACTOR,STANDARD,4020,KAAA-Directorate of Economic Growth and Neighbourhood Services
RBC Legal Entity,04/04/2022,4659678,275628,MEADEE FLOORING LTD,DLO Voids Trades,695,Subcontractors Labour,SUB-CONTRACTOR,STANDARD,4020,KAAA-Directorate of Economic Growth and Neighbourhood Services
RBC Legal Entity,04/04/2022,4659679,275628,MEADEE FLOORING LTD,DLO Voids Trades,140,Subcontractors Labour,SUB-CONTRACTOR,STANDARD,4020,KAAA-Directorate of Economic Growth and Neighbourhood Services
RBC Legal Entity,04/04/2022,4659679,275628,MEADEE FLOORING LTD,DLO Voids Trades,695,Subcontractors Labour,SUB-CONTRACTOR,STANDARD,4020,KAAA-Directorate of Economic Growth and Neighbourhood Services
RBC Legal Entity,04/04/2022,4659684,275628,MEADEE FLOORING LTD,DLO Voids Trades,120,Subcontractors Labour,SUB-CONTRACTOR,STANDARD,4020,KAAA-Directorate of Economic Growth and Neighbourhood Services
RBC Legal Entity,04/04/2022,4659684,275628,MEADEE FLOORING LTD,DLO Voids Trades,322.5,Subcontractors Labour,SUB-CONTRACTOR,STANDARD,4020,KAAA-Directorate of Economic Growth and Neighbourhood Services
RBC Legal Entity,04/04/2022,4659701,275628,MEADEE FLOORING LTD,DLO Day to Day Trades,150,Subcontractors Labour,SUB-CONTRACTOR,STANDARD,4010,KAAA-Directorate of Economic Growth and Neighbourhood Services
RBC Legal Entity,04/04/2022,4659701,275628,MEADEE FLOORING LTD,DLO Day to Day Trades,520,Subcontractors Labour,SUB-CONTRACTOR,STANDARD,4010,KAAA-Directorate of Economic Growth and Neighbourhood Services
RBC Legal Entity,04/04/2022,4659702,275628,MEADEE FLOORING LTD,DLO Day to Day Trades,150,Subcontractors Labour,SUB-CONTRACTOR,STANDARD,4010,KAAA-Directorate of Economic Growth and Neighbourhood Services
RBC Legal Entity,04/04/2022,4659702,275628,MEADEE FLOORING LTD,DLO Day to Day Trades,520,Subcontractors Labour,SUB-CONTRACTOR,STANDARD,4010,KAAA-Directorate of Economic Growth and Neighbourhood Services
RBC Legal Entity,04/04/2022,4659715,275628,MEADEE FLOORING LTD,DLO Voids Trades,180,Subcontractors Labour,SUB-CONTRACTOR,STANDARD,4020,KAAA-Directorate of Economic Growth and Neighbourhood Services
RBC Legal Entity,04/04/2022,4659715,275628,MEADEE FLOORING LTD,DLO Voids Trades,1313.5,Subcontractors Labour,SUB-CONTRACTOR,STANDARD,4020,KAAA-Directorate of Economic Growth and Neighbourhood Services
RBC Legal Entity,04/04/2022,4659731,275628,MEADEE FLOORING LTD,DLO Voids Trades,130,Subcontractors Labour,SUB-CONTRACTOR,STANDARD,4020,KAAA-Directorate of Economic Growth and Neighbourhood Services
RBC Legal Entity,04/04/2022,4659731,275628,MEADEE FLOORING LTD,DLO Voids Trades,658,Subcontractors Labour,SUB-CONTRACTOR,STANDARD,4020,KAAA-Directorate of Economic Growth and Neighbourhood Services
RBC Legal Entity,04/04/2022,4657637,275629,MISS ALISON WILLIAMS,JLT Disbursements,1310,Misc. Legal Expenses,SUPPLIER,STANDARD,2407,LAAA-Directorate of Resources
RBC Legal Entity,04/04/2022,4664387,275630,READING REPERTORY THEATRE LIMITED,Reading Libraries,3980,Publicity & Media Work,SUPPLIER,STANDARD,1400,KAAA-Directorate of Economic Growth and Neighbourhood Services
RBC Legal Entity,04/04/2022,4657627,275631,MR DAMIAN GARRIDO,JLT Disbursements,3700,Misc. Legal Expenses,SUPPLIER,STANDARD,2407,LAAA-Directorate of Resources
RBC Legal Entity,04/04/2022,4657982,275631,MR DAMIAN GARRIDO,JLT Disbursements,3700,Misc. Legal Expenses,SUPPLIER,STANDARD,2407,LAAA-Directorate of Resources
RBC Legal Entity,04/04/2022,4657782,275632,THE ADVOCACY PEOPLE,Mental Health Team,604.21,Professional Fees,SUPPLIER,STANDARD,5253,JAAA-Directorate of Social Care and Health Services
RBC Legal Entity,04/04/2022,4659661,275633,PESTPRO BIRD SOLUTIONS LTD,DLO Day to Day Trades,3722,Subcontractors Labour,Third Party Supplier,STANDARD,4010,KAAA-Directorate of Economic Growth and Neighbourhood Services
RBC Legal Entity,04/04/2022,4658824,275634,PARSONS MARSHALL PSYCHOLOGY LTD,JLT Disbursements,790.38,Misc. Legal Expenses,SUPPLIER,STANDARD,2407,LAAA-Directorate of Resources
RBC Legal Entity,04/04/2022,4657418,275635,TOTAL ECLIPSE TRAINING SOLUTIONS LTD,ASC Senior Management Team,625,Training & Development Costs,SUPPLIER,STANDARD,5700,JAAA-Directorate of Social Care and Health Services
RBC Legal Entity,04/04/2022,4664406,275636,LEICESTERSHIRE COUNTY COUNCIL,HR & Payroll,738,Disclosure & Barring Service {,GOVERNMENT,STANDARD,2600,LAAA-Directorate of Resources
RBC Legal Entity,04/04/2022,4664406,275636,LEICESTERSHIRE COUNTY COUNCIL,HR & Payroll,4322,Disclosure & Barring Service {,GOVERNMENT,STANDARD,2600,LAAA-Directorate of Resources
RBC Legal Entity,04/04/2022,4664407,275636,LEICESTERSHIRE COUNTY COUNCIL,HR & Payroll,601.5,Disclosure & Barring Service {,GOVERNMENT,STANDARD,2600,LAAA-Directorate of Resources
RBC Legal Entity,04/04/2022,4664407,275636,LEICESTERSHIRE COUNTY COUNCIL,HR & Payroll,3468,Disclosure & Barring Service {,GOVERNMENT,STANDARD,2600,LAAA-Directorate of Resources
RBC Legal Entity,04/04/2022,4664412,275636,LEICESTERSHIRE COUNTY COUNCIL,HR & Payroll,757.5,Disclosure & Barring Service {,GOVERNMENT,STANDARD,2600,LAAA-Directorate of Resources
RBC Legal Entity,04/04/2022,4664412,275636,LEICESTERSHIRE COUNTY COUNCIL,HR & Payroll,4307,Disclosure & Barring Service {,GOVERNMENT,STANDARD,2600,LAAA-Directorate of Resources
RBC Legal Entity,04/04/2022,4664413,275636,LEICESTERSHIRE COUNTY COUNCIL,HR & Payroll,680,Disclosure & Barring Service {,GOVERNMENT,STANDARD,2600,LAAA-Directorate of Resources
RBC Legal Entity,04/04/2022,4664413,275636,LEICESTERSHIRE COUNTY COUNCIL,HR & Payroll,3881,Disclosure & Barring Service {,GOVERNMENT,STANDARD,2600,LAAA-Directorate of Resources
RBC Legal Entity,05/04/2022,4657454,275658,CAPITA BUSINESS SERVICES LTD,IT Management,25241.95,Software Support,Third Party Supplier,STANDARD,2300,EAAA-Chief Executive
RBC Legal Entity,05/04/2022,4665435,275661,RADIS COMMUNITY CARE,Mental Health Community Services,528.32,Purchased Care,Third Party Supplier,STANDARD,5731,JAAA-Directorate of Social Care and Health Services
RBC Legal Entity,05/04/2022,4665436,275661,RADIS COMMUNITY CARE,LD Community Services,1304.29,Purchased Care,Third Party Supplier,STANDARD,5741,JAAA-Directorate of Social Care and Health Services
RBC Legal Entity,05/04/2022,4665441,275661,RADIS COMMUNITY CARE,LD Community Services,528.32,Purchased Care,Third Party Supplier,STANDARD,5741,JAAA-Directorate of Social Care and Health Services
RBC Legal Entity,05/04/2022,4665442,275661,RADIS COMMUNITY CARE,PS Acquired Community Services,511.84,Purchased Care,Third Party Supplier,STANDARD,5771,JAAA-Directorate of Social Care and Health Services
RBC Legal Entity,05/04/2022,4665444,275661,RADIS COMMUNITY CARE,LD Community Services,577.85,Purchased Care,Third Party Supplier,STANDARD,5741,JAAA-Directorate of Social Care and Health Services
RBC Legal Entity,05/04/2022,4665446,275661,RADIS COMMUNITY CARE,LD Community Services,2282.89,Purchased Care,Third Party Supplier,STANDARD,5741,JAAA-Directorate of Social Care and Health Services
RBC Legal Entity,05/04/2022,4665464,275663,ROWVALE HOTELS LTD T/A BOW GUEST HOUSE,Social Support,196.85,Bed + Breakfast/Emergency Acco,Third Party Supplier,STANDARD,5790,JAAA-Directorate of Social Care and Health Services
RBC Legal Entity,05/04/2022,4665464,275663,ROWVALE HOTELS LTD T/A BOW GUEST HOUSE,Social Support,328.15,Bed + Breakfast/Emergency Acco,Third Party Supplier,STANDARD,5790,JAAA-Directorate of Social Care and Health Services
RBC Legal Entity,05/04/2022,4658783,275667,SIMONE SURVEYS LTD,Traffic,540,Leasing Costs,SUB-CONTRACTOR,STANDARD,4703,KAAA-Directorate of Economic Growth and Neighbourhood Services
RBC Legal Entity,05/04/2022,4665448,275668,VOYAGE CARE,LD Community Services,724.37,Purchased Care,Third Party Supplier,STANDARD,5741,JAAA-Directorate of Social Care and Health Services
RBC Legal Entity,05/04/2022,4665449,275668,VOYAGE CARE,LD Community Services,932.04,Purchased Care,Third Party Supplier,STANDARD,5741,JAAA-Directorate of Social Care and Health Services
RBC Legal Entity,05/04/2022,4665451,275668,VOYAGE CARE,LD Community Services,829.2,Purchased Care,Third Party Supplier,STANDARD,5741,JAAA-Directorate of Social Care and Health Services
RBC Legal Entity,05/04/2022,4658144,275669,DEBORAH ORR,JLT Disbursements,946,Misc. Legal Expenses,SUPPLIER,STANDARD,2407,LAAA-Directorate of Resources
RBC Legal Entity,05/04/2022,4649057,275670,MOTOR ACCIDENT PROTECTION SERVICES LTD,Insurance CEC,2138.75,Insurances  Central,SUPPLIER,STANDARD,2205,LAAA-Directorate of Resources
RBC Legal Entity,05/04/2022,4665316,275671,LG FUTURES,Accountancy,10085,Subscriptions,SUPPLIER,STANDARD,2200,LAAA-Directorate of Resources
RBC Legal Entity,05/04/2022,4665311,275672,R&D CONTRACTORS,Repairs,6527.71,Special Adaptions,SUPPLIER,STANDARD,5970,HAAA-Housing Revenue Account
RBC Legal Entity,05/04/2022,4665465,275673,VJ CARERS LIMITED,PS Acquired Community Services,2760.8,Purchased Care,Third Party Supplier,STANDARD,5771,JAAA-Directorate of Social Care and Health Services
RBC Legal Entity,05/04/2022,4665466,275673,VJ CARERS LIMITED,PS Acquired Community Services,1893.12,Purchased Care,Third Party Supplier,STANDARD,5771,JAAA-Directorate of Social Care and Health Services
RBC Legal Entity,05/04/2022,4665467,275673,VJ CARERS LIMITED,Mental Health Community Services,2583.32,Purchased Care,Third Party Supplier,STANDARD,5731,JAAA-Directorate of Social Care and Health Services
RBC Legal Entity,05/04/2022,4665468,275673,VJ CARERS LIMITED,PS Acquired Community Services,2208.64,Purchased Care,Third Party Supplier,STANDARD,5771,JAAA-Directorate of Social Care and Health Services
RBC Legal Entity,05/04/2022,4665469,275673,VJ CARERS LIMITED,PS Acquired Community Services,2760.8,Purchased Care,Third Party Supplier,STANDARD,5771,JAAA-Directorate of Social Care and Health Services
RBC Legal Entity,05/04/2022,4665470,275673,VJ CARERS LIMITED,PS Acquired Community Services,2553.74,Purchased Care,Third Party Supplier,STANDARD,5771,JAAA-Directorate of Social Care and Health Services
RBC Legal Entity,05/04/2022,4665471,275673,VJ CARERS LIMITED,Mental Health Community Services,2721.36,Purchased Care,Third Party Supplier,STANDARD,5731,JAAA-Directorate of Social Care and Health Services
RBC Legal Entity,05/04/2022,4665472,275673,VJ CARERS LIMITED,PS Acquired Community Services,1242.36,Purchased Care,Third Party Supplier,STANDARD,5771,JAAA-Directorate of Social Care and Health Services
RBC Legal Entity,05/04/2022,4665473,275673,VJ CARERS LIMITED,PS Acquired Community Services,2760.8,Purchased Care,Third Party Supplier,STANDARD,5771,JAAA-Directorate of Social Care and Health Services
RBC Legal Entity,05/04/2022,4665474,275673,VJ CARERS LIMITED,PS Acquired Community Services,2484.72,Purchased Care,Third Party Supplier,STANDARD,5771,JAAA-Directorate of Social Care and Health Services
RBC Legal Entity,05/04/2022,4665475,275673,VJ CARERS LIMITED,PS Acquired Community Services,1794.52,Purchased Care,Third Party Supplier,STANDARD,5771,JAAA-Directorate of Social Care and Health Services
RBC Legal Entity,05/04/2022,4665476,275673,VJ CARERS LIMITED,PS Acquired Community Services,2208.64,Purchased Care,Third Party Supplier,STANDARD,5771,JAAA-Directorate of Social Care and Health Services
RBC Legal Entity,05/04/2022,4665477,275673,VJ CARERS LIMITED,PS Acquired Community Services,2484.72,Purchased Care,Third Party Supplier,STANDARD,5771,JAAA-Directorate of Social Care and Health Services
RBC Legal Entity,05/04/2022,4665478,275673,VJ CARERS LIMITED,PS Acquired Community Services,1656.48,Purchased Care,Third Party Supplier,STANDARD,5771,JAAA-Directorate of Social Care and Health Services
RBC Legal Entity,05/04/2022,4665479,275673,VJ CARERS LIMITED,PS Acquired Community Services,1380.4,Purchased Care,Third Party Supplier,STANDARD,5771,JAAA-Directorate of Social Care and Health Services
RBC Legal Entity,05/04/2022,4665480,275673,VJ CARERS LIMITED,PS Acquired Community Services,2484.72,Purchased Care,Third Party Supplier,STANDARD,5771,JAAA-Directorate of Social Care and Health Services
RBC Legal Entity,05/04/2022,4665481,275673,VJ CARERS LIMITED,PS Acquired Community Services,2287.52,Purchased Care,Third Party Supplier,STANDARD,5771,JAAA-Directorate of Social Care and Health Services
RBC Legal Entity,05/04/2022,4665482,275673,VJ CARERS LIMITED,PS Acquired Community Services,1124.04,Purchased Care,Third Party Supplier,STANDARD,5771,JAAA-Directorate of Social Care and Health Services
RBC Legal Entity,05/04/2022,4665483,275673,VJ CARERS LIMITED,PS Acquired Community Services,966.28,Purchased Care,Third Party Supplier,STANDARD,5771,JAAA-Directorate of Social Care and Health Services
RBC Legal Entity,05/04/2022,4665484,275673,VJ CARERS LIMITED,PS Acquired Community Services,690.2,Purchased Care,Third Party Supplier,STANDARD,5771,JAAA-Directorate of Social Care and Health Services
RBC Legal Entity,05/04/2022,4665486,275673,VJ CARERS LIMITED,PS Acquired Community Services,532.44,Purchased Care,Third Party Supplier,STANDARD,5771,JAAA-Directorate of Social Care and Health Services
RBC Legal Entity,05/04/2022,4665489,275673,VJ CARERS LIMITED,LD Community Services,1656.48,Purchased Care,Third Party Supplier,STANDARD,5741,JAAA-Directorate of Social Care and Health Services
RBC Legal Entity,05/04/2022,4665490,275673,VJ CARERS LIMITED,PS Acquired Community Services,828.24,Purchased Care,Third Party Supplier,STANDARD,5771,JAAA-Directorate of Social Care and Health Services
RBC Legal Entity,05/04/2022,4665491,275673,VJ CARERS LIMITED,PS Acquired Community Services,788.8,Purchased Care,Third Party Supplier,STANDARD,5771,JAAA-Directorate of Social Care and Health Services
RBC Legal Entity,05/04/2022,4665492,275673,VJ CARERS LIMITED,PS Acquired Community Services,542.3,Purchased Care,Third Party Supplier,STANDARD,5771,JAAA-Directorate of Social Care and Health Services
RBC Legal Entity,05/04/2022,4665493,275673,VJ CARERS LIMITED,PS Acquired Community Services,2174.3,Purchased Care,Third Party Supplier,STANDARD,5771,JAAA-Directorate of Social Care and Health Services
RBC Legal Entity,05/04/2022,4665495,275673,VJ CARERS LIMITED,M&C Acquired Community Services,862.75,Purchased Care,Third Party Supplier,STANDARD,5751,JAAA-Directorate of Social Care and Health Services
RBC Legal Entity,05/04/2022,4665497,275673,VJ CARERS LIMITED,PS Acquired Community Services,690.2,Purchased Care,Third Party Supplier,STANDARD,5771,JAAA-Directorate of Social Care and Health Services
RBC Legal Entity,05/04/2022,4665498,275673,VJ CARERS LIMITED,PS Acquired Community Services,828.24,Purchased Care,Third Party Supplier,STANDARD,5771,JAAA-Directorate of Social Care and Health Services
RBC Legal Entity,05/04/2022,4665499,275673,VJ CARERS LIMITED,PS Acquired Community Services,1301.52,Purchased Care,Third Party Supplier,STANDARD,5771,JAAA-Directorate of Social Care and Health Services
RBC Legal Entity,05/04/2022,4665501,275673,VJ CARERS LIMITED,PS Lifelong Community Services,2760.8,Purchased Care,Third Party Supplier,STANDARD,5781,JAAA-Directorate of Social Care and Health Services
RBC Legal Entity,05/04/2022,4665502,275673,VJ CARERS LIMITED,PS Acquired Community Services,522.58,Purchased Care,Third Party Supplier,STANDARD,5771,JAAA-Directorate of Social Care and Health Services
RBC Legal Entity,05/04/2022,4665503,275673,VJ CARERS LIMITED,PS Acquired Community Services,872.61,Purchased Care,Third Party Supplier,STANDARD,5771,JAAA-Directorate of Social Care and Health Services
RBC Legal Entity,05/04/2022,4665505,275673,VJ CARERS LIMITED,PS Acquired Community Services,1671.27,Purchased Care,Third Party Supplier,STANDARD,5771,JAAA-Directorate of Social Care and Health Services
RBC Legal Entity,05/04/2022,4665506,275673,VJ CARERS LIMITED,PS Acquired Community Services,1104.32,Purchased Care,Third Party Supplier,STANDARD,5771,JAAA-Directorate of Social Care and Health Services
RBC Legal Entity,05/04/2022,4665507,275673,VJ CARERS LIMITED,PS Acquired Community Services,2484.72,Purchased Care,Third Party Supplier,STANDARD,5771,JAAA-Directorate of Social Care and Health Services
RBC Legal Entity,05/04/2022,4665508,275673,VJ CARERS LIMITED,PS Acquired Community Services,690.2,Purchased Care,Third Party Supplier,STANDARD,5771,JAAA-Directorate of Social Care and Health Services
RBC Legal Entity,05/04/2022,4665244,275674,RES SYSTEMS LTD,Hexagon Operations,165,Health + Safety,SUPPLIER,STANDARD,1200,KAAA-Directorate of Economic Growth and Neighbourhood Services
RBC Legal Entity,05/04/2022,4665244,275674,RES SYSTEMS LTD,Hexagon Operations,330,Health + Safety,SUPPLIER,STANDARD,1200,KAAA-Directorate of Economic Growth and Neighbourhood Services
RBC Legal Entity,05/04/2022,4665244,275674,RES SYSTEMS LTD,Hexagon Operations,420,Health + Safety,SUPPLIER,STANDARD,1200,KAAA-Directorate of Economic Growth and Neighbourhood Services
RBC Legal Entity,05/04/2022,4659565,275675,HAMPTONS RESOURCING LTD,Commissioning Team,2500,Agency Staff,Third Party Supplier,STANDARD,3452,JAAA-Directorate of Social Care and Health Services
RBC Legal Entity,05/04/2022,4660194,275676,M&D SERVICES,Leisure Review,640,Building Works,SUB-CONTRACTOR,STANDARD,8016,ZZZC-Capital
RBC Legal Entity,05/04/2022,4660194,275676,M&D SERVICES,Leisure Review,890,Building Works,SUB-CONTRACTOR,STANDARD,8016,ZZZC-Capital
RBC Legal Entity,05/04/2022,4660458,275678,CREAM DESIGN LTD,Safer Community Unit,180,Special Measures Expenses,SUPPLIER,STANDARD,5365,KAAA-Directorate of Economic Growth and Neighbourhood Services
RBC Legal Entity,05/04/2022,4660458,275678,CREAM DESIGN LTD,Safer Community Unit,390,Special Measures Expenses,SUPPLIER,STANDARD,5365,KAAA-Directorate of Economic Growth and Neighbourhood Services
RBC Legal Entity,05/04/2022,4660746,275678,CREAM DESIGN LTD,Safer Community Unit,2184,Special Measures Expenses,SUPPLIER,STANDARD,5365,KAAA-Directorate of Economic Growth and Neighbourhood Services
RBC Legal Entity,05/04/2022,4660032,275681,RE3 LTD,Waste Disposal,2073282.24,Household Waste,SUPPLIER,STANDARD,4562,KAAA-Directorate of Economic Growth and Neighbourhood Services
RBC Legal Entity,05/04/2022,4660033,275681,RE3 LTD,Waste Disposal,188328.63,Household Waste,SUPPLIER,STANDARD,4562,KAAA-Directorate of Economic Growth and Neighbourhood Services
RBC Legal Entity,05/04/2022,4660035,275681,RE3 LTD,Waste Disposal,119750.29,Household Waste,SUPPLIER,STANDARD,4562,KAAA-Directorate of Economic Growth and Neighbourhood Services
RBC Legal Entity,05/04/2022,4660036,275681,RE3 LTD,Waste Disposal,100480,Household Waste,SUPPLIER,STANDARD,4562,KAAA-Directorate of Economic Growth and Neighbourhood Services
RBC Legal Entity,05/04/2022,4660038,275681,RE3 LTD,Waste Disposal,106284.63,Household Waste,SUPPLIER,STANDARD,4562,KAAA-Directorate of Economic Growth and Neighbourhood Services
RBC Legal Entity,05/04/2022,4660039,275681,RE3 LTD,Waste Disposal,40138.91,Household Waste,SUPPLIER,STANDARD,4562,KAAA-Directorate of Economic Growth and Neighbourhood Services
RBC Legal Entity,05/04/2022,4660040,275681,RE3 LTD,Waste Disposal,-128910.64,Household Waste,SUPPLIER,CREDIT,4562,KAAA-Directorate of Economic Growth and Neighbourhood Services
RBC Legal Entity,05/04/2022,4660041,275681,RE3 LTD,Waste Disposal,64415.59,Household Waste,SUPPLIER,STANDARD,4562,KAAA-Directorate of Economic Growth and Neighbourhood Services
RBC Legal Entity,05/04/2022,4660042,275681,RE3 LTD,Waste Disposal,-49800,Household Waste,SUPPLIER,CREDIT,4562,KAAA-Directorate of Economic Growth and Neighbourhood Services
RBC Legal Entity,05/04/2022,4660043,275681,RE3 LTD,Waste Disposal,-50031.55,Household Waste,SUPPLIER,CREDIT,4562,KAAA-Directorate of Economic Growth and Neighbourhood Services
RBC Legal Entity,05/04/2022,4665611,275683,REHABILITY UK COMMUNITY LTD,LD Community Services,3048,Purchased Care,Third Party Supplier,STANDARD,5741,JAAA-Directorate of Social Care and Health Services
RBC Legal Entity,05/04/2022,4665612,275683,REHABILITY UK COMMUNITY LTD,LD Community Services,1586.2,Purchased Care,Third Party Supplier,STANDARD,5741,JAAA-Directorate of Social Care and Health Services
RBC Legal Entity,05/04/2022,4665613,275683,REHABILITY UK COMMUNITY LTD,LD Community Services,1586.2,Purchased Care,Third Party Supplier,STANDARD,5741,JAAA-Directorate of Social Care and Health Services
RBC Legal Entity,05/04/2022,4665614,275683,REHABILITY UK COMMUNITY LTD,LD Community Services,5224.8,Purchased Care,Third Party Supplier,STANDARD,5741,JAAA-Directorate of Social Care and Health Services
RBC Legal Entity,05/04/2022,4665615,275683,REHABILITY UK COMMUNITY LTD,LD Community Services,1555,Purchased Care,Third Party Supplier,STANDARD,5741,JAAA-Directorate of Social Care and Health Services
RBC Legal Entity,05/04/2022,4665616,275683,REHABILITY UK COMMUNITY LTD,LD Community Services,5224.8,Purchased Care,Third Party Supplier,STANDARD,5741,JAAA-Directorate of Social Care and Health Services
RBC Legal Entity,05/04/2022,4665617,275683,REHABILITY UK COMMUNITY LTD,LD Community Services,5224.8,Purchased Care,Third Party Supplier,STANDARD,5741,JAAA-Directorate of Social Care and Health Services
RBC Legal Entity,05/04/2022,4665618,275683,REHABILITY UK COMMUNITY LTD,LD Community Services,1586.2,Purchased Care,Third Party Supplier,STANDARD,5741,JAAA-Directorate of Social Care and Health Services
RBC Legal Entity,05/04/2022,4665619,275683,REHABILITY UK COMMUNITY LTD,LD Community Services,1461.8,Purchased Care,Third Party Supplier,STANDARD,5741,JAAA-Directorate of Social Care and Health Services
RBC Legal Entity,05/04/2022,4665620,275683,REHABILITY UK COMMUNITY LTD,LD Community Services,5224.8,Purchased Care,Third Party Supplier,STANDARD,5741,JAAA-Directorate of Social Care and Health Services
RBC Legal Entity,05/04/2022,4665621,275683,REHABILITY UK COMMUNITY LTD,LD Community Services,1461.8,Purchased Care,Third Party Supplier,STANDARD,5741,JAAA-Directorate of Social Care and Health Services
RBC Legal Entity,05/04/2022,4665622,275683,REHABILITY UK COMMUNITY LTD,Mental Health Community Services,2457,Purchased Care,Third Party Supplier,STANDARD,5731,JAAA-Directorate of Social Care and Health Services
RBC Legal Entity,05/04/2022,4665623,275683,REHABILITY UK COMMUNITY LTD,LD Community Services,5224.8,Purchased Care,Third Party Supplier,STANDARD,5741,JAAA-Directorate of Social Care and Health Services
RBC Legal Entity,05/04/2022,4665624,275683,REHABILITY UK COMMUNITY LTD,LD Community Services,1555,Purchased Care,Third Party Supplier,STANDARD,5741,JAAA-Directorate of Social Care and Health Services
RBC Legal Entity,05/04/2022,4665625,275683,REHABILITY UK COMMUNITY LTD,LD Community Services,1555,Purchased Care,Third Party Supplier,STANDARD,5741,JAAA-Directorate of Social Care and Health Services
RBC Legal Entity,05/04/2022,4665462,275684,SUPERB HEALTHCARE LTD,PS Acquired Community Services,694.5,Purchased Care,Third Party Supplier,STANDARD,5771,JAAA-Directorate of Social Care and Health Services
RBC Legal Entity,05/04/2022,4660059,275685,SAFESITE FENCING LTD,Corporate Offices,6855,Building Works,SUB-CONTRACTOR,STANDARD,8602,ZZZC-Capital
RBC Legal Entity,05/04/2022,4660084,275685,SAFESITE FENCING LTD,Corporate Maintenance Services,1938,NNDR Pool,SUB-CONTRACTOR,STANDARD,4080,KAAA-Directorate of Economic Growth and Neighbourhood Services
RBC Legal Entity,05/04/2022,4660861,275686,CARE4U WE LTD,LD Community Services,7872,Purchased Care,Third Party Supplier,STANDARD,5741,JAAA-Directorate of Social Care and Health Services
RBC Legal Entity,05/04/2022,4665452,275686,CARE4U WE LTD,LD Community Services,2703.45,Purchased Care,Third Party Supplier,STANDARD,5741,JAAA-Directorate of Social Care and Health Services
RBC Legal Entity,05/04/2022,4665453,275686,CARE4U WE LTD,LD Community Services,2703.45,Purchased Care,Third Party Supplier,STANDARD,5741,JAAA-Directorate of Social Care and Health Services
RBC Legal Entity,05/04/2022,4665455,275686,CARE4U WE LTD,LD Community Services,2703.45,Purchased Care,Third Party Supplier,STANDARD,5741,JAAA-Directorate of Social Care and Health Services
RBC Legal Entity,05/04/2022,4665456,275686,CARE4U WE LTD,LD Community Services,2703.45,Purchased Care,Third Party Supplier,STANDARD,5741,JAAA-Directorate of Social Care and Health Services
RBC Legal Entity,05/04/2022,4665457,275686,CARE4U WE LTD,PS Acquired Community Services,2961.49,Purchased Care,Third Party Supplier,STANDARD,5771,JAAA-Directorate of Social Care and Health Services
RBC Legal Entity,05/04/2022,4665610,275686,CARE4U WE LTD,LD Community Services,2809.04,Purchased Care,Third Party Supplier,STANDARD,5741,JAAA-Directorate of Social Care and Health Services
RBC Legal Entity,05/04/2022,4665422,275689,PEOPLE MATTER SUPPORT SERVICES LTD,PS Acquired Community Services,828.24,Purchased Care,SUPPLIER,STANDARD,5771,JAAA-Directorate of Social Care and Health Services
RBC Legal Entity,05/04/2022,4665424,275689,PEOPLE MATTER SUPPORT SERVICES LTD,PS Acquired Community Services,1104.32,Purchased Care,SUPPLIER,STANDARD,5771,JAAA-Directorate of Social Care and Health Services
RBC Legal Entity,05/04/2022,4665425,275689,PEOPLE MATTER SUPPORT SERVICES LTD,PS Acquired Community Services,1242.36,Purchased Care,SUPPLIER,STANDARD,5771,JAAA-Directorate of Social Care and Health Services
RBC Legal Entity,05/04/2022,4665427,275689,PEOPLE MATTER SUPPORT SERVICES LTD,PS Acquired Community Services,4614.48,Purchased Care,SUPPLIER,STANDARD,5771,JAAA-Directorate of Social Care and Health Services
RBC Legal Entity,05/04/2022,4665428,275689,PEOPLE MATTER SUPPORT SERVICES LTD,PS Acquired Community Services,552.16,Purchased Care,SUPPLIER,STANDARD,5771,JAAA-Directorate of Social Care and Health Services
RBC Legal Entity,05/04/2022,4665458,275689,PEOPLE MATTER SUPPORT SERVICES LTD,PS Acquired Community Services,1197.99,Purchased Care,SUPPLIER,STANDARD,5771,JAAA-Directorate of Social Care and Health Services
RBC Legal Entity,05/04/2022,4665459,275689,PEOPLE MATTER SUPPORT SERVICES LTD,PS Acquired Community Services,2395.98,Purchased Care,SUPPLIER,STANDARD,5771,JAAA-Directorate of Social Care and Health Services
RBC Legal Entity,05/04/2022,4665460,275689,PEOPLE MATTER SUPPORT SERVICES LTD,PS Acquired Community Services,2662.2,Purchased Care,SUPPLIER,STANDARD,5771,JAAA-Directorate of Social Care and Health Services
RBC Legal Entity,05/04/2022,4660052,275691,LAUNCHPAD READING,Single Homelessness Grants,4286.46,Preventive+SupportiveServ,Third Party Supplier,STANDARD,5860,KAAA-Directorate of Economic Growth and Neighbourhood Services
RBC Legal Entity,05/04/2022,4665546,275692,SPECTRUM GROUP SERVICES LIMITED,PS Acquired Community Services,946.56,Purchased Care,Third Party Supplier,STANDARD,5771,JAAA-Directorate of Social Care and Health Services
RBC Legal Entity,05/04/2022,4665547,275692,SPECTRUM GROUP SERVICES LIMITED,M&C Acquired Community Services,552.16,Purchased Care,Third Party Supplier,STANDARD,5751,JAAA-Directorate of Social Care and Health Services
RBC Legal Entity,05/04/2022,4665548,275692,SPECTRUM GROUP SERVICES LIMITED,PS Acquired Community Services,2760.8,Purchased Care,Third Party Supplier,STANDARD,5771,JAAA-Directorate of Social Care and Health Services
RBC Legal Entity,05/04/2022,4665549,275692,SPECTRUM GROUP SERVICES LIMITED,Mental Health Community Services,1163.48,Purchased Care,Third Party Supplier,STANDARD,5731,JAAA-Directorate of Social Care and Health Services
RBC Legal Entity,05/04/2022,4665560,275692,SPECTRUM GROUP SERVICES LIMITED,PS Acquired Community Services,1143.76,Purchased Care,Third Party Supplier,STANDARD,5771,JAAA-Directorate of Social Care and Health Services
RBC Legal Entity,05/04/2022,4665562,275692,SPECTRUM GROUP SERVICES LIMITED,PS Acquired Community Services+G3539,1143.76,Purchased Care,Third Party Supplier,STANDARD,5771,JAAA-Directorate of Social Care and Health Services
RBC Legal Entity,05/04/2022,4665563,275692,SPECTRUM GROUP SERVICES LIMITED,PS Acquired Community Services,966.28,Purchased Care,Third Party Supplier,STANDARD,5771,JAAA-Directorate of Social Care and Health Services
RBC Legal Entity,05/04/2022,4665564,275692,SPECTRUM GROUP SERVICES LIMITED,PS Acquired Community Services,1183.2,Purchased Care,Third Party Supplier,STANDARD,5771,JAAA-Directorate of Social Care and Health Services
RBC Legal Entity,05/04/2022,4665565,275692,SPECTRUM GROUP SERVICES LIMITED,PS Acquired Community Services,1400.12,Purchased Care,Third Party Supplier,STANDARD,5771,JAAA-Directorate of Social Care and Health Services
RBC Legal Entity,05/04/2022,4665566,275692,SPECTRUM GROUP SERVICES LIMITED,PS Acquired Community Services,552.16,Purchased Care,Third Party Supplier,STANDARD,5771,JAAA-Directorate of Social Care and Health Services
RBC Legal Entity,05/04/2022,4665571,275692,SPECTRUM GROUP SERVICES LIMITED,Mental Health Community Services,1163.48,Purchased Care,Third Party Supplier,STANDARD,5731,JAAA-Directorate of Social Care and Health Services
RBC Legal Entity,05/04/2022,4665573,275692,SPECTRUM GROUP SERVICES LIMITED,PS Acquired Community Services,1368,Purchased Care,Third Party Supplier,STANDARD,5771,JAAA-Directorate of Social Care and Health Services
RBC Legal Entity,06/04/2022,4660381,275695,KEYLINE CIVILS SPECIALIST LTD,Highways,670.92,Materials Direct,Third Party Supplier,STANDARD,4252,KAAA-Directorate of Economic Growth and Neighbourhood Services
RBC Legal Entity,06/04/2022,4660476,275696,ACTIVE ASSISTANCE,PS Acquired Community Services,634.34,Purchased Care,SUPPLIER,STANDARD,5771,JAAA-Directorate of Social Care and Health Services
RBC Legal Entity,06/04/2022,4660477,275696,ACTIVE ASSISTANCE,PS Acquired Community Services,952.83,Purchased Care,SUPPLIER,STANDARD,5771,JAAA-Directorate of Social Care and Health Services
RBC Legal Entity,06/04/2022,4659778,275697,LINGWOODS,Sheltered Housing,475,Cleaning Materials,Third Party Supplier,STANDARD,5940,HAAA-Housing Revenue Account
RBC Legal Entity,06/04/2022,4661023,275698,GLASRITE LTD,DLO Voids Trades,585,Subcontractors Labour,SUB-CONTRACTOR,STANDARD,4020,KAAA-Directorate of Economic Growth and Neighbourhood Services
RBC Legal Entity,06/04/2022,4661026,275698,GLASRITE LTD,Planned Maintenance Trades,1975,Subcontractors Labour,SUB-CONTRACTOR,STANDARD,4040,KAAA-Directorate of Economic Growth and Neighbourhood Services
RBC Legal Entity,06/04/2022,4661029,275698,GLASRITE LTD,DLO Day to Day Trades,1480,Subcontractors Labour,SUB-CONTRACTOR,STANDARD,4010,KAAA-Directorate of Economic Growth and Neighbourhood Services
RBC Legal Entity,06/04/2022,4661030,275698,GLASRITE LTD,DLO Planned Maintenance Trades,2715,Subcontractors Labour,SUB-CONTRACTOR,STANDARD,4030,KAAA-Directorate of Economic Growth and Neighbourhood Services
RBC Legal Entity,06/04/2022,4661242,275698,GLASRITE LTD,DLO Day to Day Trades,710,Subcontractors Labour,SUB-CONTRACTOR,STANDARD,4010,KAAA-Directorate of Economic Growth and Neighbourhood Services
RBC Legal Entity,06/04/2022,4658037,275699,FENTON PLANT HIRE,Fleet Management,500,Vehicle Spot Hire,SUPPLIER,STANDARD,4552,KAAA-Directorate of Economic Growth and Neighbourhood Services
RBC Legal Entity,06/04/2022,4665701,275700,THE DISABILITIES TRUST,ASC Operational Management Team,500,TPP to Others,SUPPLIER,STANDARD,5309,JAAA-Directorate of Social Care and Health Services
RBC Legal Entity,06/04/2022,4665735,275701,CHILMINGTON HOMES LIMITED,ASC Operational Management Team,3950,TPP to Others,Third Party Supplier,STANDARD,5309,JAAA-Directorate of Social Care and Health Services
RBC Legal Entity,06/04/2022,4665706,275705,RADIS COMMUNITY CARE,ASC Operational Management Team,5500,TPP to Others,Third Party Supplier,STANDARD,5309,JAAA-Directorate of Social Care and Health Services
RBC Legal Entity,06/04/2022,4660418,275709,THE GENERAL COUNCIL OF THE BAR,Joint Legal Team,1015,Subscriptions,Third Party Supplier,STANDARD,2405,LAAA-Directorate of Resources
RBC Legal Entity,06/04/2022,4665745,275710,AXIELL ALM LIMITED,Archives General,2777.04,Equipment Purchase & Repair,SUPPLIER,STANDARD,1256,KAAA-Directorate of Economic Growth and Neighbourhood Services
RBC Legal Entity,06/04/2022,4665703,275711,A2 DOMINION GROUP,ASC Operational Management Team,4100,TPP to Others,Third Party Supplier,STANDARD,5309,JAAA-Directorate of Social Care and Health Services
RBC Legal Entity,06/04/2022,4658730,275714,FLOWBIRD SMART CITY UK LTD,Parking & Enforcement,1881,Repair + Maint. Materials,SUPPLIER,STANDARD,4725,KAAA-Directorate of Economic Growth and Neighbourhood Services
RBC Legal Entity,06/04/2022,4657998,275715,TELESHORE(UK)LTD,Crematorium,2.04,Equipment Purchase & Repair,SUPPLIER,STANDARD,4606,LAAA-Directorate of Resources
RBC Legal Entity,06/04/2022,4657998,275715,TELESHORE(UK)LTD,Crematorium,2.88,Equipment Purchase & Repair,SUPPLIER,STANDARD,4606,LAAA-Directorate of Resources
RBC Legal Entity,06/04/2022,4657998,275715,TELESHORE(UK)LTD,Crematorium,27,Equipment Purchase & Repair,SUPPLIER,STANDARD,4606,LAAA-Directorate of Resources
RBC Legal Entity,06/04/2022,4657998,275715,TELESHORE(UK)LTD,Crematorium,43.2,Equipment Purchase & Repair,SUPPLIER,STANDARD,4606,LAAA-Directorate of Resources
RBC Legal Entity,06/04/2022,4657998,275715,TELESHORE(UK)LTD,Crematorium,71.6,Equipment Purchase & Repair,SUPPLIER,STANDARD,4606,LAAA-Directorate of Resources
RBC Legal Entity,06/04/2022,4657998,275715,TELESHORE(UK)LTD,Crematorium,110,Equipment Purchase & Repair,SUPPLIER,STANDARD,4606,LAAA-Directorate of Resources
RBC Legal Entity,06/04/2022,4657998,275715,TELESHORE(UK)LTD,Crematorium,487.5,Equipment Purchase & Repair,SUPPLIER,STANDARD,4606,LAAA-Directorate of Resources
RBC Legal Entity,06/04/2022,4660394,275716,HQN LIMITED,DLO Business & Quality Assurance,450,Training & Development Costs,SUPPLIER,STANDARD,4000,KAAA-Directorate of Economic Growth and Neighbourhood Services
RBC Legal Entity,06/04/2022,4661004,275717,BOSLEY BUILDERS,DLO Day to Day Trades,5078.56,Subcontractors Labour,SUB-CONTRACTOR,STANDARD,4010,KAAA-Directorate of Economic Growth and Neighbourhood Services
RBC Legal Entity,06/04/2022,4661078,275717,BOSLEY BUILDERS,DLO Wokingham Trades,5894.71,Subcontractors Labour,SUB-CONTRACTOR,STANDARD,4050,KAAA-Directorate of Economic Growth and Neighbourhood Services
RBC Legal Entity,06/04/2022,4661222,275717,BOSLEY BUILDERS,DLO Voids Trades,677.37,Subcontractors Labour,SUB-CONTRACTOR,STANDARD,4020,KAAA-Directorate of Economic Growth and Neighbourhood Services
RBC Legal Entity,06/04/2022,4663764,275718,PATTCO LIMITED,Corporate Maintenance Services,458.35,Leasing Costs,SUPPLIER,STANDARD,4080,KAAA-Directorate of Economic Growth and Neighbourhood Services
RBC Legal Entity,06/04/2022,4649286,275720,M & B ELECTRICAL SERVICES,Sundry Properties,270,Building Maintenance,SUB-CONTRACTOR,STANDARD,2125,KAAA-Directorate of Economic Growth and Neighbourhood Services
RBC Legal Entity,06/04/2022,4649286,275720,M & B ELECTRICAL SERVICES,Sundry Properties,1170,Building Maintenance,SUB-CONTRACTOR,STANDARD,2125,KAAA-Directorate of Economic Growth and Neighbourhood Services
RBC Legal Entity,06/04/2022,4660354,275721,FLEXIVEND LIMITED,Corporate FM - Office Buildings,773.7,Equipment Purchase & Repair,SUPPLIER,STANDARD,3738,KAAA-Directorate of Economic Growth and Neighbourhood Services
RBC Legal Entity,06/04/2022,4665803,275722,HOUSING PARTNERS LIMITED,Admin Account,7199.1,Professional Fees,Third Party Supplier,STANDARD,5960,HAAA-Housing Revenue Account
RBC Legal Entity,06/04/2022,4658058,275723,MR JAMES TURNER,JLT Disbursements,735,Misc. Legal Expenses,SUPPLIER,STANDARD,2407,LAAA-Directorate of Resources
RBC Legal Entity,06/04/2022,4659403,275725,LEEC LTD,Crematorium,9.22,Equipment Purchase & Repair,SUPPLIER,STANDARD,4606,LAAA-Directorate of Resources
RBC Legal Entity,06/04/2022,4659403,275725,LEEC LTD,Crematorium,300,Equipment Purchase & Repair,SUPPLIER,STANDARD,4606,LAAA-Directorate of Resources
RBC Legal Entity,06/04/2022,4659403,275725,LEEC LTD,Crematorium,490.78,Equipment Purchase & Repair,SUPPLIER,STANDARD,4606,LAAA-Directorate of Resources
RBC Legal Entity,06/04/2022,4659403,275725,LEEC LTD,Crematorium,15969,Equipment Purchase & Repair,SUPPLIER,STANDARD,4606,LAAA-Directorate of Resources
RBC Legal Entity,06/04/2022,4665790,275727,INTEC FOR BUSINESS LTD,Health & Safety,4147.97,Software Licences,SUPPLIER,STANDARD,2700,LAAA-Directorate of Resources
RBC Legal Entity,06/04/2022,4665704,275728,CAREMARK (WEST BERKSHIRE & READING),ASC Operational Management Team,6500,TPP to Others,Third Party Supplier,STANDARD,5309,JAAA-Directorate of Social Care and Health Services
RBC Legal Entity,06/04/2022,4657945,275730,FCC RECYCLING (UK) LTD,Refuse Collection,11068.12,Tipping Charge,SUPPLIER,STANDARD,4561,KAAA-Directorate of Economic Growth and Neighbourhood Services
RBC Legal Entity,06/04/2022,4657948,275730,FCC RECYCLING (UK) LTD,Grounds Maintenance,1609.7,Parks Tipping,SUPPLIER,STANDARD,1306,KAAA-Directorate of Economic Growth and Neighbourhood Services
RBC Legal Entity,06/04/2022,4657967,275730,FCC RECYCLING (UK) LTD,Grounds Maintenance,624.72,Parks Tipping,SUPPLIER,STANDARD,1306,KAAA-Directorate of Economic Growth and Neighbourhood Services
RBC Legal Entity,06/04/2022,4665707,275732,ROYLE CARE LTD,ASC Operational Management Team,12450,TPP to Others,Third Party Supplier,STANDARD,5309,JAAA-Directorate of Social Care and Health Services
RBC Legal Entity,06/04/2022,4665708,275734,TOTAL HEALTH SUPPORT & TRAINING SERVICES,ASC Operational Management Team,13050,TPP to Others,Third Party Supplier,STANDARD,5309,JAAA-Directorate of Social Care and Health Services
RBC Legal Entity,06/04/2022,4665738,275735,GALLAGHER BASSETT INTERNATIONAL LTD,Core Insurance Programme from 01.04.2015,1425,Expenditure,Third Party Supplier,STANDARD,9805,ZZZB-Balance Sheet
RBC Legal Entity,06/04/2022,4665738,275735,GALLAGHER BASSETT INTERNATIONAL LTD,Core Insurance Programme from 01.04.2015,2669,Expenditure,Third Party Supplier,STANDARD,9805,ZZZB-Balance Sheet
RBC Legal Entity,06/04/2022,4665738,275735,GALLAGHER BASSETT INTERNATIONAL LTD,Core Insurance Programme from 01.04.2015,5007.67,Expenditure,Third Party Supplier,STANDARD,9805,ZZZB-Balance Sheet
RBC Legal Entity,06/04/2022,4659945,275736,READING HAMPSHIRE PROPERTY PARTNERSHIP LIMITED,SHGs _ Social Housing Grants,3880.12,External Fees  Misc.,Third Party Supplier,STANDARD,8501,ZZZC-Capital
RBC Legal Entity,06/04/2022,4659952,275736,READING HAMPSHIRE PROPERTY PARTNERSHIP LIMITED,SHGs _ Social Housing Grants,6355.11,External Fees  Misc.,Third Party Supplier,STANDARD,8501,ZZZC-Capital
RBC Legal Entity,06/04/2022,4659953,275736,READING HAMPSHIRE PROPERTY PARTNERSHIP LIMITED,SHGs _ Social Housing Grants,2490.08,External Fees  Misc.,Third Party Supplier,STANDARD,8501,ZZZC-Capital
RBC Legal Entity,06/04/2022,4659955,275736,READING HAMPSHIRE PROPERTY PARTNERSHIP LIMITED,HRA portfolio expansion,617.61,External Fees  Misc.,Third Party Supplier,STANDARD,8518,ZZZC-Capital
RBC Legal Entity,06/04/2022,4659958,275736,READING HAMPSHIRE PROPERTY PARTNERSHIP LIMITED,HRA portfolio expansion,21668.63,External Fees  Misc.,Third Party Supplier,STANDARD,8518,ZZZC-Capital
RBC Legal Entity,06/04/2022,4659958,275736,READING HAMPSHIRE PROPERTY PARTNERSHIP LIMITED,HRA portfolio expansion,25625.21,External Fees  Misc.,Third Party Supplier,STANDARD,8518,ZZZC-Capital
RBC Legal Entity,06/04/2022,4659961,275736,READING HAMPSHIRE PROPERTY PARTNERSHIP LIMITED,Ranikhet Primary,5279.66,External Fees  Misc.,Third Party Supplier,STANDARD,8226,ZZZC-Capital
RBC Legal Entity,06/04/2022,4659975,275736,READING HAMPSHIRE PROPERTY PARTNERSHIP LIMITED,HRA portfolio expansion,7275.5,External Fees  Misc.,Third Party Supplier,STANDARD,8518,ZZZC-Capital
RBC Legal Entity,06/04/2022,4657794,275738,DENNIS EAGLE LTD,Fleet Management,27.5,Unfair Wear + Tear Costs,SUPPLIER,STANDARD,4552,KAAA-Directorate of Economic Growth and Neighbourhood Services
RBC Legal Entity,06/04/2022,4657794,275738,DENNIS EAGLE LTD,Fleet Management,40,Unfair Wear + Tear Costs,SUPPLIER,STANDARD,4552,KAAA-Directorate of Economic Growth and Neighbourhood Services
RBC Legal Entity,06/04/2022,4657794,275738,DENNIS EAGLE LTD,Fleet Management,40,Unfair Wear + Tear Costs,SUPPLIER,STANDARD,4552,KAAA-Directorate of Economic Growth and Neighbourhood Services
RBC Legal Entity,06/04/2022,4657794,275738,DENNIS EAGLE LTD,Fleet Management,48.7,Unfair Wear + Tear Costs,SUPPLIER,STANDARD,4552,KAAA-Directorate of Economic Growth and Neighbourhood Services
RBC Legal Entity,06/04/2022,4657794,275738,DENNIS EAGLE LTD,Fleet Management,48.7,Unfair Wear + Tear Costs,SUPPLIER,STANDARD,4552,KAAA-Directorate of Economic Growth and Neighbourhood Services
RBC Legal Entity,06/04/2022,4657794,275738,DENNIS EAGLE LTD,Fleet Management,110,Unfair Wear + Tear Costs,SUPPLIER,STANDARD,4552,KAAA-Directorate of Economic Growth and Neighbourhood Services
RBC Legal Entity,06/04/2022,4657794,275738,DENNIS EAGLE LTD,Fleet Management,172,Unfair Wear + Tear Costs,SUPPLIER,STANDARD,4552,KAAA-Directorate of Economic Growth and Neighbourhood Services
RBC Legal Entity,06/04/2022,4657794,275738,DENNIS EAGLE LTD,Fleet Management,206.15,Unfair Wear + Tear Costs,SUPPLIER,STANDARD,4552,KAAA-Directorate of Economic Growth and Neighbourhood Services
RBC Legal Entity,06/04/2022,4657794,275738,DENNIS EAGLE LTD,Fleet Management,591.32,Unfair Wear + Tear Costs,SUPPLIER,STANDARD,4552,KAAA-Directorate of Economic Growth and Neighbourhood Services
RBC Legal Entity,06/04/2022,4657794,275738,DENNIS EAGLE LTD,Fleet Management,654.96,Unfair Wear + Tear Costs,SUPPLIER,STANDARD,4552,KAAA-Directorate of Economic Growth and Neighbourhood Services
RBC Legal Entity,06/04/2022,4657794,275738,DENNIS EAGLE LTD,Fleet Management,1441.28,Unfair Wear + Tear Costs,SUPPLIER,STANDARD,4552,KAAA-Directorate of Economic Growth and Neighbourhood Services
RBC Legal Entity,06/04/2022,4657794,275738,DENNIS EAGLE LTD,Fleet Management,1572.63,Unfair Wear + Tear Costs,SUPPLIER,STANDARD,4552,KAAA-Directorate of Economic Growth and Neighbourhood Services
RBC Legal Entity,06/04/2022,4661147,275739,ALL NATIONS CHRISTIAN CENTRE,Safer Community Unit,600,Special Measures Expenses,Third Party Supplier,STANDARD,5365,KAAA-Directorate of Economic Growth and Neighbourhood Services
RBC Legal Entity,06/04/2022,4659247,275743,FRANCES HARRIS,JLT Disbursements,-1350,Misc. Legal Expenses,Third Party Supplier,CREDIT,2407,LAAA-Directorate of Resources
RBC Legal Entity,06/04/2022,4659248,275743,FRANCES HARRIS,JLT Disbursements,675,Misc. Legal Expenses,Third Party Supplier,STANDARD,2407,LAAA-Directorate of Resources
RBC Legal Entity,06/04/2022,4659358,275743,FRANCES HARRIS,JLT Disbursements,675,Misc. Legal Expenses,Third Party Supplier,STANDARD,2407,LAAA-Directorate of Resources
RBC Legal Entity,06/04/2022,4659265,275744,JAMES DOVE,JLT Disbursements,15025,Misc. Legal Expenses,Third Party Supplier,STANDARD,2407,LAAA-Directorate of Resources
RBC Legal Entity,06/04/2022,4665851,275746,JEREMY SIMMONS & STEFAN WASYLCIW,Housing Advice,1090.5,Responsive Repairs,Landlord,STANDARD,5820,KAAA-Directorate of Economic Growth and Neighbourhood Services
RBC Legal Entity,06/04/2022,4665709,275747,MAKAI CARE LTD,ASC Operational Management Team,3350,TPP to Others,SUPPLIER,STANDARD,5309,JAAA-Directorate of Social Care and Health Services
RBC Legal Entity,06/04/2022,4658801,275750,WILLS BROS CIVIL ENGINEERING LTD,LEP Projects,7929.41,Contractors,SUB-CONTRACTOR,STANDARD,8806,ZZZC-Capital
RBC Legal Entity,06/04/2022,4665767,275751,FORESIGHT CLINICAL SERVICES LTD,JLT Disbursements,612,Misc. Legal Expenses,Third Party Supplier,STANDARD,2407,LAAA-Directorate of Resources
RBC Legal Entity,06/04/2022,4665705,275752,MY HOMECARE (READING AND BRACKNELL) LTD,ASC Operational Management Team,1650,TPP to Others,Third Party Supplier,STANDARD,5309,JAAA-Directorate of Social Care and Health Services
RBC Legal Entity,06/04/2022,4662181,275754,EW BEARD LIMITED,HRA portfolio expansion,38316,External Fees  Misc.,SUB-CONTRACTOR,STANDARD,8518,ZZZC-Capital
RBC Legal Entity,06/04/2022,4662181,275754,EW BEARD LIMITED,HRA portfolio expansion,195650.65,External Fees  Misc.,SUB-CONTRACTOR,STANDARD,8518,ZZZC-Capital
RBC Legal Entity,06/04/2022,4658717,275757,PPL PRS LTD,Corporate FM - Community Buildings,159.71,Insurance  External,SUPPLIER,STANDARD,3739,KAAA-Directorate of Economic Growth and Neighbourhood Services
RBC Legal Entity,06/04/2022,4658717,275757,PPL PRS LTD,Corporate FM - Community Buildings,382.49,Insurance  External,SUPPLIER,STANDARD,3739,KAAA-Directorate of Economic Growth and Neighbourhood Services
RBC Legal Entity,06/04/2022,4658717,275757,PPL PRS LTD,Corporate FM - Community Buildings,437.29,Insurance  External,SUPPLIER,STANDARD,3739,KAAA-Directorate of Economic Growth and Neighbourhood Services
RBC Legal Entity,06/04/2022,4658717,275757,PPL PRS LTD,Corporate FM - Community Buildings,442.36,Insurance  External,SUPPLIER,STANDARD,3739,KAAA-Directorate of Economic Growth and Neighbourhood Services
RBC Legal Entity,06/04/2022,4658717,275757,PPL PRS LTD,Corporate FM - Community Buildings,472.85,Insurance  External,SUPPLIER,STANDARD,3739,KAAA-Directorate of Economic Growth and Neighbourhood Services
RBC Legal Entity,06/04/2022,4658717,275757,PPL PRS LTD,Corporate FM - Community Buildings,641.4,Insurance  External,SUPPLIER,STANDARD,3739,KAAA-Directorate of Economic Growth and Neighbourhood Services
RBC Legal Entity,06/04/2022,4658717,275757,PPL PRS LTD,Corporate FM - Community Buildings,746.95,Insurance  External,SUPPLIER,STANDARD,3739,KAAA-Directorate of Economic Growth and Neighbourhood Services
RBC Legal Entity,06/04/2022,4658717,275757,PPL PRS LTD,Corporate FM - Community Buildings,1318.73,Insurance  External,SUPPLIER,STANDARD,3739,KAAA-Directorate of Economic Growth and Neighbourhood Services
RBC Legal Entity,06/04/2022,4660366,275758,BROWNE JACOBSON LLP,Legal Services,1536.5,Misc. Legal Expenses,Third Party Supplier,STANDARD,2400,LAAA-Directorate of Resources
RBC Legal Entity,06/04/2022,4665858,275759,Brighter Futures for Children,Brighter Futures for Children,184921,TPP  Contract,Internal,STANDARD,5430,NAAA-Former Directorate of Education and Childrens Services
RBC Legal Entity,06/04/2022,4665861,275759,Brighter Futures for Children,DSG (RBC),17334,TPP  Contract,Internal,STANDARD,5432,NAAA-Former Directorate of Education and Childrens Services
RBC Legal Entity,06/04/2022,4665861,275759,Brighter Futures for Children,DSG (RBC),81833,TPP  Contract,Internal,STANDARD,5432,NAAA-Former Directorate of Education and Childrens Services
RBC Legal Entity,06/04/2022,4665861,275759,Brighter Futures for Children,DSG (RBC),767992,TPP  Contract,Internal,STANDARD,5432,NAAA-Former Directorate of Education and Childrens Services
RBC Legal Entity,06/04/2022,4665861,275759,Brighter Futures for Children,DSG (RBC),1905858,TPP  Contract,Internal,STANDARD,5432,NAAA-Former Directorate of Education and Childrens Services
RBC Legal Entity,06/04/2022,4665863,275759,Brighter Futures for Children,Brighter Futures for Children,374744,TPP  Contract,Internal,STANDARD,5430,NAAA-Former Directorate of Education and Childrens Services
RBC Legal Entity,06/04/2022,4665864,275759,Brighter Futures for Children,Brighter Futures for Children,3461275,TPP  Contract,Internal,STANDARD,5430,NAAA-Former Directorate of Education and Childrens Services
RBC Legal Entity,06/04/2022,4658026,275760,WHITESPACE WORK SOFTWARE LTD,Refuse Collection,240,Subscriptions,Third Party Supplier,STANDARD,4561,KAAA-Directorate of Economic Growth and Neighbourhood Services
RBC Legal Entity,06/04/2022,4658026,275760,WHITESPACE WORK SOFTWARE LTD,Refuse Collection,4200,Subscriptions,Third Party Supplier,STANDARD,4561,KAAA-Directorate of Economic Growth and Neighbourhood Services
RBC Legal Entity,06/04/2022,4658026,275760,WHITESPACE WORK SOFTWARE LTD,Refuse Collection,5000,Subscriptions,Third Party Supplier,STANDARD,4561,KAAA-Directorate of Economic Growth and Neighbourhood Services
RBC Legal Entity,06/04/2022,4658026,275760,WHITESPACE WORK SOFTWARE LTD,Refuse Collection,6000,Subscriptions,Third Party Supplier,STANDARD,4561,KAAA-Directorate of Economic Growth and Neighbourhood Services
RBC Legal Entity,06/04/2022,4664322,275761,J&R TYRES LTD,Fleet Management,430.5,Unfair Wear + Tear Costs,Third Party Supplier,STANDARD,4552,KAAA-Directorate of Economic Growth and Neighbourhood Services
RBC Legal Entity,06/04/2022,4665702,275762,QUALITY CARE PROVIDERS LIMITED,ASC Operational Management Team,4150,TPP to Others,SUPPLIER,STANDARD,5309,JAAA-Directorate of Social Care and Health Services
RBC Legal Entity,06/04/2022,4658076,275764,WORTHWHILE TRAINING,Corporate Organisational Development,550,Training & Development Costs,SUPPLIER,STANDARD,3435,LAAA-Directorate of Resources
RBC Legal Entity,06/04/2022,4665757,275765,KATHERINE WILSON LIMITED,JLT Disbursements,2927.26,Misc. Legal Expenses,SUPPLIER,STANDARD,2407,LAAA-Directorate of Resources
RBC Legal Entity,06/04/2022,4661059,275766,IBIS STYLES READING CENTRE,Single Homelessness Grants,185.36,Preventive+SupportiveServ,Third Party Supplier,STANDARD,5860,KAAA-Directorate of Economic Growth and Neighbourhood Services
RBC Legal Entity,06/04/2022,4661059,275766,IBIS STYLES READING CENTRE,Single Homelessness Grants,741.47,Preventive+SupportiveServ,Third Party Supplier,STANDARD,5860,KAAA-Directorate of Economic Growth and Neighbourhood Services
RBC Legal Entity,06/04/2022,4661059,275766,IBIS STYLES READING CENTRE,Single Homelessness Grants,1939.56,Preventive+SupportiveServ,Third Party Supplier,STANDARD,5860,KAAA-Directorate of Economic Growth and Neighbourhood Services
RBC Legal Entity,06/04/2022,4661074,275766,IBIS STYLES READING CENTRE,Single Homelessness Grants,497.78,Preventive+SupportiveServ,Third Party Supplier,STANDARD,5860,KAAA-Directorate of Economic Growth and Neighbourhood Services
RBC Legal Entity,06/04/2022,4661074,275766,IBIS STYLES READING CENTRE,Single Homelessness Grants,682.96,Preventive+SupportiveServ,Third Party Supplier,STANDARD,5860,KAAA-Directorate of Economic Growth and Neighbourhood Services
RBC Legal Entity,06/04/2022,4661074,275766,IBIS STYLES READING CENTRE,Single Homelessness Grants,2731.67,Preventive+SupportiveServ,Third Party Supplier,STANDARD,5860,KAAA-Directorate of Economic Growth and Neighbourhood Services
RBC Legal Entity,06/04/2022,4658780,275767,TESLA GROUP,Repairs,2318.25,Roofs + Structural,SUB-CONTRACTOR,STANDARD,5970,HAAA-Housing Revenue Account
RBC Legal Entity,06/04/2022,4660371,275768,BIG YELLOW SELF STORAGE LTD,ASC Locality Team,150,MH Support Needs,Third Party Supplier,STANDARD,5721,JAAA-Directorate of Social Care and Health Services
RBC Legal Entity,06/04/2022,4660371,275768,BIG YELLOW SELF STORAGE LTD,ASC Locality Team,750,MH Support Needs,Third Party Supplier,STANDARD,5721,JAAA-Directorate of Social Care and Health Services
RBC Legal Entity,06/04/2022,4665847,275769,CHRISTOPHER EDWARD JORDAN,Housing Advice,1374.52,Responsive Repairs,Landlord,STANDARD,5820,KAAA-Directorate of Economic Growth and Neighbourhood Services
RBC Legal Entity,06/04/2022,4665698,275771,DEPARTMENT OF HEALTH AND SOCIAL CARE ,ASC Operational Management Team,80850.62,Other support - not recoverabl,GOVERNMENT,STANDARD,5309,JAAA-Directorate of Social Care and Health Services
RBC Legal Entity,06/04/2022,4665699,275771,DEPARTMENT OF HEALTH AND SOCIAL CARE ,ASC Operational Management Team,61735.6,Other support - not recoverabl,GOVERNMENT,STANDARD,5309,JAAA-Directorate of Social Care and Health Services
RBC Legal Entity,06/04/2022,4661274,275772,MLP DECORATING & BUILDING SERVICES,Corporate Maintenance Services,3400,NNDR Pool,SUB-CONTRACTOR,STANDARD,4080,KAAA-Directorate of Economic Growth and Neighbourhood Services
RBC Legal Entity,06/04/2022,4661274,275772,MLP DECORATING & BUILDING SERVICES,Corporate Maintenance Services,6600,NNDR Pool,SUB-CONTRACTOR,STANDARD,4080,KAAA-Directorate of Economic Growth and Neighbourhood Services
RBC Legal Entity,06/04/2022,4665845,275774,VERDANT LANDSCAPE GARDENS LTD,Private Sector Grants,3836.51,Grants (Paid out by RBC),SUB-CONTRACTOR,STANDARD,8500,ZZZC-Capital
RBC Legal Entity,06/04/2022,4665736,275776,ETERNAL READING HOMECARE,ASC Operational Management Team,1450,TPP to Others,Third Party Supplier,STANDARD,5309,JAAA-Directorate of Social Care and Health Services
RBC Legal Entity,06/04/2022,4658714,275777,GOOD HONEST MUSIC,South Street Operations,800,Professional Fees,Third Party Supplier,STANDARD,1220,KAAA-Directorate of Economic Growth and Neighbourhood Services
RBC Legal Entity,06/04/2022,4659357,275778,JACK ANDERSON,JLT Disbursements,500,Misc. Legal Expenses,SUPPLIER,STANDARD,2407,LAAA-Directorate of Resources
RBC Legal Entity,06/04/2022,4659992,275779,F M CONWAY LTD,Highways,866.48,Materials Direct,SUB-CONTRACTOR,STANDARD,4252,KAAA-Directorate of Economic Growth and Neighbourhood Services
RBC Legal Entity,06/04/2022,4659994,275779,F M CONWAY LTD,Highways,486.92,Materials Direct,SUB-CONTRACTOR,STANDARD,4252,KAAA-Directorate of Economic Growth and Neighbourhood Services
RBC Legal Entity,07/04/2022,4666042,275782,THE HILL PRIMARY SCHOOL,Primary School Delegated Budget (DSG),103865.53,School Transfer Payment,SUPPLIER,STANDARD,3140,NAAA-Former Directorate of Education and Childrens Services
RBC Legal Entity,07/04/2022,4666068,275782,THE HILL PRIMARY SCHOOL,Primary School Delegated Budget (DSG),-1829.52,School Transfer Payment,SUPPLIER,CREDIT,3140,NAAA-Former Directorate of Education and Childrens Services
RBC Legal Entity,07/04/2022,4666094,275782,THE HILL PRIMARY SCHOOL,Primary School Delegated Budget (DSG),-1728.24,School Transfer Payment,SUPPLIER,CREDIT,3140,NAAA-Former Directorate of Education and Childrens Services
RBC Legal Entity,07/04/2022,4666120,275782,THE HILL PRIMARY SCHOOL,Primary School Delegated Budget (DSG),-4961.88,School Transfer Payment,SUPPLIER,CREDIT,3140,NAAA-Former Directorate of Education and Childrens Services
RBC Legal Entity,07/04/2022,4666145,275782,THE HILL PRIMARY SCHOOL,Primary School Delegated Budget (DSG),-3100.68,School Transfer Payment,SUPPLIER,CREDIT,3140,NAAA-Former Directorate of Education and Childrens Services
RBC Legal Entity,07/04/2022,4661111,275784,MORRIS & BLUNT,MRA Account,8667.92,Roofs + Structural,SUB-CONTRACTOR,STANDARD,5975,HAAA-Housing Revenue Account
RBC Legal Entity,07/04/2022,4661113,275784,MORRIS & BLUNT,MRA Account,38478.42,Hexham Road Project,SUB-CONTRACTOR,STANDARD,5975,HAAA-Housing Revenue Account
RBC Legal Entity,07/04/2022,4661138,275784,MORRIS & BLUNT,Repairs,1860.34,Special Adaptions,SUB-CONTRACTOR,STANDARD,5970,HAAA-Housing Revenue Account
RBC Legal Entity,07/04/2022,4661138,275784,MORRIS & BLUNT,Repairs,4734.36,Special Adaptions,SUB-CONTRACTOR,STANDARD,5970,HAAA-Housing Revenue Account
RBC Legal Entity,07/04/2022,4662049,275784,MORRIS & BLUNT,MRA Account,5545,Major Repairs,SUB-CONTRACTOR,STANDARD,5975,HAAA-Housing Revenue Account
RBC Legal Entity,07/04/2022,4663779,275784,MORRIS & BLUNT,MRA Account,37068.38,Window Replacement,SUB-CONTRACTOR,STANDARD,5975,HAAA-Housing Revenue Account
RBC Legal Entity,07/04/2022,4659370,275786,RNID,Customer Services - Reception,2316.65,Translat.+Interpretation,Third Party Supplier,STANDARD,2595,LAAA-Directorate of Resources
RBC Legal Entity,07/04/2022,4660091,275788,HOBART UK,Corporate Maintenance Services,1555.79,TPP  Contract,SUPPLIER,STANDARD,4080,KAAA-Directorate of Economic Growth and Neighbourhood Services
RBC Legal Entity,07/04/2022,4658060,275789,BERKSHIRE COLLEGE OF AGRICULTURE,DEGNS Management,892,Training & Development Costs,SUPPLIER,STANDARD,1500,KAAA-Directorate of Economic Growth and Neighbourhood Services
RBC Legal Entity,07/04/2022,4660018,275792,ASKEWS & HOLTS LIBRARY SERVICES LTD,Reading Libraries,1200,Adult Non Fiction Books,SUPPLIER,STANDARD,1400,KAAA-Directorate of Economic Growth and Neighbourhood Services
RBC Legal Entity,07/04/2022,4660022,275792,ASKEWS & HOLTS LIBRARY SERVICES LTD,Reading Libraries,1200,Adult Non Fiction Books,SUPPLIER,STANDARD,1400,KAAA-Directorate of Economic Growth and Neighbourhood Services
RBC Legal Entity,07/04/2022,4665840,275793,LAPLACE BUILDING SOLUTIONS (SOUTH) LIMITED,Repairs,350.95,Essential Cyclical Insp. + Mai,SUB-CONTRACTOR,STANDARD,5970,HAAA-Housing Revenue Account
RBC Legal Entity,07/04/2022,4665840,275793,LAPLACE BUILDING SOLUTIONS (SOUTH) LIMITED,Corporate Maintenance Services,2586.33,Leasing Costs,SUB-CONTRACTOR,STANDARD,4080,KAAA-Directorate of Economic Growth and Neighbourhood Services
RBC Legal Entity,07/04/2022,4665840,275793,LAPLACE BUILDING SOLUTIONS (SOUTH) LIMITED,Corporate Maintenance Services,4570.66,Precepts,SUB-CONTRACTOR,STANDARD,4080,KAAA-Directorate of Economic Growth and Neighbourhood Services
RBC Legal Entity,07/04/2022,4658067,275794,ST JOHN AMBULANCE,Corporate Organisational Development,600,Training & Development Costs,SUPPLIER,STANDARD,3435,LAAA-Directorate of Resources
RBC Legal Entity,07/04/2022,4666536,275795,CHRISTIAN COMMUNITY ACTION,Voluntary Sector & Community Grants,1870,GrantsVolunt.Organ.,SUPPLIER,STANDARD,2041,LAAA-Directorate of Resources
RBC Legal Entity,07/04/2022,4666149,275797,BLESSED HUGH FARINGDON RC SCHOOL,Primary School Delegated Budget (DSG),405807.72,School Transfer Payment,GOVERNMENT,STANDARD,3140,NAAA-Former Directorate of Education and Childrens Services
RBC Legal Entity,07/04/2022,4666150,275797,BLESSED HUGH FARINGDON RC SCHOOL,Primary School Delegated Budget (DSG),-836.62,School Transfer Payment,GOVERNMENT,CREDIT,3140,NAAA-Former Directorate of Education and Childrens Services
RBC Legal Entity,07/04/2022,4666151,275797,BLESSED HUGH FARINGDON RC SCHOOL,Primary School Delegated Budget (DSG),-522.8,School Transfer Payment,GOVERNMENT,CREDIT,3140,NAAA-Former Directorate of Education and Childrens Services
RBC Legal Entity,07/04/2022,4665662,275798,INITIAL,LD Day Services,107.55,Refuse collection,Third Party Supplier,STANDARD,5055,JAAA-Directorate of Social Care and Health Services
RBC Legal Entity,07/04/2022,4665662,275798,INITIAL,Community Re-ablement Team,146.18,Refuse collection,Third Party Supplier,STANDARD,5205,JAAA-Directorate of Social Care and Health Services
RBC Legal Entity,07/04/2022,4665662,275798,INITIAL,LD Respite,866.87,Refuse collection,Third Party Supplier,STANDARD,5064,JAAA-Directorate of Social Care and Health Services
RBC Legal Entity,07/04/2022,4666630,275801,THAMES WATER UTILITIES LTD,Sheltered Housing,836.04,Water and Sewerage,SUB-CONTRACTOR,STANDARD,5940,HAAA-Housing Revenue Account
RBC Legal Entity,07/04/2022,4666631,275801,THAMES WATER UTILITIES LTD,Sheltered Housing,542.74,Water and Sewerage,SUB-CONTRACTOR,STANDARD,5940,HAAA-Housing Revenue Account
RBC Legal Entity,07/04/2022,4666635,275801,THAMES WATER UTILITIES LTD,Sheltered Housing,605.19,Water and Sewerage,SUB-CONTRACTOR,STANDARD,5940,HAAA-Housing Revenue Account
RBC Legal Entity,07/04/2022,4666637,275801,THAMES WATER UTILITIES LTD,Sheltered Housing,1174.74,Water and Sewerage,SUB-CONTRACTOR,STANDARD,5940,HAAA-Housing Revenue Account
RBC Legal Entity,07/04/2022,4662225,275803,CLC CONTRACTORS LTD,DLO Kitchen & Bathroom Trades,1880.92,Subcontractors Labour,SUB-CONTRACTOR,STANDARD,4042,KAAA-Directorate of Economic Growth and Neighbourhood Services
RBC Legal Entity,07/04/2022,4666603,275804,WOKINGHAM BOROUGH COUNCIL,Sheltered Housing,1397.79,Council Tax,Third Party Supplier,STANDARD,5940,HAAA-Housing Revenue Account
RBC Legal Entity,07/04/2022,4666505,275805,READING INTERNATIONAL SOLIDARITY CENTRE,Voluntary Sector & Community Grants,500,GrantsVolunt.Organ.,Third Party Supplier,STANDARD,2041,LAAA-Directorate of Resources
RBC Legal Entity,07/04/2022,4665865,275806,CIPFA,Accountancy,11245,Subscriptions,Third Party Supplier,STANDARD,2200,LAAA-Directorate of Resources
RBC Legal Entity,07/04/2022,4665865,275806,CIPFA,Accountancy,16453,Subscriptions,Third Party Supplier,STANDARD,2200,LAAA-Directorate of Resources
RBC Legal Entity,07/04/2022,4666046,275808,ALFRED SUTTON PRIMARY SCHOOL,Primary School Delegated Budget (DSG),-2896.74,School Transfer Payment,SUPPLIER,CREDIT,3140,NAAA-Former Directorate of Education and Childrens Services
RBC Legal Entity,07/04/2022,4666072,275808,ALFRED SUTTON PRIMARY SCHOOL,Primary School Delegated Budget (DSG),-11097.12,School Transfer Payment,SUPPLIER,CREDIT,3140,NAAA-Former Directorate of Education and Childrens Services
RBC Legal Entity,07/04/2022,4666098,275808,ALFRED SUTTON PRIMARY SCHOOL,Primary School Delegated Budget (DSG),-7856.31,School Transfer Payment,SUPPLIER,CREDIT,3140,NAAA-Former Directorate of Education and Childrens Services
RBC Legal Entity,07/04/2022,4666237,275808,ALFRED SUTTON PRIMARY SCHOOL,Primary School Delegated Budget (DSG),163014.42,School Transfer Payment,SUPPLIER,STANDARD,3140,NAAA-Former Directorate of Education and Childrens Services
RBC Legal Entity,07/04/2022,4666238,275808,ALFRED SUTTON PRIMARY SCHOOL,Primary School Delegated Budget (DSG),-4909.41,School Transfer Payment,SUPPLIER,CREDIT,3140,NAAA-Former Directorate of Education and Childrens Services
RBC Legal Entity,07/04/2022,4666021,275809,ALL SAINTS CE INFANTS,Primary School Delegated Budget (DSG),20830.07,School Transfer Payment,GOVERNMENT,STANDARD,3140,NAAA-Former Directorate of Education and Childrens Services
RBC Legal Entity,07/04/2022,4666099,275809,ALL SAINTS CE INFANTS,Primary School Delegated Budget (DSG),-751.8,School Transfer Payment,GOVERNMENT,CREDIT,3140,NAAA-Former Directorate of Education and Childrens Services
RBC Legal Entity,07/04/2022,4666022,275810,CAVERSHAM PARK PRIMARY,Primary School Delegated Budget (DSG),41600.77,School Transfer Payment,SUPPLIER,STANDARD,3140,NAAA-Former Directorate of Education and Childrens Services
RBC Legal Entity,07/04/2022,4666048,275810,CAVERSHAM PARK PRIMARY,Primary School Delegated Budget (DSG),-683.76,School Transfer Payment,SUPPLIER,CREDIT,3140,NAAA-Former Directorate of Education and Childrens Services
RBC Legal Entity,07/04/2022,4666074,275810,CAVERSHAM PARK PRIMARY,Primary School Delegated Budget (DSG),-1455.36,School Transfer Payment,SUPPLIER,CREDIT,3140,NAAA-Former Directorate of Education and Childrens Services
RBC Legal Entity,07/04/2022,4666100,275810,CAVERSHAM PARK PRIMARY,Primary School Delegated Budget (DSG),-1854.44,School Transfer Payment,SUPPLIER,CREDIT,3140,NAAA-Former Directorate of Education and Childrens Services
RBC Legal Entity,07/04/2022,4666125,275810,CAVERSHAM PARK PRIMARY,Primary School Delegated Budget (DSG),-1158.84,School Transfer Payment,SUPPLIER,CREDIT,3140,NAAA-Former Directorate of Education and Childrens Services
RBC Legal Entity,07/04/2022,4666023,275811,CAVERSHAM PRIMARY,Primary School Delegated Budget (DSG),107826.66,School Transfer Payment,SUPPLIER,STANDARD,3140,NAAA-Former Directorate of Education and Childrens Services
RBC Legal Entity,07/04/2022,4666049,275811,CAVERSHAM PRIMARY,Primary School Delegated Budget (DSG),-1917.3,School Transfer Payment,SUPPLIER,CREDIT,3140,NAAA-Former Directorate of Education and Childrens Services
RBC Legal Entity,07/04/2022,4666075,275811,CAVERSHAM PRIMARY,Primary School Delegated Budget (DSG),-1455.36,School Transfer Payment,SUPPLIER,CREDIT,3140,NAAA-Former Directorate of Education and Childrens Services
RBC Legal Entity,07/04/2022,4666101,275811,CAVERSHAM PRIMARY,Primary School Delegated Budget (DSG),-5199.95,School Transfer Payment,SUPPLIER,CREDIT,3140,NAAA-Former Directorate of Education and Childrens Services
RBC Legal Entity,07/04/2022,4666126,275811,CAVERSHAM PRIMARY,Primary School Delegated Budget (DSG),-3249.45,School Transfer Payment,SUPPLIER,CREDIT,3140,NAAA-Former Directorate of Education and Childrens Services
RBC Legal Entity,07/04/2022,4666024,275812,CHRIST THE KING RC PRIMARY,Primary School Delegated Budget (DSG),89397.98,School Transfer Payment,Third Party Supplier,STANDARD,3140,NAAA-Former Directorate of Education and Childrens Services
RBC Legal Entity,07/04/2022,4666050,275812,CHRIST THE KING RC PRIMARY,Primary School Delegated Budget (DSG),-1372.14,School Transfer Payment,Third Party Supplier,CREDIT,3140,NAAA-Former Directorate of Education and Childrens Services
RBC Legal Entity,07/04/2022,4666076,275812,CHRIST THE KING RC PRIMARY,Primary School Delegated Budget (DSG),-7731.6,School Transfer Payment,Third Party Supplier,CREDIT,3140,NAAA-Former Directorate of Education and Childrens Services
RBC Legal Entity,07/04/2022,4666102,275812,CHRIST THE KING RC PRIMARY,Primary School Delegated Budget (DSG),-3721.41,School Transfer Payment,Third Party Supplier,CREDIT,3140,NAAA-Former Directorate of Education and Childrens Services
RBC Legal Entity,07/04/2022,4666127,275812,CHRIST THE KING RC PRIMARY,Primary School Delegated Budget (DSG),-2325.51,School Transfer Payment,Third Party Supplier,CREDIT,3140,NAAA-Former Directorate of Education and Childrens Services
RBC Legal Entity,07/04/2022,4666025,275813,COLEY PRIMARY,Primary School Delegated Budget (DSG),59537.35,School Transfer Payment,SUPPLIER,STANDARD,3140,NAAA-Former Directorate of Education and Childrens Services
RBC Legal Entity,07/04/2022,4666051,275813,COLEY PRIMARY,Primary School Delegated Budget (DSG),-905.52,School Transfer Payment,SUPPLIER,CREDIT,3140,NAAA-Former Directorate of Education and Childrens Services
RBC Legal Entity,07/04/2022,4666077,275813,COLEY PRIMARY,Primary School Delegated Budget (DSG),-4457.04,School Transfer Payment,SUPPLIER,CREDIT,3140,NAAA-Former Directorate of Education and Childrens Services
RBC Legal Entity,07/04/2022,4666103,275813,COLEY PRIMARY,Primary School Delegated Budget (DSG),-2455.88,School Transfer Payment,SUPPLIER,CREDIT,3140,NAAA-Former Directorate of Education and Childrens Services
RBC Legal Entity,07/04/2022,4666128,275813,COLEY PRIMARY,Primary School Delegated Budget (DSG),-1534.68,School Transfer Payment,SUPPLIER,CREDIT,3140,NAAA-Former Directorate of Education and Childrens Services
RBC Legal Entity,07/04/2022,4666026,275814,E P COLLIER PRIMARY,Primary School Delegated Budget (DSG),87547,School Transfer Payment,Third Party Supplier,STANDARD,3140,NAAA-Former Directorate of Education and Childrens Services
RBC Legal Entity,07/04/2022,4666052,275814,E P COLLIER PRIMARY,Primary School Delegated Budget (DSG),-1409.1,School Transfer Payment,Third Party Supplier,CREDIT,3140,NAAA-Former Directorate of Education and Childrens Services
RBC Legal Entity,07/04/2022,4666078,275814,E P COLLIER PRIMARY,Primary School Delegated Budget (DSG),-6094.32,School Transfer Payment,Third Party Supplier,CREDIT,3140,NAAA-Former Directorate of Education and Childrens Services
RBC Legal Entity,07/04/2022,4666104,275814,E P COLLIER PRIMARY,Primary School Delegated Budget (DSG),-3821.65,School Transfer Payment,Third Party Supplier,CREDIT,3140,NAAA-Former Directorate of Education and Childrens Services
RBC Legal Entity,07/04/2022,4666129,275814,E P COLLIER PRIMARY,Primary School Delegated Budget (DSG),-2388.15,School Transfer Payment,Third Party Supplier,CREDIT,3140,NAAA-Former Directorate of Education and Childrens Services
RBC Legal Entity,07/04/2022,4666027,275815,EMMER GREEN PRIMARY,Primary School Delegated Budget (DSG),106879.86,School Transfer Payment,SUPPLIER,STANDARD,3140,NAAA-Former Directorate of Education and Childrens Services
RBC Legal Entity,07/04/2022,4666053,275815,EMMER GREEN PRIMARY,Primary School Delegated Budget (DSG),-1898.82,School Transfer Payment,SUPPLIER,CREDIT,3140,NAAA-Former Directorate of Education and Childrens Services
RBC Legal Entity,07/04/2022,4666079,275815,EMMER GREEN PRIMARY,Primary School Delegated Budget (DSG),-1000.56,School Transfer Payment,SUPPLIER,CREDIT,3140,NAAA-Former Directorate of Education and Childrens Services
RBC Legal Entity,07/04/2022,4666105,275815,EMMER GREEN PRIMARY,Primary School Delegated Budget (DSG),-5149.83,School Transfer Payment,SUPPLIER,CREDIT,3140,NAAA-Former Directorate of Education and Childrens Services
RBC Legal Entity,07/04/2022,4666130,275815,EMMER GREEN PRIMARY,Primary School Delegated Budget (DSG),-3218.13,School Transfer Payment,SUPPLIER,CREDIT,3140,NAAA-Former Directorate of Education and Childrens Services
RBC Legal Entity,07/04/2022,4666028,275816,ENGLISH MARTYRS RC PRIMARY,Primary School Delegated Budget (DSG),107391,School Transfer Payment,SUPPLIER,STANDARD,3140,NAAA-Former Directorate of Education and Childrens Services
RBC Legal Entity,07/04/2022,4666054,275816,ENGLISH MARTYRS RC PRIMARY,Primary School Delegated Budget (DSG),-1857.24,School Transfer Payment,SUPPLIER,CREDIT,3140,NAAA-Former Directorate of Education and Childrens Services
RBC Legal Entity,07/04/2022,4666080,275816,ENGLISH MARTYRS RC PRIMARY,Primary School Delegated Budget (DSG),-6458.16,School Transfer Payment,SUPPLIER,CREDIT,3140,NAAA-Former Directorate of Education and Childrens Services
RBC Legal Entity,07/04/2022,4666106,275816,ENGLISH MARTYRS RC PRIMARY,Primary School Delegated Budget (DSG),-5037.06,School Transfer Payment,SUPPLIER,CREDIT,3140,NAAA-Former Directorate of Education and Childrens Services
RBC Legal Entity,07/04/2022,4666131,275816,ENGLISH MARTYRS RC PRIMARY,Primary School Delegated Budget (DSG),-3147.66,School Transfer Payment,SUPPLIER,CREDIT,3140,NAAA-Former Directorate of Education and Childrens Services
RBC Legal Entity,07/04/2022,4666029,275817,GEOFFREY FIELD INFANT SCHOOL,Primary School Delegated Budget (DSG),80795.79,School Transfer Payment,SUPPLIER,STANDARD,3140,NAAA-Former Directorate of Education and Childrens Services
RBC Legal Entity,07/04/2022,4666055,275817,GEOFFREY FIELD INFANT SCHOOL,Primary School Delegated Budget (DSG),-1233.54,School Transfer Payment,SUPPLIER,CREDIT,3140,NAAA-Former Directorate of Education and Childrens Services
RBC Legal Entity,07/04/2022,4666081,275817,GEOFFREY FIELD INFANT SCHOOL,Primary School Delegated Budget (DSG),-7822.56,School Transfer Payment,SUPPLIER,CREDIT,3140,NAAA-Former Directorate of Education and Childrens Services
RBC Legal Entity,07/04/2022,4666107,275817,GEOFFREY FIELD INFANT SCHOOL,Primary School Delegated Budget (DSG),-3345.51,School Transfer Payment,SUPPLIER,CREDIT,3140,NAAA-Former Directorate of Education and Childrens Services
RBC Legal Entity,07/04/2022,4666132,275817,GEOFFREY FIELD INFANT SCHOOL,Primary School Delegated Budget (DSG),-2090.61,School Transfer Payment,SUPPLIER,CREDIT,3140,NAAA-Former Directorate of Education and Childrens Services
RBC Legal Entity,07/04/2022,4666030,275818,GEOFFREY FIELD JUNIOR,Primary School Delegated Budget (DSG),103510.46,School Transfer Payment,SUPPLIER,STANDARD,3140,NAAA-Former Directorate of Education and Childrens Services
RBC Legal Entity,07/04/2022,4666056,275818,GEOFFREY FIELD JUNIOR,Primary School Delegated Budget (DSG),-1644.72,School Transfer Payment,SUPPLIER,CREDIT,3140,NAAA-Former Directorate of Education and Childrens Services
RBC Legal Entity,07/04/2022,4666082,275818,GEOFFREY FIELD JUNIOR,Primary School Delegated Budget (DSG),-10369.44,School Transfer Payment,SUPPLIER,CREDIT,3140,NAAA-Former Directorate of Education and Childrens Services
RBC Legal Entity,07/04/2022,4666108,275818,GEOFFREY FIELD JUNIOR,Primary School Delegated Budget (DSG),-4460.68,School Transfer Payment,SUPPLIER,CREDIT,3140,NAAA-Former Directorate of Education and Childrens Services
RBC Legal Entity,07/04/2022,4666133,275818,GEOFFREY FIELD JUNIOR,Primary School Delegated Budget (DSG),-2787.48,School Transfer Payment,SUPPLIER,CREDIT,3140,NAAA-Former Directorate of Education and Childrens Services
RBC Legal Entity,07/04/2022,4666031,275819,KATESGROVE PRIMARY,Primary School Delegated Budget (DSG),166883.33,School Transfer Payment,SUPPLIER,STANDARD,3140,NAAA-Former Directorate of Education and Childrens Services
RBC Legal Entity,07/04/2022,4666057,275819,KATESGROVE PRIMARY,Primary School Delegated Budget (DSG),-2795.1,School Transfer Payment,SUPPLIER,CREDIT,3140,NAAA-Former Directorate of Education and Childrens Services
RBC Legal Entity,07/04/2022,4666083,275819,KATESGROVE PRIMARY,Primary School Delegated Budget (DSG),-7731.6,School Transfer Payment,SUPPLIER,CREDIT,3140,NAAA-Former Directorate of Education and Childrens Services
RBC Legal Entity,07/04/2022,4666109,275819,KATESGROVE PRIMARY,Primary School Delegated Budget (DSG),-7580.65,School Transfer Payment,SUPPLIER,CREDIT,3140,NAAA-Former Directorate of Education and Childrens Services
RBC Legal Entity,07/04/2022,4666134,275819,KATESGROVE PRIMARY,Primary School Delegated Budget (DSG),-4737.15,School Transfer Payment,SUPPLIER,CREDIT,3140,NAAA-Former Directorate of Education and Childrens Services
RBC Legal Entity,07/04/2022,4666225,275820,MANOR PRIMARY,Primary School Delegated Budget (DSG),75986.09,School Transfer Payment,SUPPLIER,STANDARD,3140,NAAA-Former Directorate of Education and Childrens Services
RBC Legal Entity,07/04/2022,4666226,275820,MANOR PRIMARY,Primary School Delegated Budget (DSG),-1164.24,School Transfer Payment,SUPPLIER,CREDIT,3140,NAAA-Former Directorate of Education and Childrens Services
RBC Legal Entity,07/04/2022,4666227,275820,MANOR PRIMARY,Primary School Delegated Budget (DSG),-9459.84,School Transfer Payment,SUPPLIER,CREDIT,3140,NAAA-Former Directorate of Education and Childrens Services
RBC Legal Entity,07/04/2022,4666228,275820,MANOR PRIMARY,Primary School Delegated Budget (DSG),-3157.56,School Transfer Payment,SUPPLIER,CREDIT,3140,NAAA-Former Directorate of Education and Childrens Services
RBC Legal Entity,07/04/2022,4666229,275820,MANOR PRIMARY,Primary School Delegated Budget (DSG),-1973.16,School Transfer Payment,SUPPLIER,CREDIT,3140,NAAA-Former Directorate of Education and Childrens Services
RBC Legal Entity,07/04/2022,4666032,275821,MICKLANDS PRIMARY,Primary School Delegated Budget (DSG),98983.2,School Transfer Payment,SUPPLIER,STANDARD,3140,NAAA-Former Directorate of Education and Childrens Services
RBC Legal Entity,07/04/2022,4666058,275821,MICKLANDS PRIMARY,Primary School Delegated Budget (DSG),-1737.12,School Transfer Payment,SUPPLIER,CREDIT,3140,NAAA-Former Directorate of Education and Childrens Services
RBC Legal Entity,07/04/2022,4666084,275821,MICKLANDS PRIMARY,Primary School Delegated Budget (DSG),-6185.28,School Transfer Payment,SUPPLIER,CREDIT,3140,NAAA-Former Directorate of Education and Childrens Services
RBC Legal Entity,07/04/2022,4666110,275821,MICKLANDS PRIMARY,Primary School Delegated Budget (DSG),-4711.28,School Transfer Payment,SUPPLIER,CREDIT,3140,NAAA-Former Directorate of Education and Childrens Services
RBC Legal Entity,07/04/2022,4666135,275821,MICKLANDS PRIMARY,Primary School Delegated Budget (DSG),-2944.08,School Transfer Payment,SUPPLIER,CREDIT,3140,NAAA-Former Directorate of Education and Childrens Services
RBC Legal Entity,07/04/2022,4666033,275822,MOORLANDS PRIMARY,Primary School Delegated Budget (DSG),99529.64,School Transfer Payment,SUPPLIER,STANDARD,3140,NAAA-Former Directorate of Education and Childrens Services
RBC Legal Entity,07/04/2022,4666059,275822,MOORLANDS PRIMARY,Primary School Delegated Budget (DSG),-1547.7,School Transfer Payment,SUPPLIER,CREDIT,3140,NAAA-Former Directorate of Education and Childrens Services
RBC Legal Entity,07/04/2022,4666085,275822,MOORLANDS PRIMARY,Primary School Delegated Budget (DSG),-14371.68,School Transfer Payment,SUPPLIER,CREDIT,3140,NAAA-Former Directorate of Education and Childrens Services
RBC Legal Entity,07/04/2022,4666111,275822,MOORLANDS PRIMARY,Primary School Delegated Budget (DSG),-4197.55,School Transfer Payment,SUPPLIER,CREDIT,3140,NAAA-Former Directorate of Education and Childrens Services
RBC Legal Entity,07/04/2022,4666136,275822,MOORLANDS PRIMARY,Primary School Delegated Budget (DSG),-2623.05,School Transfer Payment,SUPPLIER,CREDIT,3140,NAAA-Former Directorate of Education and Childrens Services
RBC Legal Entity,07/04/2022,4666034,275823,OXFORD ROAD PRIMARY,Primary School Delegated Budget (DSG),62969.92,School Transfer Payment,SUPPLIER,STANDARD,3140,NAAA-Former Directorate of Education and Childrens Services
RBC Legal Entity,07/04/2022,4666060,275823,OXFORD ROAD PRIMARY,Primary School Delegated Budget (DSG),-974.82,School Transfer Payment,SUPPLIER,CREDIT,3140,NAAA-Former Directorate of Education and Childrens Services
RBC Legal Entity,07/04/2022,4666086,275823,OXFORD ROAD PRIMARY,Primary School Delegated Budget (DSG),-4820.88,School Transfer Payment,SUPPLIER,CREDIT,3140,NAAA-Former Directorate of Education and Childrens Services
RBC Legal Entity,07/04/2022,4666112,275823,OXFORD ROAD PRIMARY,Primary School Delegated Budget (DSG),-2643.83,School Transfer Payment,SUPPLIER,CREDIT,3140,NAAA-Former Directorate of Education and Childrens Services
RBC Legal Entity,07/04/2022,4666137,275823,OXFORD ROAD PRIMARY,Primary School Delegated Budget (DSG),-1652.13,School Transfer Payment,SUPPLIER,CREDIT,3140,NAAA-Former Directorate of Education and Childrens Services
RBC Legal Entity,07/04/2022,4666035,275824,PARK LANE PRIMARY,Primary School Delegated Budget (DSG),106661.03,School Transfer Payment,SUPPLIER,STANDARD,3140,NAAA-Former Directorate of Education and Childrens Services
RBC Legal Entity,07/04/2022,4666061,275824,PARK LANE PRIMARY,Primary School Delegated Budget (DSG),-1866.48,School Transfer Payment,SUPPLIER,CREDIT,3140,NAAA-Former Directorate of Education and Childrens Services
RBC Legal Entity,07/04/2022,4666087,275824,PARK LANE PRIMARY,Primary School Delegated Budget (DSG),-7822.56,School Transfer Payment,SUPPLIER,CREDIT,3140,NAAA-Former Directorate of Education and Childrens Services
RBC Legal Entity,07/04/2022,4666113,275824,PARK LANE PRIMARY,Primary School Delegated Budget (DSG),-5062.12,School Transfer Payment,SUPPLIER,CREDIT,3140,NAAA-Former Directorate of Education and Childrens Services
RBC Legal Entity,07/04/2022,4666138,275824,PARK LANE PRIMARY,Primary School Delegated Budget (DSG),-3163.32,School Transfer Payment,SUPPLIER,CREDIT,3140,NAAA-Former Directorate of Education and Childrens Services
RBC Legal Entity,07/04/2022,4666036,275825,REDLANDS PRIMARY,Primary School Delegated Budget (DSG),58593.56,School Transfer Payment,SUPPLIER,STANDARD,3140,NAAA-Former Directorate of Education and Childrens Services
RBC Legal Entity,07/04/2022,4666062,275825,REDLANDS PRIMARY,Primary School Delegated Budget (DSG),-956.34,School Transfer Payment,SUPPLIER,CREDIT,3140,NAAA-Former Directorate of Education and Childrens Services
RBC Legal Entity,07/04/2022,4666088,275825,REDLANDS PRIMARY,Primary School Delegated Budget (DSG),-3183.6,School Transfer Payment,SUPPLIER,CREDIT,3140,NAAA-Former Directorate of Education and Childrens Services
RBC Legal Entity,07/04/2022,4666114,275825,REDLANDS PRIMARY,Primary School Delegated Budget (DSG),-2593.71,School Transfer Payment,SUPPLIER,CREDIT,3140,NAAA-Former Directorate of Education and Childrens Services
RBC Legal Entity,07/04/2022,4666139,275825,REDLANDS PRIMARY,Primary School Delegated Budget (DSG),-1620.81,School Transfer Payment,SUPPLIER,CREDIT,3140,NAAA-Former Directorate of Education and Childrens Services
RBC Legal Entity,07/04/2022,4666043,275826,THE RIDGEWAY PRIMARY,Primary School Delegated Budget (DSG),125636.28,School Transfer Payment,SUPPLIER,STANDARD,3140,NAAA-Former Directorate of Education and Childrens Services
RBC Legal Entity,07/04/2022,4666069,275826,THE RIDGEWAY PRIMARY,Primary School Delegated Budget (DSG),-1935.78,School Transfer Payment,SUPPLIER,CREDIT,3140,NAAA-Former Directorate of Education and Childrens Services
RBC Legal Entity,07/04/2022,4666095,275826,THE RIDGEWAY PRIMARY,Primary School Delegated Budget (DSG),-12097.68,School Transfer Payment,SUPPLIER,CREDIT,3140,NAAA-Former Directorate of Education and Childrens Services
RBC Legal Entity,07/04/2022,4666121,275826,THE RIDGEWAY PRIMARY,Primary School Delegated Budget (DSG),-5250.07,School Transfer Payment,SUPPLIER,CREDIT,3140,NAAA-Former Directorate of Education and Childrens Services
RBC Legal Entity,07/04/2022,4666146,275826,THE RIDGEWAY PRIMARY,Primary School Delegated Budget (DSG),-3280.77,School Transfer Payment,SUPPLIER,CREDIT,3140,NAAA-Former Directorate of Education and Childrens Services
RBC Legal Entity,07/04/2022,4666037,275827,SOUTHCOTE PRIMARY,Primary School Delegated Budget (DSG),157502.88,School Transfer Payment,SUPPLIER,STANDARD,3140,NAAA-Former Directorate of Education and Childrens Services
RBC Legal Entity,07/04/2022,4666063,275827,SOUTHCOTE PRIMARY,Primary School Delegated Budget (DSG),-2772,School Transfer Payment,SUPPLIER,CREDIT,3140,NAAA-Former Directorate of Education and Childrens Services
RBC Legal Entity,07/04/2022,4666089,275827,SOUTHCOTE PRIMARY,Primary School Delegated Budget (DSG),-7094.88,School Transfer Payment,SUPPLIER,CREDIT,3140,NAAA-Former Directorate of Education and Childrens Services
RBC Legal Entity,07/04/2022,4666115,275827,SOUTHCOTE PRIMARY,Primary School Delegated Budget (DSG),-7518,School Transfer Payment,SUPPLIER,CREDIT,3140,NAAA-Former Directorate of Education and Childrens Services
RBC Legal Entity,07/04/2022,4666140,275827,SOUTHCOTE PRIMARY,Primary School Delegated Budget (DSG),-4698,School Transfer Payment,SUPPLIER,CREDIT,3140,NAAA-Former Directorate of Education and Childrens Services
RBC Legal Entity,07/04/2022,4666038,275828,ST ANNES RC PRIMARY,Primary School Delegated Budget (DSG),50986.43,School Transfer Payment,SUPPLIER,STANDARD,3140,NAAA-Former Directorate of Education and Childrens Services
RBC Legal Entity,07/04/2022,4666064,275828,ST ANNES RC PRIMARY,Primary School Delegated Budget (DSG),-836.22,School Transfer Payment,SUPPLIER,CREDIT,3140,NAAA-Former Directorate of Education and Childrens Services
RBC Legal Entity,07/04/2022,4666090,275828,ST ANNES RC PRIMARY,Primary School Delegated Budget (DSG),-3365.52,School Transfer Payment,SUPPLIER,CREDIT,3140,NAAA-Former Directorate of Education and Childrens Services
RBC Legal Entity,07/04/2022,4666116,275828,ST ANNES RC PRIMARY,Primary School Delegated Budget (DSG),-2267.93,School Transfer Payment,SUPPLIER,CREDIT,3140,NAAA-Former Directorate of Education and Childrens Services
RBC Legal Entity,07/04/2022,4666141,275828,ST ANNES RC PRIMARY,Primary School Delegated Budget (DSG),-1417.23,School Transfer Payment,SUPPLIER,CREDIT,3140,NAAA-Former Directorate of Education and Childrens Services
RBC Legal Entity,07/04/2022,4666039,275829,ST MARTINS RC PRIMARY,Primary School Delegated Budget (DSG),42335.41,School Transfer Payment,GOVERNMENT,STANDARD,3140,NAAA-Former Directorate of Education and Childrens Services
RBC Legal Entity,07/04/2022,4666065,275829,ST MARTINS RC PRIMARY,Primary School Delegated Budget (DSG),-711.48,School Transfer Payment,GOVERNMENT,CREDIT,3140,NAAA-Former Directorate of Education and Childrens Services
RBC Legal Entity,07/04/2022,4666091,275829,ST MARTINS RC PRIMARY,Primary School Delegated Budget (DSG),-1000.56,School Transfer Payment,GOVERNMENT,CREDIT,3140,NAAA-Former Directorate of Education and Childrens Services
RBC Legal Entity,07/04/2022,4666117,275829,ST MARTINS RC PRIMARY,Primary School Delegated Budget (DSG),-1929.62,School Transfer Payment,GOVERNMENT,CREDIT,3140,NAAA-Former Directorate of Education and Childrens Services
RBC Legal Entity,07/04/2022,4666142,275829,ST MARTINS RC PRIMARY,Primary School Delegated Budget (DSG),-1205.82,School Transfer Payment,GOVERNMENT,CREDIT,3140,NAAA-Former Directorate of Education and Childrens Services
RBC Legal Entity,07/04/2022,4666040,275830,ST MICHAELS PRIMARY,Primary School Delegated Budget (DSG),111498.62,School Transfer Payment,SUPPLIER,STANDARD,3140,NAAA-Former Directorate of Education and Childrens Services
RBC Legal Entity,07/04/2022,4666066,275830,ST MICHAELS PRIMARY,Primary School Delegated Budget (DSG),-1834.14,School Transfer Payment,SUPPLIER,CREDIT,3140,NAAA-Former Directorate of Education and Childrens Services
RBC Legal Entity,07/04/2022,4666092,275830,ST MICHAELS PRIMARY,Primary School Delegated Budget (DSG),-11188.08,School Transfer Payment,SUPPLIER,CREDIT,3140,NAAA-Former Directorate of Education and Childrens Services
RBC Legal Entity,07/04/2022,4666118,275830,ST MICHAELS PRIMARY,Primary School Delegated Budget (DSG),-4974.41,School Transfer Payment,SUPPLIER,CREDIT,3140,NAAA-Former Directorate of Education and Childrens Services
RBC Legal Entity,07/04/2022,4666143,275830,ST MICHAELS PRIMARY,Primary School Delegated Budget (DSG),-3108.51,School Transfer Payment,SUPPLIER,CREDIT,3140,NAAA-Former Directorate of Education and Childrens Services
RBC Legal Entity,07/04/2022,4666041,275831,THAMESIDE PRIMARY SCHOOL,Primary School Delegated Budget (DSG),106010.63,School Transfer Payment,SUPPLIER,STANDARD,3140,NAAA-Former Directorate of Education and Childrens Services
RBC Legal Entity,07/04/2022,4666067,275831,THAMESIDE PRIMARY SCHOOL,Primary School Delegated Budget (DSG),-1801.8,School Transfer Payment,SUPPLIER,CREDIT,3140,NAAA-Former Directorate of Education and Childrens Services
RBC Legal Entity,07/04/2022,4666093,275831,THAMESIDE PRIMARY SCHOOL,Primary School Delegated Budget (DSG),-8004.48,School Transfer Payment,SUPPLIER,CREDIT,3140,NAAA-Former Directorate of Education and Childrens Services
RBC Legal Entity,07/04/2022,4666119,275831,THAMESIDE PRIMARY SCHOOL,Primary School Delegated Budget (DSG),-4886.7,School Transfer Payment,SUPPLIER,CREDIT,3140,NAAA-Former Directorate of Education and Childrens Services
RBC Legal Entity,07/04/2022,4666144,275831,THAMESIDE PRIMARY SCHOOL,Primary School Delegated Budget (DSG),-3053.7,School Transfer Payment,SUPPLIER,CREDIT,3140,NAAA-Former Directorate of Education and Childrens Services
RBC Legal Entity,07/04/2022,4666045,275832,WILSON PRIMARY,Primary School Delegated Budget (DSG),109295.53,School Transfer Payment,SUPPLIER,STANDARD,3140,NAAA-Former Directorate of Education and Childrens Services
RBC Legal Entity,07/04/2022,4666071,275832,WILSON PRIMARY,Primary School Delegated Budget (DSG),-1903.44,School Transfer Payment,SUPPLIER,CREDIT,3140,NAAA-Former Directorate of Education and Childrens Services
RBC Legal Entity,07/04/2022,4666097,275832,WILSON PRIMARY,Primary School Delegated Budget (DSG),-6912.96,School Transfer Payment,SUPPLIER,CREDIT,3140,NAAA-Former Directorate of Education and Childrens Services
RBC Legal Entity,07/04/2022,4666123,275832,WILSON PRIMARY,Primary School Delegated Budget (DSG),-5162.36,School Transfer Payment,SUPPLIER,CREDIT,3140,NAAA-Former Directorate of Education and Childrens Services
RBC Legal Entity,07/04/2022,4666148,275832,WILSON PRIMARY,Primary School Delegated Budget (DSG),-3225.96,School Transfer Payment,SUPPLIER,CREDIT,3140,NAAA-Former Directorate of Education and Childrens Services
RBC Legal Entity,07/04/2022,4663883,275833,READING HOTEL,Single Homelessness Grants,1050,Preventive+SupportiveServ,SUPPLIER,STANDARD,5860,KAAA-Directorate of Economic Growth and Neighbourhood Services
RBC Legal Entity,07/04/2022,4663908,275833,READING HOTEL,Housing GF General Charges,1125,Preventive+SupportiveServ,SUPPLIER,STANDARD,5810,KAAA-Directorate of Economic Growth and Neighbourhood Services
RBC Legal Entity,07/04/2022,4663947,275833,READING HOTEL,Single Homelessness Grants,1050,Preventive+SupportiveServ,SUPPLIER,STANDARD,5860,KAAA-Directorate of Economic Growth and Neighbourhood Services
RBC Legal Entity,07/04/2022,4659417,275834,MR STEPHEN CRISPIN,JLT Disbursements,550,Misc. Legal Expenses,SUPPLIER,STANDARD,2407,LAAA-Directorate of Resources
RBC Legal Entity,07/04/2022,4659361,275835,BERKSHIRE HEALTHCARE NHS TRUST,Public Health Team Costs,236666.67,NHS Trusts,Third Party Supplier,STANDARD,2065,JAAA-Directorate of Social Care and Health Services
RBC Legal Entity,07/04/2022,4659432,275835,BERKSHIRE HEALTHCARE NHS TRUST,Berkshire West Public Health Hub,41.66,NHS Trusts,Third Party Supplier,STANDARD,2002,JAAA-Directorate of Social Care and Health Services
RBC Legal Entity,07/04/2022,4659432,275835,BERKSHIRE HEALTHCARE NHS TRUST,Berkshire West Public Health Hub,41.67,NHS Trusts,Third Party Supplier,STANDARD,2002,JAAA-Directorate of Social Care and Health Services
RBC Legal Entity,07/04/2022,4659432,275835,BERKSHIRE HEALTHCARE NHS TRUST,Berkshire West Public Health Hub,41.67,NHS Trusts,Third Party Supplier,STANDARD,2002,JAAA-Directorate of Social Care and Health Services
RBC Legal Entity,07/04/2022,4659432,275835,BERKSHIRE HEALTHCARE NHS TRUST,Berkshire West Public Health Hub,249.97,NHS Trusts,Third Party Supplier,STANDARD,2002,JAAA-Directorate of Social Care and Health Services
RBC Legal Entity,07/04/2022,4659432,275835,BERKSHIRE HEALTHCARE NHS TRUST,Berkshire West Public Health Hub,1185.65,NHS Trusts,Third Party Supplier,STANDARD,2002,JAAA-Directorate of Social Care and Health Services
RBC Legal Entity,07/04/2022,4659432,275835,BERKSHIRE HEALTHCARE NHS TRUST,Berkshire West Public Health Hub,4015.22,NHS Trusts,Third Party Supplier,STANDARD,2002,JAAA-Directorate of Social Care and Health Services
RBC Legal Entity,07/04/2022,4664324,275836,SMS ENVIRONMENTAL LTD,Repairs,3539.6,Asbestos,SUB-CONTRACTOR,STANDARD,5970,HAAA-Housing Revenue Account
RBC Legal Entity,07/04/2022,4664325,275836,SMS ENVIRONMENTAL LTD,Repairs,-3539.6,Asbestos,SUB-CONTRACTOR,CREDIT,5970,HAAA-Housing Revenue Account
RBC Legal Entity,07/04/2022,4661190,275837,SOMERVILLE GLASS & WINDOWS LTD,Payroll + Payments A/c,-50,System Creditors,SUB-CONTRACTOR,CREDIT,9823,ZZZB-Balance Sheet
RBC Legal Entity,07/04/2022,4661190,275837,SOMERVILLE GLASS & WINDOWS LTD,Civil Engineering,250,Routine Maintenance,SUB-CONTRACTOR,STANDARD,4550,KAAA-Directorate of Economic Growth and Neighbourhood Services
RBC Legal Entity,07/04/2022,4661190,275837,SOMERVILLE GLASS & WINDOWS LTD,Civil Engineering,1135,Routine Maintenance,SUB-CONTRACTOR,STANDARD,4550,KAAA-Directorate of Economic Growth and Neighbourhood Services
RBC Legal Entity,07/04/2022,4664025,275839,HARBOUR SUPPORTED LIVING SER LTD,Mental Health Community Services,1445.21,Purchased Care,Third Party Supplier,STANDARD,5731,JAAA-Directorate of Social Care and Health Services
RBC Legal Entity,07/04/2022,4661215,275840,ST MUNGO'S COMMUNITY HOUSING ASSOCIATION LTD,Single Homelessness Grants,9000,Preventive+SupportiveServ,SUPPLIER,STANDARD,5860,KAAA-Directorate of Economic Growth and Neighbourhood Services
RBC Legal Entity,07/04/2022,4658036,275841,MK SURVEYS LIMITED,LEP Projects,500,Contractors,Third Party Supplier,STANDARD,8806,ZZZC-Capital
RBC Legal Entity,07/04/2022,4658763,275843,MR EDWARD KIRKWOOD,JLT Disbursements,675,Misc. Legal Expenses,Third Party Supplier,STANDARD,2407,LAAA-Directorate of Resources
RBC Legal Entity,07/04/2022,4659542,275843,MR EDWARD KIRKWOOD,JLT Disbursements,1910,Misc. Legal Expenses,Third Party Supplier,STANDARD,2407,LAAA-Directorate of Resources
RBC Legal Entity,07/04/2022,4660307,275844,ADDICTION RECOVERY CENTRES LTD,Drug Treatment Crime and Harm Reduction Grant,3373.55,Purchased Care,Third Party Supplier,STANDARD,2070,JAAA-Directorate of Social Care and Health Services
RBC Legal Entity,07/04/2022,4666269,275845,D J TAYLOR SERVICES LTD,Repairs,6913.36,Special Adaptions,Third Party Supplier,STANDARD,5970,HAAA-Housing Revenue Account
RBC Legal Entity,07/04/2022,4659619,275847,HOIST UK,Town Hall Operations,701,Equipment Purchase & Repair,SUPPLIER,STANDARD,1210,KAAA-Directorate of Economic Growth and Neighbourhood Services
RBC Legal Entity,07/04/2022,4666044,275848,WHITLEY PARK SCHOOL,Primary School Delegated Budget (DSG),159735.03,School Transfer Payment,SUPPLIER,STANDARD,3140,NAAA-Former Directorate of Education and Childrens Services
RBC Legal Entity,07/04/2022,4666070,275848,WHITLEY PARK SCHOOL,Primary School Delegated Budget (DSG),-2443.98,School Transfer Payment,SUPPLIER,CREDIT,3140,NAAA-Former Directorate of Education and Childrens Services
RBC Legal Entity,07/04/2022,4666096,275848,WHITLEY PARK SCHOOL,Primary School Delegated Budget (DSG),-18828.72,School Transfer Payment,SUPPLIER,CREDIT,3140,NAAA-Former Directorate of Education and Childrens Services
RBC Legal Entity,07/04/2022,4666122,275848,WHITLEY PARK SCHOOL,Primary School Delegated Budget (DSG),-6628.37,School Transfer Payment,SUPPLIER,CREDIT,3140,NAAA-Former Directorate of Education and Childrens Services
RBC Legal Entity,07/04/2022,4666147,275848,WHITLEY PARK SCHOOL,Primary School Delegated Budget (DSG),-4142.07,School Transfer Payment,SUPPLIER,CREDIT,3140,NAAA-Former Directorate of Education and Childrens Services
RBC Legal Entity,07/04/2022,4656604,275849,FCC RECYCLING (UK) LTD,Grounds Maintenance,568.38,Parks Tipping,SUPPLIER,STANDARD,1306,KAAA-Directorate of Economic Growth and Neighbourhood Services
RBC Legal Entity,07/04/2022,4656604,275849,FCC RECYCLING (UK) LTD,Grounds Maintenance,885.06,Parks Tipping,SUPPLIER,STANDARD,1306,KAAA-Directorate of Economic Growth and Neighbourhood Services
RBC Legal Entity,07/04/2022,4656604,275849,FCC RECYCLING (UK) LTD,Grounds Maintenance,2585.48,Parks Tipping,SUPPLIER,STANDARD,1306,KAAA-Directorate of Economic Growth and Neighbourhood Services
RBC Legal Entity,07/04/2022,4658138,275850,CHRISTIAN MITCHELL,JLT Disbursements,1475,Misc. Legal Expenses,SUPPLIER,STANDARD,2407,LAAA-Directorate of Resources
RBC Legal Entity,07/04/2022,4659414,275852,FRANCES HARRIS,JLT Disbursements,500,Misc. Legal Expenses,Third Party Supplier,STANDARD,2407,LAAA-Directorate of Resources
RBC Legal Entity,07/04/2022,4666419,275854,DIAMOND QUALITY CARE,LD Community Services,1730.9,Purchased Care,SUPPLIER,STANDARD,5741,JAAA-Directorate of Social Care and Health Services
RBC Legal Entity,07/04/2022,4658143,275855,MISS CHLOE WILKINS,JLT Disbursements,675,Misc. Legal Expenses,Third Party Supplier,STANDARD,2407,LAAA-Directorate of Resources
RBC Legal Entity,07/04/2022,4665883,275856,PILON LTD,DLO Wokingham Trades,28413.45,Subcontractors Labour,SUB-CONTRACTOR,STANDARD,4050,KAAA-Directorate of Economic Growth and Neighbourhood Services
RBC Legal Entity,07/04/2022,4666422,275860,ARUSHA LTD,Mental Health Community Services,1389.96,Purchased Care,Third Party Supplier,STANDARD,5731,JAAA-Directorate of Social Care and Health Services
RBC Legal Entity,07/04/2022,4665431,275861,SYLVIANCARE LTD,PS Acquired Community Services,1479,Purchased Care,Third Party Supplier,STANDARD,5771,JAAA-Directorate of Social Care and Health Services
RBC Legal Entity,07/04/2022,4665432,275861,SYLVIANCARE LTD,PS Acquired Community Services,1242.36,Purchased Care,Third Party Supplier,STANDARD,5771,JAAA-Directorate of Social Care and Health Services
RBC Legal Entity,07/04/2022,4665433,275861,SYLVIANCARE LTD,PS Acquired Community Services,1084.6,Purchased Care,Third Party Supplier,STANDARD,5771,JAAA-Directorate of Social Care and Health Services
RBC Legal Entity,07/04/2022,4665434,275861,SYLVIANCARE LTD,PS Acquired Community Services,512.72,Purchased Care,Third Party Supplier,STANDARD,5771,JAAA-Directorate of Social Care and Health Services
RBC Legal Entity,07/04/2022,4666426,275863,KCARE NURSING AGENCY LTD,Assets _ General,-378.62,Payments in Advance,Third Party Supplier,CREDIT,9885,ZZZB-Balance Sheet
RBC Legal Entity,07/04/2022,4666426,275863,KCARE NURSING AGENCY LTD,PS Acquired Community Services,1893.12,Purchased Care,Third Party Supplier,STANDARD,5771,JAAA-Directorate of Social Care and Health Services
RBC Legal Entity,07/04/2022,4666427,275863,KCARE NURSING AGENCY LTD,Assets _ General,-139.62,Payments in Advance,Third Party Supplier,CREDIT,9885,ZZZB-Balance Sheet
RBC Legal Entity,07/04/2022,4666427,275863,KCARE NURSING AGENCY LTD,PS Acquired Community Services,698.09,Purchased Care,Third Party Supplier,STANDARD,5771,JAAA-Directorate of Social Care and Health Services
RBC Legal Entity,07/04/2022,4666428,275863,KCARE NURSING AGENCY LTD,Assets _ General,-406.82,Payments in Advance,Third Party Supplier,CREDIT,9885,ZZZB-Balance Sheet
RBC Legal Entity,07/04/2022,4666428,275863,KCARE NURSING AGENCY LTD,PS Acquired Community Services,2034.12,Purchased Care,Third Party Supplier,STANDARD,5771,JAAA-Directorate of Social Care and Health Services
RBC Legal Entity,07/04/2022,4666429,275863,KCARE NURSING AGENCY LTD,Assets _ General,-248.47,Payments in Advance,Third Party Supplier,CREDIT,9885,ZZZB-Balance Sheet
RBC Legal Entity,07/04/2022,4666429,275863,KCARE NURSING AGENCY LTD,PS Acquired Community Services,1242.36,Purchased Care,Third Party Supplier,STANDARD,5771,JAAA-Directorate of Social Care and Health Services
RBC Legal Entity,07/04/2022,4666432,275863,KCARE NURSING AGENCY LTD,Assets _ General,-130.35,Payments in Advance,Third Party Supplier,CREDIT,9885,ZZZB-Balance Sheet
RBC Legal Entity,07/04/2022,4666432,275863,KCARE NURSING AGENCY LTD,PS Acquired Community Services,651.75,Purchased Care,Third Party Supplier,STANDARD,5771,JAAA-Directorate of Social Care and Health Services
RBC Legal Entity,07/04/2022,4666433,275863,KCARE NURSING AGENCY LTD,Assets _ General,-237.82,Payments in Advance,Third Party Supplier,CREDIT,9885,ZZZB-Balance Sheet
RBC Legal Entity,07/04/2022,4666433,275863,KCARE NURSING AGENCY LTD,PS Acquired Community Services,1189.12,Purchased Care,Third Party Supplier,STANDARD,5771,JAAA-Directorate of Social Care and Health Services
RBC Legal Entity,07/04/2022,4666434,275863,KCARE NURSING AGENCY LTD,Assets _ General,-218.1,Payments in Advance,Third Party Supplier,CREDIT,9885,ZZZB-Balance Sheet
RBC Legal Entity,07/04/2022,4666434,275863,KCARE NURSING AGENCY LTD,PS Acquired Community Services,1090.52,Purchased Care,Third Party Supplier,STANDARD,5771,JAAA-Directorate of Social Care and Health Services
RBC Legal Entity,07/04/2022,4666436,275863,KCARE NURSING AGENCY LTD,Assets _ General,-193.26,Payments in Advance,Third Party Supplier,CREDIT,9885,ZZZB-Balance Sheet
RBC Legal Entity,07/04/2022,4666436,275863,KCARE NURSING AGENCY LTD,PS Acquired Community Services,966.28,Purchased Care,Third Party Supplier,STANDARD,5771,JAAA-Directorate of Social Care and Health Services
RBC Legal Entity,07/04/2022,4666437,275863,KCARE NURSING AGENCY LTD,Assets _ General,-169.59,Payments in Advance,Third Party Supplier,CREDIT,9885,ZZZB-Balance Sheet
RBC Legal Entity,07/04/2022,4666437,275863,KCARE NURSING AGENCY LTD,PS Acquired Community Services,847.96,Purchased Care,Third Party Supplier,STANDARD,5771,JAAA-Directorate of Social Care and Health Services
RBC Legal Entity,07/04/2022,4666424,275866,SUPERB HEALTHCARE LTD,PS Acquired Community Services,1482,Purchased Care,Third Party Supplier,STANDARD,5771,JAAA-Directorate of Social Care and Health Services
RBC Legal Entity,07/04/2022,4666468,275866,SUPERB HEALTHCARE LTD,PS Acquired Community Services,1035.5,Purchased Care,Third Party Supplier,STANDARD,5771,JAAA-Directorate of Social Care and Health Services
RBC Legal Entity,07/04/2022,4666469,275866,SUPERB HEALTHCARE LTD,PS Acquired Community Services,1007,Purchased Care,Third Party Supplier,STANDARD,5771,JAAA-Directorate of Social Care and Health Services
RBC Legal Entity,07/04/2022,4666470,275866,SUPERB HEALTHCARE LTD,PS Acquired Community Services,855,Purchased Care,Third Party Supplier,STANDARD,5771,JAAA-Directorate of Social Care and Health Services
RBC Legal Entity,07/04/2022,4666471,275866,SUPERB HEALTHCARE LTD,PS Acquired Community Services,764.75,Purchased Care,Third Party Supplier,STANDARD,5771,JAAA-Directorate of Social Care and Health Services
RBC Legal Entity,07/04/2022,4666472,275866,SUPERB HEALTHCARE LTD,PS Acquired Community Services,665,Purchased Care,Third Party Supplier,STANDARD,5771,JAAA-Directorate of Social Care and Health Services
RBC Legal Entity,07/04/2022,4660004,275867,F M CONWAY LTD,Highways,427,Materials Direct,SUB-CONTRACTOR,STANDARD,4252,KAAA-Directorate of Economic Growth and Neighbourhood Services
RBC Legal Entity,07/04/2022,4666420,275868,MEDCARE HOME SERVICES LTD T/A PROACTIVE LIFE,Mental Health Community Services,1847.28,Purchased Care,SUPPLIER,STANDARD,5731,JAAA-Directorate of Social Care and Health Services
RBC Legal Entity,07/04/2022,4658822,275874,ASAHI UK LTD,Hexagon Catering,991.13,Purchases - Stock Provisions,Third Party Supplier,STANDARD,1241,KAAA-Directorate of Economic Growth and Neighbourhood Services
RBC Legal Entity,07/04/2022,4658046,275876,LYDIA BUTLER DESIGN LTD,Transformation,600,Consultancy Fees,SUPPLIER,STANDARD,5289,JAAA-Directorate of Social Care and Health Services
RBC Legal Entity,07/04/2022,4659845,275877,FINCH CONSULTING LIMITED,Dog Warden,29388.66,Consultancy Fees,SUPPLIER,STANDARD,4612,KAAA-Directorate of Economic Growth and Neighbourhood Services
RBC Legal Entity,07/04/2022,4660074,275878,STRANGE STRANGE & GARDNER,Food and Safety,12625,Consultancy Fees,SUPPLIER,STANDARD,4614,KAAA-Directorate of Economic Growth and Neighbourhood Services
RBC Legal Entity,07/04/2022,4660330,275880,IMPERIAL POLYTHENE PRODUCTS LTD,Street Cleansing,980,Materials from Store,SUPPLIER,STANDARD,4566,KAAA-Directorate of Economic Growth and Neighbourhood Services
RBC Legal Entity,07/04/2022,4660330,275880,IMPERIAL POLYTHENE PRODUCTS LTD,Street Cleansing,1290,Materials from Store,SUPPLIER,STANDARD,4566,KAAA-Directorate of Economic Growth and Neighbourhood Services
RBC Legal Entity,07/04/2022,4661033,275881,BERKSHIRE ROOMS,Bed and Breakfast,182,Rents,Third Party Supplier,STANDARD,5871,KAAA-Directorate of Economic Growth and Neighbourhood Services
RBC Legal Entity,07/04/2022,4661033,275881,BERKSHIRE ROOMS,Bed and Breakfast,728,Rents,Third Party Supplier,STANDARD,5871,KAAA-Directorate of Economic Growth and Neighbourhood Services
RBC Legal Entity,07/04/2022,4659847,275882,WESSEX PETROLEUM T/A WP GROUP,Corporate FM - Office Buildings,48031.5,Fuel + Oil,Third Party Supplier,STANDARD,3738,KAAA-Directorate of Economic Growth and Neighbourhood Services
RBC Legal Entity,07/04/2022,4658162,275886,AGILISYS LIMITED,IT Management,93485.09,TPP  Contract,Third Party Supplier,STANDARD,2300,EAAA-Chief Executive
RBC Legal Entity,07/04/2022,4659394,275886,AGILISYS LIMITED,Future ICT operating model,2225,IT - Costs/Equipment,Third Party Supplier,STANDARD,8636,ZZZC-Capital
RBC Legal Entity,07/04/2022,4661145,275887,MARIE GROUCOTT - GENTLYSTRONGYOGA,Test and Trace,880,Consultancy Fees,Third Party Supplier,STANDARD,2068,JAAA-Directorate of Social Care and Health Services
RBC Legal Entity,07/04/2022,4658014,275888,PROSIS LTD,Traffic,30,TPP  Contract,Third Party Supplier,STANDARD,4703,KAAA-Directorate of Economic Growth and Neighbourhood Services
RBC Legal Entity,07/04/2022,4658014,275888,PROSIS LTD,Traffic,1410.3,TPP  Contract,Third Party Supplier,STANDARD,4703,KAAA-Directorate of Economic Growth and Neighbourhood Services
RBC Legal Entity,07/04/2022,4658784,275893,MCLEAN PARTNERSHIP,DENS Training,5000,Training & Development Costs,Third Party Supplier,STANDARD,1502,KAAA-Directorate of Economic Growth and Neighbourhood Services
RBC Legal Entity,07/04/2022,4658106,275895,GBS CORPORATE TRAINING LTD,Corporate Organisational Development,1200,Training & Development Costs,Third Party Supplier,STANDARD,3435,LAAA-Directorate of Resources
RBC Legal Entity,07/04/2022,4665919,275896,SLATTER CRICKET & PLAY LTD,Reading Activepark Project,700,Repair + Maint. Materials,SUB-CONTRACTOR,STANDARD,1312,KAAA-Directorate of Economic Growth and Neighbourhood Services
RBC Legal Entity,07/04/2022,4666475,275897,HOME ANGELS HEALTHCARE SERVICES LTD,LD Community Services,4621.75,Purchased Care,Third Party Supplier,STANDARD,5741,JAAA-Directorate of Social Care and Health Services
RBC Legal Entity,07/04/2022,4666476,275897,HOME ANGELS HEALTHCARE SERVICES LTD,LD Community Services,3717.67,Purchased Care,Third Party Supplier,STANDARD,5741,JAAA-Directorate of Social Care and Health Services
RBC Legal Entity,07/04/2022,4666477,275897,HOME ANGELS HEALTHCARE SERVICES LTD,PS Acquired Community Services,1542.86,Purchased Care,Third Party Supplier,STANDARD,5771,JAAA-Directorate of Social Care and Health Services
RBC Legal Entity,08/04/2022,4659602,275898,BRACKNELL FOREST COUNCIL,Repairs,936,Estate Maintenance,GOVERNMENT,STANDARD,5970,HAAA-Housing Revenue Account
RBC Legal Entity,08/04/2022,4664292,275899,A LANGHAM BUILDERS LIMITED,Planned Maintenance Trades,625,Subcontractors Labour,Unclassified,STANDARD,4040,KAAA-Directorate of Economic Growth and Neighbourhood Services
RBC Legal Entity,08/04/2022,4664519,275901,STUART DIGGENS BUILDING & ROOFING LTD,Cemeteries,310,Grounds Maintenance,SUB-CONTRACTOR,STANDARD,4607,LAAA-Directorate of Resources
RBC Legal Entity,08/04/2022,4664519,275901,STUART DIGGENS BUILDING & ROOFING LTD,Cemeteries,680,Grounds Maintenance,SUB-CONTRACTOR,STANDARD,4607,LAAA-Directorate of Resources
RBC Legal Entity,08/04/2022,4662202,275905,EVERYCARE READING,Charles Clore Court,1469.56,Agency Staff,SUPPLIER,STANDARD,5157,JAAA-Directorate of Social Care and Health Services
RBC Legal Entity,08/04/2022,4660075,275906,SMS ENVIRONMENTAL LTD,Corporate Offices,1114,Plant,SUB-CONTRACTOR,STANDARD,8602,ZZZC-Capital
RBC Legal Entity,08/04/2022,4660076,275906,SMS ENVIRONMENTAL LTD,Repairs,905,Asbestos,SUB-CONTRACTOR,STANDARD,5970,HAAA-Housing Revenue Account
RBC Legal Entity,08/04/2022,4660077,275906,SMS ENVIRONMENTAL LTD,Corporate Maintenance Services,702,Precepts,SUB-CONTRACTOR,STANDARD,4080,KAAA-Directorate of Economic Growth and Neighbourhood Services
RBC Legal Entity,08/04/2022,4660079,275906,SMS ENVIRONMENTAL LTD,Repairs,1621,Asbestos,SUB-CONTRACTOR,STANDARD,5970,HAAA-Housing Revenue Account
RBC Legal Entity,08/04/2022,4659396,275908,FLEETWOOD GRAB SERVICES LIMITED,Highways,120,Materials Direct,Third Party Supplier,STANDARD,4252,KAAA-Directorate of Economic Growth and Neighbourhood Services
RBC Legal Entity,08/04/2022,4659396,275908,FLEETWOOD GRAB SERVICES LIMITED,Highways,560,Waste Disposal,Third Party Supplier,STANDARD,4252,KAAA-Directorate of Economic Growth and Neighbourhood Services
RBC Legal Entity,08/04/2022,4659396,275908,FLEETWOOD GRAB SERVICES LIMITED,Highways,560,Waste Disposal,Third Party Supplier,STANDARD,4252,KAAA-Directorate of Economic Growth and Neighbourhood Services
RBC Legal Entity,08/04/2022,4665228,275909,J H CRESSWELL & SONS LTD,Civil Engineering,813.58,Winter Maintenance,SUB-CONTRACTOR,STANDARD,4550,KAAA-Directorate of Economic Growth and Neighbourhood Services
RBC Legal Entity,08/04/2022,4665228,275909,J H CRESSWELL & SONS LTD,Civil Engineering,11355.55,Winter Maintenance,SUB-CONTRACTOR,STANDARD,4550,KAAA-Directorate of Economic Growth and Neighbourhood Services
RBC Legal Entity,08/04/2022,4665627,275909,J H CRESSWELL & SONS LTD,Civil Engineering,12169.13,Winter Maintenance,SUB-CONTRACTOR,STANDARD,4550,KAAA-Directorate of Economic Growth and Neighbourhood Services
RBC Legal Entity,08/04/2022,4662316,275910,BPS CHARTERED SURVEYORS,Planning,3940,Consultancy Fees,SUPPLIER,STANDARD,4700,KAAA-Directorate of Economic Growth and Neighbourhood Services
RBC Legal Entity,08/04/2022,4661209,275913,ST MUNGO'S COMMUNITY HOUSING ASSOCIATION LTD,Single Homelessness Grants,24708,Preventive+SupportiveServ,SUPPLIER,STANDARD,5860,KAAA-Directorate of Economic Growth and Neighbourhood Services
RBC Legal Entity,08/04/2022,4661210,275913,ST MUNGO'S COMMUNITY HOUSING ASSOCIATION LTD,Single Homelessness Grants,12000,Preventive+SupportiveServ,SUPPLIER,STANDARD,5860,KAAA-Directorate of Economic Growth and Neighbourhood Services
RBC Legal Entity,08/04/2022,4661211,275913,ST MUNGO'S COMMUNITY HOUSING ASSOCIATION LTD,Single Homelessness Grants,16000,Preventive+SupportiveServ,SUPPLIER,STANDARD,5860,KAAA-Directorate of Economic Growth and Neighbourhood Services
RBC Legal Entity,08/04/2022,4661214,275913,ST MUNGO'S COMMUNITY HOUSING ASSOCIATION LTD,Single Homelessness Grants,38267,Preventive+SupportiveServ,SUPPLIER,STANDARD,5860,KAAA-Directorate of Economic Growth and Neighbourhood Services
RBC Legal Entity,08/04/2022,4661217,275913,ST MUNGO'S COMMUNITY HOUSING ASSOCIATION LTD,Single Homelessness Grants,38000,Preventive+SupportiveServ,SUPPLIER,STANDARD,5860,KAAA-Directorate of Economic Growth and Neighbourhood Services
RBC Legal Entity,08/04/2022,4661218,275913,ST MUNGO'S COMMUNITY HOUSING ASSOCIATION LTD,Single Homelessness Grants,22914,Preventive+SupportiveServ,SUPPLIER,STANDARD,5860,KAAA-Directorate of Economic Growth and Neighbourhood Services
RBC Legal Entity,08/04/2022,4662353,275913,ST MUNGO'S COMMUNITY HOUSING ASSOCIATION LTD,Single Homelessness Grants,29406,Preventive+SupportiveServ,SUPPLIER,STANDARD,5860,KAAA-Directorate of Economic Growth and Neighbourhood Services
RBC Legal Entity,08/04/2022,4658737,275914,S H JONES & COMPANY LTD,Hexagon Catering,721.8,Purchases - Stock Provisions,SUPPLIER,STANDARD,1241,KAAA-Directorate of Economic Growth and Neighbourhood Services
RBC Legal Entity,08/04/2022,4666753,275916,IMPERIAL COLLEGE PROJECTS LTD,Coroner,710,Medical Fees,SUPPLIER,STANDARD,4605,KAAA-Directorate of Economic Growth and Neighbourhood Services
RBC Legal Entity,08/04/2022,4666754,275916,IMPERIAL COLLEGE PROJECTS LTD,Coroner,510,Medical Fees,SUPPLIER,STANDARD,4605,KAAA-Directorate of Economic Growth and Neighbourhood Services
RBC Legal Entity,08/04/2022,4666755,275916,IMPERIAL COLLEGE PROJECTS LTD,Coroner,560,Medical Fees,SUPPLIER,STANDARD,4605,KAAA-Directorate of Economic Growth and Neighbourhood Services
RBC Legal Entity,08/04/2022,4666756,275916,IMPERIAL COLLEGE PROJECTS LTD,Coroner,605,Medical Fees,SUPPLIER,STANDARD,4605,KAAA-Directorate of Economic Growth and Neighbourhood Services
RBC Legal Entity,08/04/2022,4666757,275916,IMPERIAL COLLEGE PROJECTS LTD,Coroner,680,Medical Fees,SUPPLIER,STANDARD,4605,KAAA-Directorate of Economic Growth and Neighbourhood Services
RBC Legal Entity,08/04/2022,4666758,275916,IMPERIAL COLLEGE PROJECTS LTD,Coroner,625,Medical Fees,SUPPLIER,STANDARD,4605,KAAA-Directorate of Economic Growth and Neighbourhood Services
RBC Legal Entity,08/04/2022,4666759,275916,IMPERIAL COLLEGE PROJECTS LTD,Coroner,765,Medical Fees,SUPPLIER,STANDARD,4605,KAAA-Directorate of Economic Growth and Neighbourhood Services
RBC Legal Entity,08/04/2022,4666760,275916,IMPERIAL COLLEGE PROJECTS LTD,Coroner,770,Medical Fees,SUPPLIER,STANDARD,4605,KAAA-Directorate of Economic Growth and Neighbourhood Services
RBC Legal Entity,08/04/2022,4666762,275916,IMPERIAL COLLEGE PROJECTS LTD,Coroner,710,Medical Fees,SUPPLIER,STANDARD,4605,KAAA-Directorate of Economic Growth and Neighbourhood Services
RBC Legal Entity,08/04/2022,4663868,275917,CROWN LODGE GUEST HOUSE,Single Homelessness Grants,950,Preventive+SupportiveServ,Third Party Supplier,STANDARD,5860,KAAA-Directorate of Economic Growth and Neighbourhood Services
RBC Legal Entity,08/04/2022,4663875,275917,CROWN LODGE GUEST HOUSE,Single Homelessness Grants,750,Preventive+SupportiveServ,Third Party Supplier,STANDARD,5860,KAAA-Directorate of Economic Growth and Neighbourhood Services
RBC Legal Entity,08/04/2022,4663876,275917,CROWN LODGE GUEST HOUSE,Housing GF General Charges,890,Preventive+SupportiveServ,Third Party Supplier,STANDARD,5810,KAAA-Directorate of Economic Growth and Neighbourhood Services
RBC Legal Entity,08/04/2022,4664435,275917,CROWN LODGE GUEST HOUSE,Bed and Breakfast,750,Rents,Third Party Supplier,STANDARD,5871,KAAA-Directorate of Economic Growth and Neighbourhood Services
RBC Legal Entity,08/04/2022,4664444,275917,CROWN LODGE GUEST HOUSE,Bed and Breakfast,800,Rents,Third Party Supplier,STANDARD,5871,KAAA-Directorate of Economic Growth and Neighbourhood Services
RBC Legal Entity,08/04/2022,4664482,275917,CROWN LODGE GUEST HOUSE,Bed and Breakfast,950,Rents,Third Party Supplier,STANDARD,5871,KAAA-Directorate of Economic Growth and Neighbourhood Services
RBC Legal Entity,08/04/2022,4666678,275919,BEVAN BRITTAN,Food and Safety,90,Consultancy Fees,SUPPLIER,STANDARD,4614,KAAA-Directorate of Economic Growth and Neighbourhood Services
RBC Legal Entity,08/04/2022,4666678,275919,BEVAN BRITTAN,Food and Safety,65407.58,Consultancy Fees,SUPPLIER,STANDARD,4614,KAAA-Directorate of Economic Growth and Neighbourhood Services
RBC Legal Entity,08/04/2022,4661127,275920,EXACOM SYSTEMS LIMITED,Planning,10475.09,Maint. of Computer Equipt,SUPPLIER,STANDARD,4700,KAAA-Directorate of Economic Growth and Neighbourhood Services
RBC Legal Entity,08/04/2022,4658782,275922,G2 RECRUITMENT SOLUTIONS LTD,Building Control,1211.7,Consultancy Fees,SUPPLIER,STANDARD,4701,KAAA-Directorate of Economic Growth and Neighbourhood Services
RBC Legal Entity,08/04/2022,4659410,275924,MISS CHLOE WILKINS,JLT Disbursements,675,Misc. Legal Expenses,Third Party Supplier,STANDARD,2407,LAAA-Directorate of Resources
RBC Legal Entity,08/04/2022,4666651,275925,FRIMLEY HEALTH NHS FOUNDATION TRUST,Coroner,32128.5,Misc. Legal Expenses,Third Party Supplier,STANDARD,4605,KAAA-Directorate of Economic Growth and Neighbourhood Services
RBC Legal Entity,08/04/2022,4666474,275927,SYLVIANCARE LTD,PS Acquired Community Services,836,Purchased Care,Third Party Supplier,STANDARD,5771,JAAA-Directorate of Social Care and Health Services
